{"text_format":"1","workbook":"xlsx","n_sheets":4,"sheets":["Front","Data","Mapping","Template"],"not_rendered":{"charts":0,"images":0,"macros":1,"external_links":0,"defined_names":1033,"comments":0,"pivot_tables":0},"unopened":[],"bounds":{"document_bytes":16777216,"sheet_cells":100000,"rows_first":2000,"rows_last":500,"rows_between":2000,"halvings":0,"cell_chars":16384,"cell_head_chars":4096},"cells_cut":0,"cells_raw":0,"read":"whole","date_system":"1900"}

{"sheet":"Front","index":0,"n_rows":26,"n_cols":5,"rows_kept":26,"cut":false,"hidden":false,"merged":[[2,2,2,4],[4,3,4,4],[9,3,9,4],[14,3,14,4],[25,3,25,4]]}
[]
[]
[null,null,"Excel Report Generator"]
[]
[null,null,"Step 1 :","Import your records into the 'Data' sheet."]
[null,null,null,"a.","Fill in the Field Names/Column Headers"]
[null,null,null,"b.","Copy paste records. Prefereably as Values."]
[null,null,null,"c.","Click the 'Set Up' Button"]
[]
[null,null,"Step 2 :","Setup your Template"]
[null,null,null,"a.","Paste your Template into the 'Template' Sheet. Copy pasting all (Ctrl+V)."]
[null,null,null,"b.","Link the 'Variables' to the ranges in the 'Mapping' spreadsheet"]
[null,null,null,"c.","Print Page Setup the sheet. Also set your Default Printer to the desired one."]
[]
[null,null,"Step 3 :","Set Preferences in the 'Mapping' sheet"]
[null,null,null,"a.","Which records you want to save?"]
[null,null,null,null,"- Starting with"]
[null,null,null,null,"- Ending with"]
[null,null,null,"b.","Do you want to print each export when they are created? (Yes/No)"]
[null,null,null,"c.","Set up a file name tag that is unique for each record. Example: =\"Record  - \"&TEXT(RecordNumber,\"000\"). Feel free to use the mapping ranges to add in any unique Identification Numbers. Make sure it does not contain any special characters. Set up a similar name for the sheet name."]
[null,null,null,"d.","Choose if you'd like to protect the sheet, Workbook and/or File. And provide respective password. Remember Protecting the sheet does not allow users to make changes to the sheet; protecting the workbook does not allow the user to change the structure of the workbook. And protecting the file does not allow the user to view the content of the workbook without keying in the correct password."]
[null,null,null,"e.","Excel usually prompts the user to replace the file if a file with the sam name already exists. Setting the 'Replace Without Prompt' option to 'Yes' will suppress the prompt and replace existing files."]
[null,null,null,"f.","Click the browse button to specify where the output files should be saved. If left blank, the files would be saved along with this workbook."]
[null,null,null,"g.","Hit the 'Reset' button to bring back the default options."]
[]
[null,null,"Step 4 :","Hit the Export Button"]

{"sheet":"Data","index":1,"n_rows":12,"n_cols":504,"rows_kept":12,"cut":false,"hidden":false,"merged":[[1,1,1,503]]}
[]
[null,"Records"]
[]
[]
[]
[]
[]
[null,"Field Number",null,"InputNumber",1,2,3,4,5,6,7,8,9,10,11,12,13,14,15,16,17,18,19,20,21,22,23,24,25,26,27,28,29,30,31,32,33,34,35,36,37,38,39,40,41,42,43,44,45,46,47,48,49,50,51,52,53,54,55,56,57,58,59,60,61,62,63,64,65,66,67,68,69,70,71,72,73,74,75,76,77,78,79,80,81,82,83,84,85,86,87,88,89,90,91,92,93,94,95,96,97,98,99,100,101,102,103,104,105,106,107,108,109,110,111,112,113,114,115,116,117,118,119,120,121,122,123,124,125,126,127,128,129,130,131,132,133,134,135,136,137,138,139,140,141,142,143,144,145,146,147,148,149,150,151,152,153,154,155,156,157,158,159,160,161,162,163,164,165,166,167,168,169,170,171,172,173,174,175,176,177,178,179,180,181,182,183,184,185,186,187,188,189,190,191,192,193,194,195,196,197,198,199,200,201,202,203,204,205,206,207,208,209,210,211,212,213,214,215,216,217,218,219,220,221,222,223,224,225,226,227,228,229,230,231,232,233,234,235,236,237,238,239,240,241,242,243,244,245,246,247,248,249,250,251,252,253,254,255,256,257,258,259,260,261,262,263,264,265,266,267,268,269,270,271,272,273,274,275,276,277,278,279,280,281,282,283,284,285,286,287,288,289,290,291,292,293,294,295,296,297,298,299,300,301,302,303,304,305,306,307,308,309,310,311,312,313,314,315,316,317,318,319,320,321,322,323,324,325,326,327,328,329,330,331,332,333,334,335,336,337,338,339,340,341,342,343,344,345,346,347,348,349,350,351,352,353,354,355,356,357,358,359,360,361,362,363,364,365,366,367,368,369,370,371,372,373,374,375,376,377,378,379,380,381,382,383,384,385,386,387,388,389,390,391,392,393,394,395,396,397,398,399,400,401,402,403,404,405,406,407,408,409,410,411,412,413,414,415,416,417,418,419,420,421,422,423,424,425,426,427,428,429,430,431,432,433,434,435,436,437,438,439,440,441,442,443,444,445,446,447,448,449,450,451,452,453,454,455,456,457,458,459,460,461,462,463,464,465,466,467,468,469,470,471,472,473,474,475,476,477,478,479,480,481,482,483,484,485,486,487,488,489,490,491,492,493,494,495,496,497,498,499,500]
[null,"Field Names",null,"InputDesc"]
[]
[null,"Records","Blank_001","Blank_002","Input_001","Input_002","Input_003","Input_004","Input_005","Input_006","Input_007","Input_008","Input_009","Input_010","Input_011","Input_012","Input_013","Input_014","Input_015","Input_016","Input_017","Input_018","Input_019","Input_020","Input_021","Input_022","Input_023","Input_024","Input_025","Input_026","Input_027","Input_028","Input_029","Input_030","Input_031","Input_032","Input_033","Input_034","Input_035","Input_036","Input_037","Input_038","Input_039","Input_040","Input_041","Input_042","Input_043","Input_044","Input_045","Input_046","Input_047","Input_048","Input_049","Input_050","Input_051","Input_052","Input_053","Input_054","Input_055","Input_056","Input_057","Input_058","Input_059","Input_060","Input_061","Input_062","Input_063","Input_064","Input_065","Input_066","Input_067","Input_068","Input_069","Input_070","Input_071","Input_072","Input_073","Input_074","Input_075","Input_076","Input_077","Input_078","Input_079","Input_080","Input_081","Input_082","Input_083","Input_084","Input_085","Input_086","Input_087","Input_088","Input_089","Input_090","Input_091","Input_092","Input_093","Input_094","Input_095","Input_096","Input_097","Input_098","Input_099","Input_100","Input_101","Input_102","Input_103","Input_104","Input_105","Input_106","Input_107","Input_108","Input_109","Input_110","Input_111","Input_112","Input_113","Input_114","Input_115","Input_116","Input_117","Input_118","Input_119","Input_120","Input_121","Input_122","Input_123","Input_124","Input_125","Input_126","Input_127","Input_128","Input_129","Input_130","Input_131","Input_132","Input_133","Input_134","Input_135","Input_136","Input_137","Input_138","Input_139","Input_140","Input_141","Input_142","Input_143","Input_144","Input_145","Input_146","Input_147","Input_148","Input_149","Input_150","Input_151","Input_152","Input_153","Input_154","Input_155","Input_156","Input_157","Input_158","Input_159","Input_160","Input_161","Input_162","Input_163","Input_164","Input_165","Input_166","Input_167","Input_168","Input_169","Input_170","Input_171","Input_172","Input_173","Input_174","Input_175","Input_176","Input_177","Input_178","Input_179","Input_180","Input_181","Input_182","Input_183","Input_184","Input_185","Input_186","Input_187","Input_188","Input_189","Input_190","Input_191","Input_192","Input_193","Input_194","Input_195","Input_196","Input_197","Input_198","Input_199","Input_200","Input_201","Input_202","Input_203","Input_204","Input_205","Input_206","Input_207","Input_208","Input_209","Input_210","Input_211","Input_212","Input_213","Input_214","Input_215","Input_216","Input_217","Input_218","Input_219","Input_220","Input_221","Input_222","Input_223","Input_224","Input_225","Input_226","Input_227","Input_228","Input_229","Input_230","Input_231","Input_232","Input_233","Input_234","Input_235","Input_236","Input_237","Input_238","Input_239","Input_240","Input_241","Input_242","Input_243","Input_244","Input_245","Input_246","Input_247","Input_248","Input_249","Input_250","Input_251","Input_252","Input_253","Input_254","Input_255","Input_256","Input_257","Input_258","Input_259","Input_260","Input_261","Input_262","Input_263","Input_264","Input_265","Input_266","Input_267","Input_268","Input_269","Input_270","Input_271","Input_272","Input_273","Input_274","Input_275","Input_276","Input_277","Input_278","Input_279","Input_280","Input_281","Input_282","Input_283","Input_284","Input_285","Input_286","Input_287","Input_288","Input_289","Input_290","Input_291","Input_292","Input_293","Input_294","Input_295","Input_296","Input_297","Input_298","Input_299","Input_300","Input_301","Input_302","Input_303","Input_304","Input_305","Input_306","Input_307","Input_308","Input_309","Input_310","Input_311","Input_312","Input_313","Input_314","Input_315","Input_316","Input_317","Input_318","Input_319","Input_320","Input_321","Input_322","Input_323","Input_324","Input_325","Input_326","Input_327","Input_328","Input_329","Input_330","Input_331","Input_332","Input_333","Input_334","Input_335","Input_336","Input_337","Input_338","Input_339","Input_340","Input_341","Input_342","Input_343","Input_344","Input_345","Input_346","Input_347","Input_348","Input_349","Input_350","Input_351","Input_352","Input_353","Input_354","Input_355","Input_356","Input_357","Input_358","Input_359","Input_360","Input_361","Input_362","Input_363","Input_364","Input_365","Input_366","Input_367","Input_368","Input_369","Input_370","Input_371","Input_372","Input_373","Input_374","Input_375","Input_376","Input_377","Input_378","Input_379","Input_380","Input_381","Input_382","Input_383","Input_384","Input_385","Input_386","Input_387","Input_388","Input_389","Input_390","Input_391","Input_392","Input_393","Input_394","Input_395","Input_396","Input_397","Input_398","Input_399","Input_400","Input_401","Input_402","Input_403","Input_404","Input_405","Input_406","Input_407","Input_408","Input_409","Input_410","Input_411","Input_412","Input_413","Input_414","Input_415","Input_416","Input_417","Input_418","Input_419","Input_420","Input_421","Input_422","Input_423","Input_424","Input_425","Input_426","Input_427","Input_428","Input_429","Input_430","Input_431","Input_432","Input_433","Input_434","Input_435","Input_436","Input_437","Input_438","Input_439","Input_440","Input_441","Input_442","Input_443","Input_444","Input_445","Input_446","Input_447","Input_448","Input_449","Input_450","Input_451","Input_452","Input_453","Input_454","Input_455","Input_456","Input_457","Input_458","Input_459","Input_460","Input_461","Input_462","Input_463","Input_464","Input_465","Input_466","Input_467","Input_468","Input_469","Input_470","Input_471","Input_472","Input_473","Input_474","Input_475","Input_476","Input_477","Input_478","Input_479","Input_480","Input_481","Input_482","Input_483","Input_484","Input_485","Input_486","Input_487","Input_488","Input_489","Input_490","Input_491","Input_492","Input_493","Input_494","Input_495","Input_496","Input_497","Input_498","Input_499","Input_500"]
[null,1]

{"sheet":"Mapping","index":2,"n_rows":527,"n_cols":6,"rows_kept":527,"cut":false,"hidden":false,"merged":[[1,1,1,5],[3,1,3,2],[4,1,4,2],[5,1,5,2],[6,1,6,2],[7,1,7,2],[8,1,8,2],[9,1,9,2],[10,1,10,2],[11,1,11,2],[12,1,12,2],[13,1,13,2],[14,1,14,2],[15,1,15,2],[16,1,16,2]]}
[]
[null,"Preferences and Mapping"]
[]
[null,"Start Record",null,null,"StartRecord",1]
[null,"End Record",null,null,"EndRecord",1]
[null,"Print to Default Printer",null,null,"PrintAll","No"]
[null,"Tab Name Tag",null,null,"TabName",{"$f":"\"Record_\"&TEXT(RecordNumber,\"0000\")","v":"Record_0001"}]
[null,"File Name Tag",null,null,"FileName",{"$f":"\"Record - \"&TEXT(RecordNumber,\"0000\")","v":"Record - 0001"}]
[null,"Protect Sheet",null,null,"ProtectSheet","No"]
[null,"Protect Sheet Password",null,null,"SheetPassword"]
[null,"Protect Workbook Content",null,null,"ProtectBook","No"]
[null,"Protect Workbook Password",null,null,"BookPassword"]
[null,"Password Protect File",null,null,"ProtectFile","No"]
[null,"Protect File Password",null,null,"FilePassword"]
[null,"Replace Without Prompt",null,null,"ReplacePrompt","Yes"]
[null,"Output Folder Path",null,null,"FolderPath"]
[null,"Current Record Number",null,null,"RecordNumber",1]
[]
[]
[]
[]
[]
[]
[]
[null,"Field Number","Field Names",null,null,"Current Value"]
[]
[null,"Input","InputDescription",null,"Blank_001","CurrentValue"]
[null,1,{"$f":"IF(ISBLANK(INDEX(Data!InputDesc,Input)),\"\",INDEX(Data!InputDesc,Input))","v":""},null,"Input_001",{"$f":"IF(InputDescription=\"\",\"\",IF(OR(ISBLANK(INDEX(Data!Input_001,RecordNumber)),ISERR(INDEX(Data!Input_001,RecordNumber))),\"\",INDEX(Data!Input_001,RecordNumber)))","v":""}]
[null,2,{"$f":"IF(ISBLANK(INDEX(Data!InputDesc,Input)),\"\",INDEX(Data!InputDesc,Input))","v":""},null,"Input_002",{"$f":"IF(InputDescription=\"\",\"\",IF(OR(ISBLANK(INDEX(Data!Input_002,RecordNumber)),ISERR(INDEX(Data!Input_002,RecordNumber))),\"\",INDEX(Data!Input_002,RecordNumber)))","v":""}]
[null,3,{"$f":"IF(ISBLANK(INDEX(Data!InputDesc,Input)),\"\",INDEX(Data!InputDesc,Input))","v":""},null,"Input_003",{"$f":"IF(InputDescription=\"\",\"\",IF(OR(ISBLANK(INDEX(Data!Input_003,RecordNumber)),ISERR(INDEX(Data!Input_003,RecordNumber))),\"\",INDEX(Data!Input_003,RecordNumber)))","v":""}]
[null,4,{"$f":"IF(ISBLANK(INDEX(Data!InputDesc,Input)),\"\",INDEX(Data!InputDesc,Input))","v":""},null,"Input_004",{"$f":"IF(InputDescription=\"\",\"\",IF(OR(ISBLANK(INDEX(Data!Input_004,RecordNumber)),ISERR(INDEX(Data!Input_004,RecordNumber))),\"\",INDEX(Data!Input_004,RecordNumber)))","v":""}]
[null,5,{"$f":"IF(ISBLANK(INDEX(Data!InputDesc,Input)),\"\",INDEX(Data!InputDesc,Input))","v":""},null,"Input_005",{"$f":"IF(InputDescription=\"\",\"\",IF(OR(ISBLANK(INDEX(Data!Input_005,RecordNumber)),ISERR(INDEX(Data!Input_005,RecordNumber))),\"\",INDEX(Data!Input_005,RecordNumber)))","v":""}]
[null,6,{"$f":"IF(ISBLANK(INDEX(Data!InputDesc,Input)),\"\",INDEX(Data!InputDesc,Input))","v":""},null,"Input_006",{"$f":"IF(InputDescription=\"\",\"\",IF(OR(ISBLANK(INDEX(Data!Input_006,RecordNumber)),ISERR(INDEX(Data!Input_006,RecordNumber))),\"\",INDEX(Data!Input_006,RecordNumber)))","v":""}]
[null,7,{"$f":"IF(ISBLANK(INDEX(Data!InputDesc,Input)),\"\",INDEX(Data!InputDesc,Input))","v":""},null,"Input_007",{"$f":"IF(InputDescription=\"\",\"\",IF(OR(ISBLANK(INDEX(Data!Input_007,RecordNumber)),ISERR(INDEX(Data!Input_007,RecordNumber))),\"\",INDEX(Data!Input_007,RecordNumber)))","v":""}]
[null,8,{"$f":"IF(ISBLANK(INDEX(Data!InputDesc,Input)),\"\",INDEX(Data!InputDesc,Input))","v":""},null,"Input_008",{"$f":"IF(InputDescription=\"\",\"\",IF(OR(ISBLANK(INDEX(Data!Input_008,RecordNumber)),ISERR(INDEX(Data!Input_008,RecordNumber))),\"\",INDEX(Data!Input_008,RecordNumber)))","v":""}]
[null,9,{"$f":"IF(ISBLANK(INDEX(Data!InputDesc,Input)),\"\",INDEX(Data!InputDesc,Input))","v":""},null,"Input_009",{"$f":"IF(InputDescription=\"\",\"\",IF(OR(ISBLANK(INDEX(Data!Input_009,RecordNumber)),ISERR(INDEX(Data!Input_009,RecordNumber))),\"\",INDEX(Data!Input_009,RecordNumber)))","v":""}]
[null,10,{"$f":"IF(ISBLANK(INDEX(Data!InputDesc,Input)),\"\",INDEX(Data!InputDesc,Input))","v":""},null,"Input_010",{"$f":"IF(InputDescription=\"\",\"\",IF(OR(ISBLANK(INDEX(Data!Input_010,RecordNumber)),ISERR(INDEX(Data!Input_010,RecordNumber))),\"\",INDEX(Data!Input_010,RecordNumber)))","v":""}]
[null,11,{"$f":"IF(ISBLANK(INDEX(Data!InputDesc,Input)),\"\",INDEX(Data!InputDesc,Input))","v":""},null,"Input_011",{"$f":"IF(InputDescription=\"\",\"\",IF(OR(ISBLANK(INDEX(Data!Input_011,RecordNumber)),ISERR(INDEX(Data!Input_011,RecordNumber))),\"\",INDEX(Data!Input_011,RecordNumber)))","v":""}]
[null,12,{"$f":"IF(ISBLANK(INDEX(Data!InputDesc,Input)),\"\",INDEX(Data!InputDesc,Input))","v":""},null,"Input_012",{"$f":"IF(InputDescription=\"\",\"\",IF(OR(ISBLANK(INDEX(Data!Input_012,RecordNumber)),ISERR(INDEX(Data!Input_012,RecordNumber))),\"\",INDEX(Data!Input_012,RecordNumber)))","v":""}]
[null,13,{"$f":"IF(ISBLANK(INDEX(Data!InputDesc,Input)),\"\",INDEX(Data!InputDesc,Input))","v":""},null,"Input_013",{"$f":"IF(InputDescription=\"\",\"\",IF(OR(ISBLANK(INDEX(Data!Input_013,RecordNumber)),ISERR(INDEX(Data!Input_013,RecordNumber))),\"\",INDEX(Data!Input_013,RecordNumber)))","v":""}]
[null,14,{"$f":"IF(ISBLANK(INDEX(Data!InputDesc,Input)),\"\",INDEX(Data!InputDesc,Input))","v":""},null,"Input_014",{"$f":"IF(InputDescription=\"\",\"\",IF(OR(ISBLANK(INDEX(Data!Input_014,RecordNumber)),ISERR(INDEX(Data!Input_014,RecordNumber))),\"\",INDEX(Data!Input_014,RecordNumber)))","v":""}]
[null,15,{"$f":"IF(ISBLANK(INDEX(Data!InputDesc,Input)),\"\",INDEX(Data!InputDesc,Input))","v":""},null,"Input_015",{"$f":"IF(InputDescription=\"\",\"\",IF(OR(ISBLANK(INDEX(Data!Input_015,RecordNumber)),ISERR(INDEX(Data!Input_015,RecordNumber))),\"\",INDEX(Data!Input_015,RecordNumber)))","v":""}]
[null,16,{"$f":"IF(ISBLANK(INDEX(Data!InputDesc,Input)),\"\",INDEX(Data!InputDesc,Input))","v":""},null,"Input_016",{"$f":"IF(InputDescription=\"\",\"\",IF(OR(ISBLANK(INDEX(Data!Input_016,RecordNumber)),ISERR(INDEX(Data!Input_016,RecordNumber))),\"\",INDEX(Data!Input_016,RecordNumber)))","v":""}]
[null,17,{"$f":"IF(ISBLANK(INDEX(Data!InputDesc,Input)),\"\",INDEX(Data!InputDesc,Input))","v":""},null,"Input_017",{"$f":"IF(InputDescription=\"\",\"\",IF(OR(ISBLANK(INDEX(Data!Input_017,RecordNumber)),ISERR(INDEX(Data!Input_017,RecordNumber))),\"\",INDEX(Data!Input_017,RecordNumber)))","v":""}]
[null,18,{"$f":"IF(ISBLANK(INDEX(Data!InputDesc,Input)),\"\",INDEX(Data!InputDesc,Input))","v":""},null,"Input_018",{"$f":"IF(InputDescription=\"\",\"\",IF(OR(ISBLANK(INDEX(Data!Input_018,RecordNumber)),ISERR(INDEX(Data!Input_018,RecordNumber))),\"\",INDEX(Data!Input_018,RecordNumber)))","v":""}]
[null,19,{"$f":"IF(ISBLANK(INDEX(Data!InputDesc,Input)),\"\",INDEX(Data!InputDesc,Input))","v":""},null,"Input_019",{"$f":"IF(InputDescription=\"\",\"\",IF(OR(ISBLANK(INDEX(Data!Input_019,RecordNumber)),ISERR(INDEX(Data!Input_019,RecordNumber))),\"\",INDEX(Data!Input_019,RecordNumber)))","v":""}]
[null,20,{"$f":"IF(ISBLANK(INDEX(Data!InputDesc,Input)),\"\",INDEX(Data!InputDesc,Input))","v":""},null,"Input_020",{"$f":"IF(InputDescription=\"\",\"\",IF(OR(ISBLANK(INDEX(Data!Input_020,RecordNumber)),ISERR(INDEX(Data!Input_020,RecordNumber))),\"\",INDEX(Data!Input_020,RecordNumber)))","v":""}]
[null,21,{"$f":"IF(ISBLANK(INDEX(Data!InputDesc,Input)),\"\",INDEX(Data!InputDesc,Input))","v":""},null,"Input_021",{"$f":"IF(InputDescription=\"\",\"\",IF(OR(ISBLANK(INDEX(Data!Input_021,RecordNumber)),ISERR(INDEX(Data!Input_021,RecordNumber))),\"\",INDEX(Data!Input_021,RecordNumber)))","v":""}]
[null,22,{"$f":"IF(ISBLANK(INDEX(Data!InputDesc,Input)),\"\",INDEX(Data!InputDesc,Input))","v":""},null,"Input_022",{"$f":"IF(InputDescription=\"\",\"\",IF(OR(ISBLANK(INDEX(Data!Input_022,RecordNumber)),ISERR(INDEX(Data!Input_022,RecordNumber))),\"\",INDEX(Data!Input_022,RecordNumber)))","v":""}]
[null,23,{"$f":"IF(ISBLANK(INDEX(Data!InputDesc,Input)),\"\",INDEX(Data!InputDesc,Input))","v":""},null,"Input_023",{"$f":"IF(InputDescription=\"\",\"\",IF(OR(ISBLANK(INDEX(Data!Input_023,RecordNumber)),ISERR(INDEX(Data!Input_023,RecordNumber))),\"\",INDEX(Data!Input_023,RecordNumber)))","v":""}]
[null,24,{"$f":"IF(ISBLANK(INDEX(Data!InputDesc,Input)),\"\",INDEX(Data!InputDesc,Input))","v":""},null,"Input_024",{"$f":"IF(InputDescription=\"\",\"\",IF(OR(ISBLANK(INDEX(Data!Input_024,RecordNumber)),ISERR(INDEX(Data!Input_024,RecordNumber))),\"\",INDEX(Data!Input_024,RecordNumber)))","v":""}]
[null,25,{"$f":"IF(ISBLANK(INDEX(Data!InputDesc,Input)),\"\",INDEX(Data!InputDesc,Input))","v":""},null,"Input_025",{"$f":"IF(InputDescription=\"\",\"\",IF(OR(ISBLANK(INDEX(Data!Input_025,RecordNumber)),ISERR(INDEX(Data!Input_025,RecordNumber))),\"\",INDEX(Data!Input_025,RecordNumber)))","v":""}]
[null,26,{"$f":"IF(ISBLANK(INDEX(Data!InputDesc,Input)),\"\",INDEX(Data!InputDesc,Input))","v":""},null,"Input_026",{"$f":"IF(InputDescription=\"\",\"\",IF(OR(ISBLANK(INDEX(Data!Input_026,RecordNumber)),ISERR(INDEX(Data!Input_026,RecordNumber))),\"\",INDEX(Data!Input_026,RecordNumber)))","v":""}]
[null,27,{"$f":"IF(ISBLANK(INDEX(Data!InputDesc,Input)),\"\",INDEX(Data!InputDesc,Input))","v":""},null,"Input_027",{"$f":"IF(InputDescription=\"\",\"\",IF(OR(ISBLANK(INDEX(Data!Input_027,RecordNumber)),ISERR(INDEX(Data!Input_027,RecordNumber))),\"\",INDEX(Data!Input_027,RecordNumber)))","v":""}]
[null,28,{"$f":"IF(ISBLANK(INDEX(Data!InputDesc,Input)),\"\",INDEX(Data!InputDesc,Input))","v":""},null,"Input_028",{"$f":"IF(InputDescription=\"\",\"\",IF(OR(ISBLANK(INDEX(Data!Input_028,RecordNumber)),ISERR(INDEX(Data!Input_028,RecordNumber))),\"\",INDEX(Data!Input_028,RecordNumber)))","v":""}]
[null,29,{"$f":"IF(ISBLANK(INDEX(Data!InputDesc,Input)),\"\",INDEX(Data!InputDesc,Input))","v":""},null,"Input_029",{"$f":"IF(InputDescription=\"\",\"\",IF(OR(ISBLANK(INDEX(Data!Input_029,RecordNumber)),ISERR(INDEX(Data!Input_029,RecordNumber))),\"\",INDEX(Data!Input_029,RecordNumber)))","v":""}]
[null,30,{"$f":"IF(ISBLANK(INDEX(Data!InputDesc,Input)),\"\",INDEX(Data!InputDesc,Input))","v":""},null,"Input_030",{"$f":"IF(InputDescription=\"\",\"\",IF(OR(ISBLANK(INDEX(Data!Input_030,RecordNumber)),ISERR(INDEX(Data!Input_030,RecordNumber))),\"\",INDEX(Data!Input_030,RecordNumber)))","v":""}]
[null,31,{"$f":"IF(ISBLANK(INDEX(Data!InputDesc,Input)),\"\",INDEX(Data!InputDesc,Input))","v":""},null,"Input_031",{"$f":"IF(InputDescription=\"\",\"\",IF(OR(ISBLANK(INDEX(Data!Input_031,RecordNumber)),ISERR(INDEX(Data!Input_031,RecordNumber))),\"\",INDEX(Data!Input_031,RecordNumber)))","v":""}]
[null,32,{"$f":"IF(ISBLANK(INDEX(Data!InputDesc,Input)),\"\",INDEX(Data!InputDesc,Input))","v":""},null,"Input_032",{"$f":"IF(InputDescription=\"\",\"\",IF(OR(ISBLANK(INDEX(Data!Input_032,RecordNumber)),ISERR(INDEX(Data!Input_032,RecordNumber))),\"\",INDEX(Data!Input_032,RecordNumber)))","v":""}]
[null,33,{"$f":"IF(ISBLANK(INDEX(Data!InputDesc,Input)),\"\",INDEX(Data!InputDesc,Input))","v":""},null,"Input_033",{"$f":"IF(InputDescription=\"\",\"\",IF(OR(ISBLANK(INDEX(Data!Input_033,RecordNumber)),ISERR(INDEX(Data!Input_033,RecordNumber))),\"\",INDEX(Data!Input_033,RecordNumber)))","v":""}]
[null,34,{"$f":"IF(ISBLANK(INDEX(Data!InputDesc,Input)),\"\",INDEX(Data!InputDesc,Input))","v":""},null,"Input_034",{"$f":"IF(InputDescription=\"\",\"\",IF(OR(ISBLANK(INDEX(Data!Input_034,RecordNumber)),ISERR(INDEX(Data!Input_034,RecordNumber))),\"\",INDEX(Data!Input_034,RecordNumber)))","v":""}]
[null,35,{"$f":"IF(ISBLANK(INDEX(Data!InputDesc,Input)),\"\",INDEX(Data!InputDesc,Input))","v":""},null,"Input_035",{"$f":"IF(InputDescription=\"\",\"\",IF(OR(ISBLANK(INDEX(Data!Input_035,RecordNumber)),ISERR(INDEX(Data!Input_035,RecordNumber))),\"\",INDEX(Data!Input_035,RecordNumber)))","v":""}]
[null,36,{"$f":"IF(ISBLANK(INDEX(Data!InputDesc,Input)),\"\",INDEX(Data!InputDesc,Input))","v":""},null,"Input_036",{"$f":"IF(InputDescription=\"\",\"\",IF(OR(ISBLANK(INDEX(Data!Input_036,RecordNumber)),ISERR(INDEX(Data!Input_036,RecordNumber))),\"\",INDEX(Data!Input_036,RecordNumber)))","v":""}]
[null,37,{"$f":"IF(ISBLANK(INDEX(Data!InputDesc,Input)),\"\",INDEX(Data!InputDesc,Input))","v":""},null,"Input_037",{"$f":"IF(InputDescription=\"\",\"\",IF(OR(ISBLANK(INDEX(Data!Input_037,RecordNumber)),ISERR(INDEX(Data!Input_037,RecordNumber))),\"\",INDEX(Data!Input_037,RecordNumber)))","v":""}]
[null,38,{"$f":"IF(ISBLANK(INDEX(Data!InputDesc,Input)),\"\",INDEX(Data!InputDesc,Input))","v":""},null,"Input_038",{"$f":"IF(InputDescription=\"\",\"\",IF(OR(ISBLANK(INDEX(Data!Input_038,RecordNumber)),ISERR(INDEX(Data!Input_038,RecordNumber))),\"\",INDEX(Data!Input_038,RecordNumber)))","v":""}]
[null,39,{"$f":"IF(ISBLANK(INDEX(Data!InputDesc,Input)),\"\",INDEX(Data!InputDesc,Input))","v":""},null,"Input_039",{"$f":"IF(InputDescription=\"\",\"\",IF(OR(ISBLANK(INDEX(Data!Input_039,RecordNumber)),ISERR(INDEX(Data!Input_039,RecordNumber))),\"\",INDEX(Data!Input_039,RecordNumber)))","v":""}]
[null,40,{"$f":"IF(ISBLANK(INDEX(Data!InputDesc,Input)),\"\",INDEX(Data!InputDesc,Input))","v":""},null,"Input_040",{"$f":"IF(InputDescription=\"\",\"\",IF(OR(ISBLANK(INDEX(Data!Input_040,RecordNumber)),ISERR(INDEX(Data!Input_040,RecordNumber))),\"\",INDEX(Data!Input_040,RecordNumber)))","v":""}]
[null,41,{"$f":"IF(ISBLANK(INDEX(Data!InputDesc,Input)),\"\",INDEX(Data!InputDesc,Input))","v":""},null,"Input_041",{"$f":"IF(InputDescription=\"\",\"\",IF(OR(ISBLANK(INDEX(Data!Input_041,RecordNumber)),ISERR(INDEX(Data!Input_041,RecordNumber))),\"\",INDEX(Data!Input_041,RecordNumber)))","v":""}]
[null,42,{"$f":"IF(ISBLANK(INDEX(Data!InputDesc,Input)),\"\",INDEX(Data!InputDesc,Input))","v":""},null,"Input_042",{"$f":"IF(InputDescription=\"\",\"\",IF(OR(ISBLANK(INDEX(Data!Input_042,RecordNumber)),ISERR(INDEX(Data!Input_042,RecordNumber))),\"\",INDEX(Data!Input_042,RecordNumber)))","v":""}]
[null,43,{"$f":"IF(ISBLANK(INDEX(Data!InputDesc,Input)),\"\",INDEX(Data!InputDesc,Input))","v":""},null,"Input_043",{"$f":"IF(InputDescription=\"\",\"\",IF(OR(ISBLANK(INDEX(Data!Input_043,RecordNumber)),ISERR(INDEX(Data!Input_043,RecordNumber))),\"\",INDEX(Data!Input_043,RecordNumber)))","v":""}]
[null,44,{"$f":"IF(ISBLANK(INDEX(Data!InputDesc,Input)),\"\",INDEX(Data!InputDesc,Input))","v":""},null,"Input_044",{"$f":"IF(InputDescription=\"\",\"\",IF(OR(ISBLANK(INDEX(Data!Input_044,RecordNumber)),ISERR(INDEX(Data!Input_044,RecordNumber))),\"\",INDEX(Data!Input_044,RecordNumber)))","v":""}]
[null,45,{"$f":"IF(ISBLANK(INDEX(Data!InputDesc,Input)),\"\",INDEX(Data!InputDesc,Input))","v":""},null,"Input_045",{"$f":"IF(InputDescription=\"\",\"\",IF(OR(ISBLANK(INDEX(Data!Input_045,RecordNumber)),ISERR(INDEX(Data!Input_045,RecordNumber))),\"\",INDEX(Data!Input_045,RecordNumber)))","v":""}]
[null,46,{"$f":"IF(ISBLANK(INDEX(Data!InputDesc,Input)),\"\",INDEX(Data!InputDesc,Input))","v":""},null,"Input_046",{"$f":"IF(InputDescription=\"\",\"\",IF(OR(ISBLANK(INDEX(Data!Input_046,RecordNumber)),ISERR(INDEX(Data!Input_046,RecordNumber))),\"\",INDEX(Data!Input_046,RecordNumber)))","v":""}]
[null,47,{"$f":"IF(ISBLANK(INDEX(Data!InputDesc,Input)),\"\",INDEX(Data!InputDesc,Input))","v":""},null,"Input_047",{"$f":"IF(InputDescription=\"\",\"\",IF(OR(ISBLANK(INDEX(Data!Input_047,RecordNumber)),ISERR(INDEX(Data!Input_047,RecordNumber))),\"\",INDEX(Data!Input_047,RecordNumber)))","v":""}]
[null,48,{"$f":"IF(ISBLANK(INDEX(Data!InputDesc,Input)),\"\",INDEX(Data!InputDesc,Input))","v":""},null,"Input_048",{"$f":"IF(InputDescription=\"\",\"\",IF(OR(ISBLANK(INDEX(Data!Input_048,RecordNumber)),ISERR(INDEX(Data!Input_048,RecordNumber))),\"\",INDEX(Data!Input_048,RecordNumber)))","v":""}]
[null,49,{"$f":"IF(ISBLANK(INDEX(Data!InputDesc,Input)),\"\",INDEX(Data!InputDesc,Input))","v":""},null,"Input_049",{"$f":"IF(InputDescription=\"\",\"\",IF(OR(ISBLANK(INDEX(Data!Input_049,RecordNumber)),ISERR(INDEX(Data!Input_049,RecordNumber))),\"\",INDEX(Data!Input_049,RecordNumber)))","v":""}]
[null,50,{"$f":"IF(ISBLANK(INDEX(Data!InputDesc,Input)),\"\",INDEX(Data!InputDesc,Input))","v":""},null,"Input_050",{"$f":"IF(InputDescription=\"\",\"\",IF(OR(ISBLANK(INDEX(Data!Input_050,RecordNumber)),ISERR(INDEX(Data!Input_050,RecordNumber))),\"\",INDEX(Data!Input_050,RecordNumber)))","v":""}]
[null,51,{"$f":"IF(ISBLANK(INDEX(Data!InputDesc,Input)),\"\",INDEX(Data!InputDesc,Input))","v":""},null,"Input_051",{"$f":"IF(InputDescription=\"\",\"\",IF(OR(ISBLANK(INDEX(Data!Input_051,RecordNumber)),ISERR(INDEX(Data!Input_051,RecordNumber))),\"\",INDEX(Data!Input_051,RecordNumber)))","v":""}]
[null,52,{"$f":"IF(ISBLANK(INDEX(Data!InputDesc,Input)),\"\",INDEX(Data!InputDesc,Input))","v":""},null,"Input_052",{"$f":"IF(InputDescription=\"\",\"\",IF(OR(ISBLANK(INDEX(Data!Input_052,RecordNumber)),ISERR(INDEX(Data!Input_052,RecordNumber))),\"\",INDEX(Data!Input_052,RecordNumber)))","v":""}]
[null,53,{"$f":"IF(ISBLANK(INDEX(Data!InputDesc,Input)),\"\",INDEX(Data!InputDesc,Input))","v":""},null,"Input_053",{"$f":"IF(InputDescription=\"\",\"\",IF(OR(ISBLANK(INDEX(Data!Input_053,RecordNumber)),ISERR(INDEX(Data!Input_053,RecordNumber))),\"\",INDEX(Data!Input_053,RecordNumber)))","v":""}]
[null,54,{"$f":"IF(ISBLANK(INDEX(Data!InputDesc,Input)),\"\",INDEX(Data!InputDesc,Input))","v":""},null,"Input_054",{"$f":"IF(InputDescription=\"\",\"\",IF(OR(ISBLANK(INDEX(Data!Input_054,RecordNumber)),ISERR(INDEX(Data!Input_054,RecordNumber))),\"\",INDEX(Data!Input_054,RecordNumber)))","v":""}]
[null,55,{"$f":"IF(ISBLANK(INDEX(Data!InputDesc,Input)),\"\",INDEX(Data!InputDesc,Input))","v":""},null,"Input_055",{"$f":"IF(InputDescription=\"\",\"\",IF(OR(ISBLANK(INDEX(Data!Input_055,RecordNumber)),ISERR(INDEX(Data!Input_055,RecordNumber))),\"\",INDEX(Data!Input_055,RecordNumber)))","v":""}]
[null,56,{"$f":"IF(ISBLANK(INDEX(Data!InputDesc,Input)),\"\",INDEX(Data!InputDesc,Input))","v":""},null,"Input_056",{"$f":"IF(InputDescription=\"\",\"\",IF(OR(ISBLANK(INDEX(Data!Input_056,RecordNumber)),ISERR(INDEX(Data!Input_056,RecordNumber))),\"\",INDEX(Data!Input_056,RecordNumber)))","v":""}]
[null,57,{"$f":"IF(ISBLANK(INDEX(Data!InputDesc,Input)),\"\",INDEX(Data!InputDesc,Input))","v":""},null,"Input_057",{"$f":"IF(InputDescription=\"\",\"\",IF(OR(ISBLANK(INDEX(Data!Input_057,RecordNumber)),ISERR(INDEX(Data!Input_057,RecordNumber))),\"\",INDEX(Data!Input_057,RecordNumber)))","v":""}]
[null,58,{"$f":"IF(ISBLANK(INDEX(Data!InputDesc,Input)),\"\",INDEX(Data!InputDesc,Input))","v":""},null,"Input_058",{"$f":"IF(InputDescription=\"\",\"\",IF(OR(ISBLANK(INDEX(Data!Input_058,RecordNumber)),ISERR(INDEX(Data!Input_058,RecordNumber))),\"\",INDEX(Data!Input_058,RecordNumber)))","v":""}]
[null,59,{"$f":"IF(ISBLANK(INDEX(Data!InputDesc,Input)),\"\",INDEX(Data!InputDesc,Input))","v":""},null,"Input_059",{"$f":"IF(InputDescription=\"\",\"\",IF(OR(ISBLANK(INDEX(Data!Input_059,RecordNumber)),ISERR(INDEX(Data!Input_059,RecordNumber))),\"\",INDEX(Data!Input_059,RecordNumber)))","v":""}]
[null,60,{"$f":"IF(ISBLANK(INDEX(Data!InputDesc,Input)),\"\",INDEX(Data!InputDesc,Input))","v":""},null,"Input_060",{"$f":"IF(InputDescription=\"\",\"\",IF(OR(ISBLANK(INDEX(Data!Input_060,RecordNumber)),ISERR(INDEX(Data!Input_060,RecordNumber))),\"\",INDEX(Data!Input_060,RecordNumber)))","v":""}]
[null,61,{"$f":"IF(ISBLANK(INDEX(Data!InputDesc,Input)),\"\",INDEX(Data!InputDesc,Input))","v":""},null,"Input_061",{"$f":"IF(InputDescription=\"\",\"\",IF(OR(ISBLANK(INDEX(Data!Input_061,RecordNumber)),ISERR(INDEX(Data!Input_061,RecordNumber))),\"\",INDEX(Data!Input_061,RecordNumber)))","v":""}]
[null,62,{"$f":"IF(ISBLANK(INDEX(Data!InputDesc,Input)),\"\",INDEX(Data!InputDesc,Input))","v":""},null,"Input_062",{"$f":"IF(InputDescription=\"\",\"\",IF(OR(ISBLANK(INDEX(Data!Input_062,RecordNumber)),ISERR(INDEX(Data!Input_062,RecordNumber))),\"\",INDEX(Data!Input_062,RecordNumber)))","v":""}]
[null,63,{"$f":"IF(ISBLANK(INDEX(Data!InputDesc,Input)),\"\",INDEX(Data!InputDesc,Input))","v":""},null,"Input_063",{"$f":"IF(InputDescription=\"\",\"\",IF(OR(ISBLANK(INDEX(Data!Input_063,RecordNumber)),ISERR(INDEX(Data!Input_063,RecordNumber))),\"\",INDEX(Data!Input_063,RecordNumber)))","v":""}]
[null,64,{"$f":"IF(ISBLANK(INDEX(Data!InputDesc,Input)),\"\",INDEX(Data!InputDesc,Input))","v":""},null,"Input_064",{"$f":"IF(InputDescription=\"\",\"\",IF(OR(ISBLANK(INDEX(Data!Input_064,RecordNumber)),ISERR(INDEX(Data!Input_064,RecordNumber))),\"\",INDEX(Data!Input_064,RecordNumber)))","v":""}]
[null,65,{"$f":"IF(ISBLANK(INDEX(Data!InputDesc,Input)),\"\",INDEX(Data!InputDesc,Input))","v":""},null,"Input_065",{"$f":"IF(InputDescription=\"\",\"\",IF(OR(ISBLANK(INDEX(Data!Input_065,RecordNumber)),ISERR(INDEX(Data!Input_065,RecordNumber))),\"\",INDEX(Data!Input_065,RecordNumber)))","v":""}]
[null,66,{"$f":"IF(ISBLANK(INDEX(Data!InputDesc,Input)),\"\",INDEX(Data!InputDesc,Input))","v":""},null,"Input_066",{"$f":"IF(InputDescription=\"\",\"\",IF(OR(ISBLANK(INDEX(Data!Input_066,RecordNumber)),ISERR(INDEX(Data!Input_066,RecordNumber))),\"\",INDEX(Data!Input_066,RecordNumber)))","v":""}]
[null,67,{"$f":"IF(ISBLANK(INDEX(Data!InputDesc,Input)),\"\",INDEX(Data!InputDesc,Input))","v":""},null,"Input_067",{"$f":"IF(InputDescription=\"\",\"\",IF(OR(ISBLANK(INDEX(Data!Input_067,RecordNumber)),ISERR(INDEX(Data!Input_067,RecordNumber))),\"\",INDEX(Data!Input_067,RecordNumber)))","v":""}]
[null,68,{"$f":"IF(ISBLANK(INDEX(Data!InputDesc,Input)),\"\",INDEX(Data!InputDesc,Input))","v":""},null,"Input_068",{"$f":"IF(InputDescription=\"\",\"\",IF(OR(ISBLANK(INDEX(Data!Input_068,RecordNumber)),ISERR(INDEX(Data!Input_068,RecordNumber))),\"\",INDEX(Data!Input_068,RecordNumber)))","v":""}]
[null,69,{"$f":"IF(ISBLANK(INDEX(Data!InputDesc,Input)),\"\",INDEX(Data!InputDesc,Input))","v":""},null,"Input_069",{"$f":"IF(InputDescription=\"\",\"\",IF(OR(ISBLANK(INDEX(Data!Input_069,RecordNumber)),ISERR(INDEX(Data!Input_069,RecordNumber))),\"\",INDEX(Data!Input_069,RecordNumber)))","v":""}]
[null,70,{"$f":"IF(ISBLANK(INDEX(Data!InputDesc,Input)),\"\",INDEX(Data!InputDesc,Input))","v":""},null,"Input_070",{"$f":"IF(InputDescription=\"\",\"\",IF(OR(ISBLANK(INDEX(Data!Input_070,RecordNumber)),ISERR(INDEX(Data!Input_070,RecordNumber))),\"\",INDEX(Data!Input_070,RecordNumber)))","v":""}]
[null,71,{"$f":"IF(ISBLANK(INDEX(Data!InputDesc,Input)),\"\",INDEX(Data!InputDesc,Input))","v":""},null,"Input_071",{"$f":"IF(InputDescription=\"\",\"\",IF(OR(ISBLANK(INDEX(Data!Input_071,RecordNumber)),ISERR(INDEX(Data!Input_071,RecordNumber))),\"\",INDEX(Data!Input_071,RecordNumber)))","v":""}]
[null,72,{"$f":"IF(ISBLANK(INDEX(Data!InputDesc,Input)),\"\",INDEX(Data!InputDesc,Input))","v":""},null,"Input_072",{"$f":"IF(InputDescription=\"\",\"\",IF(OR(ISBLANK(INDEX(Data!Input_072,RecordNumber)),ISERR(INDEX(Data!Input_072,RecordNumber))),\"\",INDEX(Data!Input_072,RecordNumber)))","v":""}]
[null,73,{"$f":"IF(ISBLANK(INDEX(Data!InputDesc,Input)),\"\",INDEX(Data!InputDesc,Input))","v":""},null,"Input_073",{"$f":"IF(InputDescription=\"\",\"\",IF(OR(ISBLANK(INDEX(Data!Input_073,RecordNumber)),ISERR(INDEX(Data!Input_073,RecordNumber))),\"\",INDEX(Data!Input_073,RecordNumber)))","v":""}]
[null,74,{"$f":"IF(ISBLANK(INDEX(Data!InputDesc,Input)),\"\",INDEX(Data!InputDesc,Input))","v":""},null,"Input_074",{"$f":"IF(InputDescription=\"\",\"\",IF(OR(ISBLANK(INDEX(Data!Input_074,RecordNumber)),ISERR(INDEX(Data!Input_074,RecordNumber))),\"\",INDEX(Data!Input_074,RecordNumber)))","v":""}]
[null,75,{"$f":"IF(ISBLANK(INDEX(Data!InputDesc,Input)),\"\",INDEX(Data!InputDesc,Input))","v":""},null,"Input_075",{"$f":"IF(InputDescription=\"\",\"\",IF(OR(ISBLANK(INDEX(Data!Input_075,RecordNumber)),ISERR(INDEX(Data!Input_075,RecordNumber))),\"\",INDEX(Data!Input_075,RecordNumber)))","v":""}]
[null,76,{"$f":"IF(ISBLANK(INDEX(Data!InputDesc,Input)),\"\",INDEX(Data!InputDesc,Input))","v":""},null,"Input_076",{"$f":"IF(InputDescription=\"\",\"\",IF(OR(ISBLANK(INDEX(Data!Input_076,RecordNumber)),ISERR(INDEX(Data!Input_076,RecordNumber))),\"\",INDEX(Data!Input_076,RecordNumber)))","v":""}]
[null,77,{"$f":"IF(ISBLANK(INDEX(Data!InputDesc,Input)),\"\",INDEX(Data!InputDesc,Input))","v":""},null,"Input_077",{"$f":"IF(InputDescription=\"\",\"\",IF(OR(ISBLANK(INDEX(Data!Input_077,RecordNumber)),ISERR(INDEX(Data!Input_077,RecordNumber))),\"\",INDEX(Data!Input_077,RecordNumber)))","v":""}]
[null,78,{"$f":"IF(ISBLANK(INDEX(Data!InputDesc,Input)),\"\",INDEX(Data!InputDesc,Input))","v":""},null,"Input_078",{"$f":"IF(InputDescription=\"\",\"\",IF(OR(ISBLANK(INDEX(Data!Input_078,RecordNumber)),ISERR(INDEX(Data!Input_078,RecordNumber))),\"\",INDEX(Data!Input_078,RecordNumber)))","v":""}]
[null,79,{"$f":"IF(ISBLANK(INDEX(Data!InputDesc,Input)),\"\",INDEX(Data!InputDesc,Input))","v":""},null,"Input_079",{"$f":"IF(InputDescription=\"\",\"\",IF(OR(ISBLANK(INDEX(Data!Input_079,RecordNumber)),ISERR(INDEX(Data!Input_079,RecordNumber))),\"\",INDEX(Data!Input_079,RecordNumber)))","v":""}]
[null,80,{"$f":"IF(ISBLANK(INDEX(Data!InputDesc,Input)),\"\",INDEX(Data!InputDesc,Input))","v":""},null,"Input_080",{"$f":"IF(InputDescription=\"\",\"\",IF(OR(ISBLANK(INDEX(Data!Input_080,RecordNumber)),ISERR(INDEX(Data!Input_080,RecordNumber))),\"\",INDEX(Data!Input_080,RecordNumber)))","v":""}]
[null,81,{"$f":"IF(ISBLANK(INDEX(Data!InputDesc,Input)),\"\",INDEX(Data!InputDesc,Input))","v":""},null,"Input_081",{"$f":"IF(InputDescription=\"\",\"\",IF(OR(ISBLANK(INDEX(Data!Input_081,RecordNumber)),ISERR(INDEX(Data!Input_081,RecordNumber))),\"\",INDEX(Data!Input_081,RecordNumber)))","v":""}]
[null,82,{"$f":"IF(ISBLANK(INDEX(Data!InputDesc,Input)),\"\",INDEX(Data!InputDesc,Input))","v":""},null,"Input_082",{"$f":"IF(InputDescription=\"\",\"\",IF(OR(ISBLANK(INDEX(Data!Input_082,RecordNumber)),ISERR(INDEX(Data!Input_082,RecordNumber))),\"\",INDEX(Data!Input_082,RecordNumber)))","v":""}]
[null,83,{"$f":"IF(ISBLANK(INDEX(Data!InputDesc,Input)),\"\",INDEX(Data!InputDesc,Input))","v":""},null,"Input_083",{"$f":"IF(InputDescription=\"\",\"\",IF(OR(ISBLANK(INDEX(Data!Input_083,RecordNumber)),ISERR(INDEX(Data!Input_083,RecordNumber))),\"\",INDEX(Data!Input_083,RecordNumber)))","v":""}]
[null,84,{"$f":"IF(ISBLANK(INDEX(Data!InputDesc,Input)),\"\",INDEX(Data!InputDesc,Input))","v":""},null,"Input_084",{"$f":"IF(InputDescription=\"\",\"\",IF(OR(ISBLANK(INDEX(Data!Input_084,RecordNumber)),ISERR(INDEX(Data!Input_084,RecordNumber))),\"\",INDEX(Data!Input_084,RecordNumber)))","v":""}]
[null,85,{"$f":"IF(ISBLANK(INDEX(Data!InputDesc,Input)),\"\",INDEX(Data!InputDesc,Input))","v":""},null,"Input_085",{"$f":"IF(InputDescription=\"\",\"\",IF(OR(ISBLANK(INDEX(Data!Input_085,RecordNumber)),ISERR(INDEX(Data!Input_085,RecordNumber))),\"\",INDEX(Data!Input_085,RecordNumber)))","v":""}]
[null,86,{"$f":"IF(ISBLANK(INDEX(Data!InputDesc,Input)),\"\",INDEX(Data!InputDesc,Input))","v":""},null,"Input_086",{"$f":"IF(InputDescription=\"\",\"\",IF(OR(ISBLANK(INDEX(Data!Input_086,RecordNumber)),ISERR(INDEX(Data!Input_086,RecordNumber))),\"\",INDEX(Data!Input_086,RecordNumber)))","v":""}]
[null,87,{"$f":"IF(ISBLANK(INDEX(Data!InputDesc,Input)),\"\",INDEX(Data!InputDesc,Input))","v":""},null,"Input_087",{"$f":"IF(InputDescription=\"\",\"\",IF(OR(ISBLANK(INDEX(Data!Input_087,RecordNumber)),ISERR(INDEX(Data!Input_087,RecordNumber))),\"\",INDEX(Data!Input_087,RecordNumber)))","v":""}]
[null,88,{"$f":"IF(ISBLANK(INDEX(Data!InputDesc,Input)),\"\",INDEX(Data!InputDesc,Input))","v":""},null,"Input_088",{"$f":"IF(InputDescription=\"\",\"\",IF(OR(ISBLANK(INDEX(Data!Input_088,RecordNumber)),ISERR(INDEX(Data!Input_088,RecordNumber))),\"\",INDEX(Data!Input_088,RecordNumber)))","v":""}]
[null,89,{"$f":"IF(ISBLANK(INDEX(Data!InputDesc,Input)),\"\",INDEX(Data!InputDesc,Input))","v":""},null,"Input_089",{"$f":"IF(InputDescription=\"\",\"\",IF(OR(ISBLANK(INDEX(Data!Input_089,RecordNumber)),ISERR(INDEX(Data!Input_089,RecordNumber))),\"\",INDEX(Data!Input_089,RecordNumber)))","v":""}]
[null,90,{"$f":"IF(ISBLANK(INDEX(Data!InputDesc,Input)),\"\",INDEX(Data!InputDesc,Input))","v":""},null,"Input_090",{"$f":"IF(InputDescription=\"\",\"\",IF(OR(ISBLANK(INDEX(Data!Input_090,RecordNumber)),ISERR(INDEX(Data!Input_090,RecordNumber))),\"\",INDEX(Data!Input_090,RecordNumber)))","v":""}]
[null,91,{"$f":"IF(ISBLANK(INDEX(Data!InputDesc,Input)),\"\",INDEX(Data!InputDesc,Input))","v":""},null,"Input_091",{"$f":"IF(InputDescription=\"\",\"\",IF(OR(ISBLANK(INDEX(Data!Input_091,RecordNumber)),ISERR(INDEX(Data!Input_091,RecordNumber))),\"\",INDEX(Data!Input_091,RecordNumber)))","v":""}]
[null,92,{"$f":"IF(ISBLANK(INDEX(Data!InputDesc,Input)),\"\",INDEX(Data!InputDesc,Input))","v":""},null,"Input_092",{"$f":"IF(InputDescription=\"\",\"\",IF(OR(ISBLANK(INDEX(Data!Input_092,RecordNumber)),ISERR(INDEX(Data!Input_092,RecordNumber))),\"\",INDEX(Data!Input_092,RecordNumber)))","v":""}]
[null,93,{"$f":"IF(ISBLANK(INDEX(Data!InputDesc,Input)),\"\",INDEX(Data!InputDesc,Input))","v":""},null,"Input_093",{"$f":"IF(InputDescription=\"\",\"\",IF(OR(ISBLANK(INDEX(Data!Input_093,RecordNumber)),ISERR(INDEX(Data!Input_093,RecordNumber))),\"\",INDEX(Data!Input_093,RecordNumber)))","v":""}]
[null,94,{"$f":"IF(ISBLANK(INDEX(Data!InputDesc,Input)),\"\",INDEX(Data!InputDesc,Input))","v":""},null,"Input_094",{"$f":"IF(InputDescription=\"\",\"\",IF(OR(ISBLANK(INDEX(Data!Input_094,RecordNumber)),ISERR(INDEX(Data!Input_094,RecordNumber))),\"\",INDEX(Data!Input_094,RecordNumber)))","v":""}]
[null,95,{"$f":"IF(ISBLANK(INDEX(Data!InputDesc,Input)),\"\",INDEX(Data!InputDesc,Input))","v":""},null,"Input_095",{"$f":"IF(InputDescription=\"\",\"\",IF(OR(ISBLANK(INDEX(Data!Input_095,RecordNumber)),ISERR(INDEX(Data!Input_095,RecordNumber))),\"\",INDEX(Data!Input_095,RecordNumber)))","v":""}]
[null,96,{"$f":"IF(ISBLANK(INDEX(Data!InputDesc,Input)),\"\",INDEX(Data!InputDesc,Input))","v":""},null,"Input_096",{"$f":"IF(InputDescription=\"\",\"\",IF(OR(ISBLANK(INDEX(Data!Input_096,RecordNumber)),ISERR(INDEX(Data!Input_096,RecordNumber))),\"\",INDEX(Data!Input_096,RecordNumber)))","v":""}]
[null,97,{"$f":"IF(ISBLANK(INDEX(Data!InputDesc,Input)),\"\",INDEX(Data!InputDesc,Input))","v":""},null,"Input_097",{"$f":"IF(InputDescription=\"\",\"\",IF(OR(ISBLANK(INDEX(Data!Input_097,RecordNumber)),ISERR(INDEX(Data!Input_097,RecordNumber))),\"\",INDEX(Data!Input_097,RecordNumber)))","v":""}]
[null,98,{"$f":"IF(ISBLANK(INDEX(Data!InputDesc,Input)),\"\",INDEX(Data!InputDesc,Input))","v":""},null,"Input_098",{"$f":"IF(InputDescription=\"\",\"\",IF(OR(ISBLANK(INDEX(Data!Input_098,RecordNumber)),ISERR(INDEX(Data!Input_098,RecordNumber))),\"\",INDEX(Data!Input_098,RecordNumber)))","v":""}]
[null,99,{"$f":"IF(ISBLANK(INDEX(Data!InputDesc,Input)),\"\",INDEX(Data!InputDesc,Input))","v":""},null,"Input_099",{"$f":"IF(InputDescription=\"\",\"\",IF(OR(ISBLANK(INDEX(Data!Input_099,RecordNumber)),ISERR(INDEX(Data!Input_099,RecordNumber))),\"\",INDEX(Data!Input_099,RecordNumber)))","v":""}]
[null,100,{"$f":"IF(ISBLANK(INDEX(Data!InputDesc,Input)),\"\",INDEX(Data!InputDesc,Input))","v":""},null,"Input_100",{"$f":"IF(InputDescription=\"\",\"\",IF(OR(ISBLANK(INDEX(Data!Input_100,RecordNumber)),ISERR(INDEX(Data!Input_100,RecordNumber))),\"\",INDEX(Data!Input_100,RecordNumber)))","v":""}]
[null,101,{"$f":"IF(ISBLANK(INDEX(Data!InputDesc,Input)),\"\",INDEX(Data!InputDesc,Input))","v":""},null,"Input_101",{"$f":"IF(InputDescription=\"\",\"\",IF(OR(ISBLANK(INDEX(Data!Input_101,RecordNumber)),ISERR(INDEX(Data!Input_101,RecordNumber))),\"\",INDEX(Data!Input_101,RecordNumber)))","v":""}]
[null,102,{"$f":"IF(ISBLANK(INDEX(Data!InputDesc,Input)),\"\",INDEX(Data!InputDesc,Input))","v":""},null,"Input_102",{"$f":"IF(InputDescription=\"\",\"\",IF(OR(ISBLANK(INDEX(Data!Input_102,RecordNumber)),ISERR(INDEX(Data!Input_102,RecordNumber))),\"\",INDEX(Data!Input_102,RecordNumber)))","v":""}]
[null,103,{"$f":"IF(ISBLANK(INDEX(Data!InputDesc,Input)),\"\",INDEX(Data!InputDesc,Input))","v":""},null,"Input_103",{"$f":"IF(InputDescription=\"\",\"\",IF(OR(ISBLANK(INDEX(Data!Input_103,RecordNumber)),ISERR(INDEX(Data!Input_103,RecordNumber))),\"\",INDEX(Data!Input_103,RecordNumber)))","v":""}]
[null,104,{"$f":"IF(ISBLANK(INDEX(Data!InputDesc,Input)),\"\",INDEX(Data!InputDesc,Input))","v":""},null,"Input_104",{"$f":"IF(InputDescription=\"\",\"\",IF(OR(ISBLANK(INDEX(Data!Input_104,RecordNumber)),ISERR(INDEX(Data!Input_104,RecordNumber))),\"\",INDEX(Data!Input_104,RecordNumber)))","v":""}]
[null,105,{"$f":"IF(ISBLANK(INDEX(Data!InputDesc,Input)),\"\",INDEX(Data!InputDesc,Input))","v":""},null,"Input_105",{"$f":"IF(InputDescription=\"\",\"\",IF(OR(ISBLANK(INDEX(Data!Input_105,RecordNumber)),ISERR(INDEX(Data!Input_105,RecordNumber))),\"\",INDEX(Data!Input_105,RecordNumber)))","v":""}]
[null,106,{"$f":"IF(ISBLANK(INDEX(Data!InputDesc,Input)),\"\",INDEX(Data!InputDesc,Input))","v":""},null,"Input_106",{"$f":"IF(InputDescription=\"\",\"\",IF(OR(ISBLANK(INDEX(Data!Input_106,RecordNumber)),ISERR(INDEX(Data!Input_106,RecordNumber))),\"\",INDEX(Data!Input_106,RecordNumber)))","v":""}]
[null,107,{"$f":"IF(ISBLANK(INDEX(Data!InputDesc,Input)),\"\",INDEX(Data!InputDesc,Input))","v":""},null,"Input_107",{"$f":"IF(InputDescription=\"\",\"\",IF(OR(ISBLANK(INDEX(Data!Input_107,RecordNumber)),ISERR(INDEX(Data!Input_107,RecordNumber))),\"\",INDEX(Data!Input_107,RecordNumber)))","v":""}]
[null,108,{"$f":"IF(ISBLANK(INDEX(Data!InputDesc,Input)),\"\",INDEX(Data!InputDesc,Input))","v":""},null,"Input_108",{"$f":"IF(InputDescription=\"\",\"\",IF(OR(ISBLANK(INDEX(Data!Input_108,RecordNumber)),ISERR(INDEX(Data!Input_108,RecordNumber))),\"\",INDEX(Data!Input_108,RecordNumber)))","v":""}]
[null,109,{"$f":"IF(ISBLANK(INDEX(Data!InputDesc,Input)),\"\",INDEX(Data!InputDesc,Input))","v":""},null,"Input_109",{"$f":"IF(InputDescription=\"\",\"\",IF(OR(ISBLANK(INDEX(Data!Input_109,RecordNumber)),ISERR(INDEX(Data!Input_109,RecordNumber))),\"\",INDEX(Data!Input_109,RecordNumber)))","v":""}]
[null,110,{"$f":"IF(ISBLANK(INDEX(Data!InputDesc,Input)),\"\",INDEX(Data!InputDesc,Input))","v":""},null,"Input_110",{"$f":"IF(InputDescription=\"\",\"\",IF(OR(ISBLANK(INDEX(Data!Input_110,RecordNumber)),ISERR(INDEX(Data!Input_110,RecordNumber))),\"\",INDEX(Data!Input_110,RecordNumber)))","v":""}]
[null,111,{"$f":"IF(ISBLANK(INDEX(Data!InputDesc,Input)),\"\",INDEX(Data!InputDesc,Input))","v":""},null,"Input_111",{"$f":"IF(InputDescription=\"\",\"\",IF(OR(ISBLANK(INDEX(Data!Input_111,RecordNumber)),ISERR(INDEX(Data!Input_111,RecordNumber))),\"\",INDEX(Data!Input_111,RecordNumber)))","v":""}]
[null,112,{"$f":"IF(ISBLANK(INDEX(Data!InputDesc,Input)),\"\",INDEX(Data!InputDesc,Input))","v":""},null,"Input_112",{"$f":"IF(InputDescription=\"\",\"\",IF(OR(ISBLANK(INDEX(Data!Input_112,RecordNumber)),ISERR(INDEX(Data!Input_112,RecordNumber))),\"\",INDEX(Data!Input_112,RecordNumber)))","v":""}]
[null,113,{"$f":"IF(ISBLANK(INDEX(Data!InputDesc,Input)),\"\",INDEX(Data!InputDesc,Input))","v":""},null,"Input_113",{"$f":"IF(InputDescription=\"\",\"\",IF(OR(ISBLANK(INDEX(Data!Input_113,RecordNumber)),ISERR(INDEX(Data!Input_113,RecordNumber))),\"\",INDEX(Data!Input_113,RecordNumber)))","v":""}]
[null,114,{"$f":"IF(ISBLANK(INDEX(Data!InputDesc,Input)),\"\",INDEX(Data!InputDesc,Input))","v":""},null,"Input_114",{"$f":"IF(InputDescription=\"\",\"\",IF(OR(ISBLANK(INDEX(Data!Input_114,RecordNumber)),ISERR(INDEX(Data!Input_114,RecordNumber))),\"\",INDEX(Data!Input_114,RecordNumber)))","v":""}]
[null,115,{"$f":"IF(ISBLANK(INDEX(Data!InputDesc,Input)),\"\",INDEX(Data!InputDesc,Input))","v":""},null,"Input_115",{"$f":"IF(InputDescription=\"\",\"\",IF(OR(ISBLANK(INDEX(Data!Input_115,RecordNumber)),ISERR(INDEX(Data!Input_115,RecordNumber))),\"\",INDEX(Data!Input_115,RecordNumber)))","v":""}]
[null,116,{"$f":"IF(ISBLANK(INDEX(Data!InputDesc,Input)),\"\",INDEX(Data!InputDesc,Input))","v":""},null,"Input_116",{"$f":"IF(InputDescription=\"\",\"\",IF(OR(ISBLANK(INDEX(Data!Input_116,RecordNumber)),ISERR(INDEX(Data!Input_116,RecordNumber))),\"\",INDEX(Data!Input_116,RecordNumber)))","v":""}]
[null,117,{"$f":"IF(ISBLANK(INDEX(Data!InputDesc,Input)),\"\",INDEX(Data!InputDesc,Input))","v":""},null,"Input_117",{"$f":"IF(InputDescription=\"\",\"\",IF(OR(ISBLANK(INDEX(Data!Input_117,RecordNumber)),ISERR(INDEX(Data!Input_117,RecordNumber))),\"\",INDEX(Data!Input_117,RecordNumber)))","v":""}]
[null,118,{"$f":"IF(ISBLANK(INDEX(Data!InputDesc,Input)),\"\",INDEX(Data!InputDesc,Input))","v":""},null,"Input_118",{"$f":"IF(InputDescription=\"\",\"\",IF(OR(ISBLANK(INDEX(Data!Input_118,RecordNumber)),ISERR(INDEX(Data!Input_118,RecordNumber))),\"\",INDEX(Data!Input_118,RecordNumber)))","v":""}]
[null,119,{"$f":"IF(ISBLANK(INDEX(Data!InputDesc,Input)),\"\",INDEX(Data!InputDesc,Input))","v":""},null,"Input_119",{"$f":"IF(InputDescription=\"\",\"\",IF(OR(ISBLANK(INDEX(Data!Input_119,RecordNumber)),ISERR(INDEX(Data!Input_119,RecordNumber))),\"\",INDEX(Data!Input_119,RecordNumber)))","v":""}]
[null,120,{"$f":"IF(ISBLANK(INDEX(Data!InputDesc,Input)),\"\",INDEX(Data!InputDesc,Input))","v":""},null,"Input_120",{"$f":"IF(InputDescription=\"\",\"\",IF(OR(ISBLANK(INDEX(Data!Input_120,RecordNumber)),ISERR(INDEX(Data!Input_120,RecordNumber))),\"\",INDEX(Data!Input_120,RecordNumber)))","v":""}]
[null,121,{"$f":"IF(ISBLANK(INDEX(Data!InputDesc,Input)),\"\",INDEX(Data!InputDesc,Input))","v":""},null,"Input_121",{"$f":"IF(InputDescription=\"\",\"\",IF(OR(ISBLANK(INDEX(Data!Input_121,RecordNumber)),ISERR(INDEX(Data!Input_121,RecordNumber))),\"\",INDEX(Data!Input_121,RecordNumber)))","v":""}]
[null,122,{"$f":"IF(ISBLANK(INDEX(Data!InputDesc,Input)),\"\",INDEX(Data!InputDesc,Input))","v":""},null,"Input_122",{"$f":"IF(InputDescription=\"\",\"\",IF(OR(ISBLANK(INDEX(Data!Input_122,RecordNumber)),ISERR(INDEX(Data!Input_122,RecordNumber))),\"\",INDEX(Data!Input_122,RecordNumber)))","v":""}]
[null,123,{"$f":"IF(ISBLANK(INDEX(Data!InputDesc,Input)),\"\",INDEX(Data!InputDesc,Input))","v":""},null,"Input_123",{"$f":"IF(InputDescription=\"\",\"\",IF(OR(ISBLANK(INDEX(Data!Input_123,RecordNumber)),ISERR(INDEX(Data!Input_123,RecordNumber))),\"\",INDEX(Data!Input_123,RecordNumber)))","v":""}]
[null,124,{"$f":"IF(ISBLANK(INDEX(Data!InputDesc,Input)),\"\",INDEX(Data!InputDesc,Input))","v":""},null,"Input_124",{"$f":"IF(InputDescription=\"\",\"\",IF(OR(ISBLANK(INDEX(Data!Input_124,RecordNumber)),ISERR(INDEX(Data!Input_124,RecordNumber))),\"\",INDEX(Data!Input_124,RecordNumber)))","v":""}]
[null,125,{"$f":"IF(ISBLANK(INDEX(Data!InputDesc,Input)),\"\",INDEX(Data!InputDesc,Input))","v":""},null,"Input_125",{"$f":"IF(InputDescription=\"\",\"\",IF(OR(ISBLANK(INDEX(Data!Input_125,RecordNumber)),ISERR(INDEX(Data!Input_125,RecordNumber))),\"\",INDEX(Data!Input_125,RecordNumber)))","v":""}]
[null,126,{"$f":"IF(ISBLANK(INDEX(Data!InputDesc,Input)),\"\",INDEX(Data!InputDesc,Input))","v":""},null,"Input_126",{"$f":"IF(InputDescription=\"\",\"\",IF(OR(ISBLANK(INDEX(Data!Input_126,RecordNumber)),ISERR(INDEX(Data!Input_126,RecordNumber))),\"\",INDEX(Data!Input_126,RecordNumber)))","v":""}]
[null,127,{"$f":"IF(ISBLANK(INDEX(Data!InputDesc,Input)),\"\",INDEX(Data!InputDesc,Input))","v":""},null,"Input_127",{"$f":"IF(InputDescription=\"\",\"\",IF(OR(ISBLANK(INDEX(Data!Input_127,RecordNumber)),ISERR(INDEX(Data!Input_127,RecordNumber))),\"\",INDEX(Data!Input_127,RecordNumber)))","v":""}]
[null,128,{"$f":"IF(ISBLANK(INDEX(Data!InputDesc,Input)),\"\",INDEX(Data!InputDesc,Input))","v":""},null,"Input_128",{"$f":"IF(InputDescription=\"\",\"\",IF(OR(ISBLANK(INDEX(Data!Input_128,RecordNumber)),ISERR(INDEX(Data!Input_128,RecordNumber))),\"\",INDEX(Data!Input_128,RecordNumber)))","v":""}]
[null,129,{"$f":"IF(ISBLANK(INDEX(Data!InputDesc,Input)),\"\",INDEX(Data!InputDesc,Input))","v":""},null,"Input_129",{"$f":"IF(InputDescription=\"\",\"\",IF(OR(ISBLANK(INDEX(Data!Input_129,RecordNumber)),ISERR(INDEX(Data!Input_129,RecordNumber))),\"\",INDEX(Data!Input_129,RecordNumber)))","v":""}]
[null,130,{"$f":"IF(ISBLANK(INDEX(Data!InputDesc,Input)),\"\",INDEX(Data!InputDesc,Input))","v":""},null,"Input_130",{"$f":"IF(InputDescription=\"\",\"\",IF(OR(ISBLANK(INDEX(Data!Input_130,RecordNumber)),ISERR(INDEX(Data!Input_130,RecordNumber))),\"\",INDEX(Data!Input_130,RecordNumber)))","v":""}]
[null,131,{"$f":"IF(ISBLANK(INDEX(Data!InputDesc,Input)),\"\",INDEX(Data!InputDesc,Input))","v":""},null,"Input_131",{"$f":"IF(InputDescription=\"\",\"\",IF(OR(ISBLANK(INDEX(Data!Input_131,RecordNumber)),ISERR(INDEX(Data!Input_131,RecordNumber))),\"\",INDEX(Data!Input_131,RecordNumber)))","v":""}]
[null,132,{"$f":"IF(ISBLANK(INDEX(Data!InputDesc,Input)),\"\",INDEX(Data!InputDesc,Input))","v":""},null,"Input_132",{"$f":"IF(InputDescription=\"\",\"\",IF(OR(ISBLANK(INDEX(Data!Input_132,RecordNumber)),ISERR(INDEX(Data!Input_132,RecordNumber))),\"\",INDEX(Data!Input_132,RecordNumber)))","v":""}]
[null,133,{"$f":"IF(ISBLANK(INDEX(Data!InputDesc,Input)),\"\",INDEX(Data!InputDesc,Input))","v":""},null,"Input_133",{"$f":"IF(InputDescription=\"\",\"\",IF(OR(ISBLANK(INDEX(Data!Input_133,RecordNumber)),ISERR(INDEX(Data!Input_133,RecordNumber))),\"\",INDEX(Data!Input_133,RecordNumber)))","v":""}]
[null,134,{"$f":"IF(ISBLANK(INDEX(Data!InputDesc,Input)),\"\",INDEX(Data!InputDesc,Input))","v":""},null,"Input_134",{"$f":"IF(InputDescription=\"\",\"\",IF(OR(ISBLANK(INDEX(Data!Input_134,RecordNumber)),ISERR(INDEX(Data!Input_134,RecordNumber))),\"\",INDEX(Data!Input_134,RecordNumber)))","v":""}]
[null,135,{"$f":"IF(ISBLANK(INDEX(Data!InputDesc,Input)),\"\",INDEX(Data!InputDesc,Input))","v":""},null,"Input_135",{"$f":"IF(InputDescription=\"\",\"\",IF(OR(ISBLANK(INDEX(Data!Input_135,RecordNumber)),ISERR(INDEX(Data!Input_135,RecordNumber))),\"\",INDEX(Data!Input_135,RecordNumber)))","v":""}]
[null,136,{"$f":"IF(ISBLANK(INDEX(Data!InputDesc,Input)),\"\",INDEX(Data!InputDesc,Input))","v":""},null,"Input_136",{"$f":"IF(InputDescription=\"\",\"\",IF(OR(ISBLANK(INDEX(Data!Input_136,RecordNumber)),ISERR(INDEX(Data!Input_136,RecordNumber))),\"\",INDEX(Data!Input_136,RecordNumber)))","v":""}]
[null,137,{"$f":"IF(ISBLANK(INDEX(Data!InputDesc,Input)),\"\",INDEX(Data!InputDesc,Input))","v":""},null,"Input_137",{"$f":"IF(InputDescription=\"\",\"\",IF(OR(ISBLANK(INDEX(Data!Input_137,RecordNumber)),ISERR(INDEX(Data!Input_137,RecordNumber))),\"\",INDEX(Data!Input_137,RecordNumber)))","v":""}]
[null,138,{"$f":"IF(ISBLANK(INDEX(Data!InputDesc,Input)),\"\",INDEX(Data!InputDesc,Input))","v":""},null,"Input_138",{"$f":"IF(InputDescription=\"\",\"\",IF(OR(ISBLANK(INDEX(Data!Input_138,RecordNumber)),ISERR(INDEX(Data!Input_138,RecordNumber))),\"\",INDEX(Data!Input_138,RecordNumber)))","v":""}]
[null,139,{"$f":"IF(ISBLANK(INDEX(Data!InputDesc,Input)),\"\",INDEX(Data!InputDesc,Input))","v":""},null,"Input_139",{"$f":"IF(InputDescription=\"\",\"\",IF(OR(ISBLANK(INDEX(Data!Input_139,RecordNumber)),ISERR(INDEX(Data!Input_139,RecordNumber))),\"\",INDEX(Data!Input_139,RecordNumber)))","v":""}]
[null,140,{"$f":"IF(ISBLANK(INDEX(Data!InputDesc,Input)),\"\",INDEX(Data!InputDesc,Input))","v":""},null,"Input_140",{"$f":"IF(InputDescription=\"\",\"\",IF(OR(ISBLANK(INDEX(Data!Input_140,RecordNumber)),ISERR(INDEX(Data!Input_140,RecordNumber))),\"\",INDEX(Data!Input_140,RecordNumber)))","v":""}]
[null,141,{"$f":"IF(ISBLANK(INDEX(Data!InputDesc,Input)),\"\",INDEX(Data!InputDesc,Input))","v":""},null,"Input_141",{"$f":"IF(InputDescription=\"\",\"\",IF(OR(ISBLANK(INDEX(Data!Input_141,RecordNumber)),ISERR(INDEX(Data!Input_141,RecordNumber))),\"\",INDEX(Data!Input_141,RecordNumber)))","v":""}]
[null,142,{"$f":"IF(ISBLANK(INDEX(Data!InputDesc,Input)),\"\",INDEX(Data!InputDesc,Input))","v":""},null,"Input_142",{"$f":"IF(InputDescription=\"\",\"\",IF(OR(ISBLANK(INDEX(Data!Input_142,RecordNumber)),ISERR(INDEX(Data!Input_142,RecordNumber))),\"\",INDEX(Data!Input_142,RecordNumber)))","v":""}]
[null,143,{"$f":"IF(ISBLANK(INDEX(Data!InputDesc,Input)),\"\",INDEX(Data!InputDesc,Input))","v":""},null,"Input_143",{"$f":"IF(InputDescription=\"\",\"\",IF(OR(ISBLANK(INDEX(Data!Input_143,RecordNumber)),ISERR(INDEX(Data!Input_143,RecordNumber))),\"\",INDEX(Data!Input_143,RecordNumber)))","v":""}]
[null,144,{"$f":"IF(ISBLANK(INDEX(Data!InputDesc,Input)),\"\",INDEX(Data!InputDesc,Input))","v":""},null,"Input_144",{"$f":"IF(InputDescription=\"\",\"\",IF(OR(ISBLANK(INDEX(Data!Input_144,RecordNumber)),ISERR(INDEX(Data!Input_144,RecordNumber))),\"\",INDEX(Data!Input_144,RecordNumber)))","v":""}]
[null,145,{"$f":"IF(ISBLANK(INDEX(Data!InputDesc,Input)),\"\",INDEX(Data!InputDesc,Input))","v":""},null,"Input_145",{"$f":"IF(InputDescription=\"\",\"\",IF(OR(ISBLANK(INDEX(Data!Input_145,RecordNumber)),ISERR(INDEX(Data!Input_145,RecordNumber))),\"\",INDEX(Data!Input_145,RecordNumber)))","v":""}]
[null,146,{"$f":"IF(ISBLANK(INDEX(Data!InputDesc,Input)),\"\",INDEX(Data!InputDesc,Input))","v":""},null,"Input_146",{"$f":"IF(InputDescription=\"\",\"\",IF(OR(ISBLANK(INDEX(Data!Input_146,RecordNumber)),ISERR(INDEX(Data!Input_146,RecordNumber))),\"\",INDEX(Data!Input_146,RecordNumber)))","v":""}]
[null,147,{"$f":"IF(ISBLANK(INDEX(Data!InputDesc,Input)),\"\",INDEX(Data!InputDesc,Input))","v":""},null,"Input_147",{"$f":"IF(InputDescription=\"\",\"\",IF(OR(ISBLANK(INDEX(Data!Input_147,RecordNumber)),ISERR(INDEX(Data!Input_147,RecordNumber))),\"\",INDEX(Data!Input_147,RecordNumber)))","v":""}]
[null,148,{"$f":"IF(ISBLANK(INDEX(Data!InputDesc,Input)),\"\",INDEX(Data!InputDesc,Input))","v":""},null,"Input_148",{"$f":"IF(InputDescription=\"\",\"\",IF(OR(ISBLANK(INDEX(Data!Input_148,RecordNumber)),ISERR(INDEX(Data!Input_148,RecordNumber))),\"\",INDEX(Data!Input_148,RecordNumber)))","v":""}]
[null,149,{"$f":"IF(ISBLANK(INDEX(Data!InputDesc,Input)),\"\",INDEX(Data!InputDesc,Input))","v":""},null,"Input_149",{"$f":"IF(InputDescription=\"\",\"\",IF(OR(ISBLANK(INDEX(Data!Input_149,RecordNumber)),ISERR(INDEX(Data!Input_149,RecordNumber))),\"\",INDEX(Data!Input_149,RecordNumber)))","v":""}]
[null,150,{"$f":"IF(ISBLANK(INDEX(Data!InputDesc,Input)),\"\",INDEX(Data!InputDesc,Input))","v":""},null,"Input_150",{"$f":"IF(InputDescription=\"\",\"\",IF(OR(ISBLANK(INDEX(Data!Input_150,RecordNumber)),ISERR(INDEX(Data!Input_150,RecordNumber))),\"\",INDEX(Data!Input_150,RecordNumber)))","v":""}]
[null,151,{"$f":"IF(ISBLANK(INDEX(Data!InputDesc,Input)),\"\",INDEX(Data!InputDesc,Input))","v":""},null,"Input_151",{"$f":"IF(InputDescription=\"\",\"\",IF(OR(ISBLANK(INDEX(Data!Input_151,RecordNumber)),ISERR(INDEX(Data!Input_151,RecordNumber))),\"\",INDEX(Data!Input_151,RecordNumber)))","v":""}]
[null,152,{"$f":"IF(ISBLANK(INDEX(Data!InputDesc,Input)),\"\",INDEX(Data!InputDesc,Input))","v":""},null,"Input_152",{"$f":"IF(InputDescription=\"\",\"\",IF(OR(ISBLANK(INDEX(Data!Input_152,RecordNumber)),ISERR(INDEX(Data!Input_152,RecordNumber))),\"\",INDEX(Data!Input_152,RecordNumber)))","v":""}]
[null,153,{"$f":"IF(ISBLANK(INDEX(Data!InputDesc,Input)),\"\",INDEX(Data!InputDesc,Input))","v":""},null,"Input_153",{"$f":"IF(InputDescription=\"\",\"\",IF(OR(ISBLANK(INDEX(Data!Input_153,RecordNumber)),ISERR(INDEX(Data!Input_153,RecordNumber))),\"\",INDEX(Data!Input_153,RecordNumber)))","v":""}]
[null,154,{"$f":"IF(ISBLANK(INDEX(Data!InputDesc,Input)),\"\",INDEX(Data!InputDesc,Input))","v":""},null,"Input_154",{"$f":"IF(InputDescription=\"\",\"\",IF(OR(ISBLANK(INDEX(Data!Input_154,RecordNumber)),ISERR(INDEX(Data!Input_154,RecordNumber))),\"\",INDEX(Data!Input_154,RecordNumber)))","v":""}]
[null,155,{"$f":"IF(ISBLANK(INDEX(Data!InputDesc,Input)),\"\",INDEX(Data!InputDesc,Input))","v":""},null,"Input_155",{"$f":"IF(InputDescription=\"\",\"\",IF(OR(ISBLANK(INDEX(Data!Input_155,RecordNumber)),ISERR(INDEX(Data!Input_155,RecordNumber))),\"\",INDEX(Data!Input_155,RecordNumber)))","v":""}]
[null,156,{"$f":"IF(ISBLANK(INDEX(Data!InputDesc,Input)),\"\",INDEX(Data!InputDesc,Input))","v":""},null,"Input_156",{"$f":"IF(InputDescription=\"\",\"\",IF(OR(ISBLANK(INDEX(Data!Input_156,RecordNumber)),ISERR(INDEX(Data!Input_156,RecordNumber))),\"\",INDEX(Data!Input_156,RecordNumber)))","v":""}]
[null,157,{"$f":"IF(ISBLANK(INDEX(Data!InputDesc,Input)),\"\",INDEX(Data!InputDesc,Input))","v":""},null,"Input_157",{"$f":"IF(InputDescription=\"\",\"\",IF(OR(ISBLANK(INDEX(Data!Input_157,RecordNumber)),ISERR(INDEX(Data!Input_157,RecordNumber))),\"\",INDEX(Data!Input_157,RecordNumber)))","v":""}]
[null,158,{"$f":"IF(ISBLANK(INDEX(Data!InputDesc,Input)),\"\",INDEX(Data!InputDesc,Input))","v":""},null,"Input_158",{"$f":"IF(InputDescription=\"\",\"\",IF(OR(ISBLANK(INDEX(Data!Input_158,RecordNumber)),ISERR(INDEX(Data!Input_158,RecordNumber))),\"\",INDEX(Data!Input_158,RecordNumber)))","v":""}]
[null,159,{"$f":"IF(ISBLANK(INDEX(Data!InputDesc,Input)),\"\",INDEX(Data!InputDesc,Input))","v":""},null,"Input_159",{"$f":"IF(InputDescription=\"\",\"\",IF(OR(ISBLANK(INDEX(Data!Input_159,RecordNumber)),ISERR(INDEX(Data!Input_159,RecordNumber))),\"\",INDEX(Data!Input_159,RecordNumber)))","v":""}]
[null,160,{"$f":"IF(ISBLANK(INDEX(Data!InputDesc,Input)),\"\",INDEX(Data!InputDesc,Input))","v":""},null,"Input_160",{"$f":"IF(InputDescription=\"\",\"\",IF(OR(ISBLANK(INDEX(Data!Input_160,RecordNumber)),ISERR(INDEX(Data!Input_160,RecordNumber))),\"\",INDEX(Data!Input_160,RecordNumber)))","v":""}]
[null,161,{"$f":"IF(ISBLANK(INDEX(Data!InputDesc,Input)),\"\",INDEX(Data!InputDesc,Input))","v":""},null,"Input_161",{"$f":"IF(InputDescription=\"\",\"\",IF(OR(ISBLANK(INDEX(Data!Input_161,RecordNumber)),ISERR(INDEX(Data!Input_161,RecordNumber))),\"\",INDEX(Data!Input_161,RecordNumber)))","v":""}]
[null,162,{"$f":"IF(ISBLANK(INDEX(Data!InputDesc,Input)),\"\",INDEX(Data!InputDesc,Input))","v":""},null,"Input_162",{"$f":"IF(InputDescription=\"\",\"\",IF(OR(ISBLANK(INDEX(Data!Input_162,RecordNumber)),ISERR(INDEX(Data!Input_162,RecordNumber))),\"\",INDEX(Data!Input_162,RecordNumber)))","v":""}]
[null,163,{"$f":"IF(ISBLANK(INDEX(Data!InputDesc,Input)),\"\",INDEX(Data!InputDesc,Input))","v":""},null,"Input_163",{"$f":"IF(InputDescription=\"\",\"\",IF(OR(ISBLANK(INDEX(Data!Input_163,RecordNumber)),ISERR(INDEX(Data!Input_163,RecordNumber))),\"\",INDEX(Data!Input_163,RecordNumber)))","v":""}]
[null,164,{"$f":"IF(ISBLANK(INDEX(Data!InputDesc,Input)),\"\",INDEX(Data!InputDesc,Input))","v":""},null,"Input_164",{"$f":"IF(InputDescription=\"\",\"\",IF(OR(ISBLANK(INDEX(Data!Input_164,RecordNumber)),ISERR(INDEX(Data!Input_164,RecordNumber))),\"\",INDEX(Data!Input_164,RecordNumber)))","v":""}]
[null,165,{"$f":"IF(ISBLANK(INDEX(Data!InputDesc,Input)),\"\",INDEX(Data!InputDesc,Input))","v":""},null,"Input_165",{"$f":"IF(InputDescription=\"\",\"\",IF(OR(ISBLANK(INDEX(Data!Input_165,RecordNumber)),ISERR(INDEX(Data!Input_165,RecordNumber))),\"\",INDEX(Data!Input_165,RecordNumber)))","v":""}]
[null,166,{"$f":"IF(ISBLANK(INDEX(Data!InputDesc,Input)),\"\",INDEX(Data!InputDesc,Input))","v":""},null,"Input_166",{"$f":"IF(InputDescription=\"\",\"\",IF(OR(ISBLANK(INDEX(Data!Input_166,RecordNumber)),ISERR(INDEX(Data!Input_166,RecordNumber))),\"\",INDEX(Data!Input_166,RecordNumber)))","v":""}]
[null,167,{"$f":"IF(ISBLANK(INDEX(Data!InputDesc,Input)),\"\",INDEX(Data!InputDesc,Input))","v":""},null,"Input_167",{"$f":"IF(InputDescription=\"\",\"\",IF(OR(ISBLANK(INDEX(Data!Input_167,RecordNumber)),ISERR(INDEX(Data!Input_167,RecordNumber))),\"\",INDEX(Data!Input_167,RecordNumber)))","v":""}]
[null,168,{"$f":"IF(ISBLANK(INDEX(Data!InputDesc,Input)),\"\",INDEX(Data!InputDesc,Input))","v":""},null,"Input_168",{"$f":"IF(InputDescription=\"\",\"\",IF(OR(ISBLANK(INDEX(Data!Input_168,RecordNumber)),ISERR(INDEX(Data!Input_168,RecordNumber))),\"\",INDEX(Data!Input_168,RecordNumber)))","v":""}]
[null,169,{"$f":"IF(ISBLANK(INDEX(Data!InputDesc,Input)),\"\",INDEX(Data!InputDesc,Input))","v":""},null,"Input_169",{"$f":"IF(InputDescription=\"\",\"\",IF(OR(ISBLANK(INDEX(Data!Input_169,RecordNumber)),ISERR(INDEX(Data!Input_169,RecordNumber))),\"\",INDEX(Data!Input_169,RecordNumber)))","v":""}]
[null,170,{"$f":"IF(ISBLANK(INDEX(Data!InputDesc,Input)),\"\",INDEX(Data!InputDesc,Input))","v":""},null,"Input_170",{"$f":"IF(InputDescription=\"\",\"\",IF(OR(ISBLANK(INDEX(Data!Input_170,RecordNumber)),ISERR(INDEX(Data!Input_170,RecordNumber))),\"\",INDEX(Data!Input_170,RecordNumber)))","v":""}]
[null,171,{"$f":"IF(ISBLANK(INDEX(Data!InputDesc,Input)),\"\",INDEX(Data!InputDesc,Input))","v":""},null,"Input_171",{"$f":"IF(InputDescription=\"\",\"\",IF(OR(ISBLANK(INDEX(Data!Input_171,RecordNumber)),ISERR(INDEX(Data!Input_171,RecordNumber))),\"\",INDEX(Data!Input_171,RecordNumber)))","v":""}]
[null,172,{"$f":"IF(ISBLANK(INDEX(Data!InputDesc,Input)),\"\",INDEX(Data!InputDesc,Input))","v":""},null,"Input_172",{"$f":"IF(InputDescription=\"\",\"\",IF(OR(ISBLANK(INDEX(Data!Input_172,RecordNumber)),ISERR(INDEX(Data!Input_172,RecordNumber))),\"\",INDEX(Data!Input_172,RecordNumber)))","v":""}]
[null,173,{"$f":"IF(ISBLANK(INDEX(Data!InputDesc,Input)),\"\",INDEX(Data!InputDesc,Input))","v":""},null,"Input_173",{"$f":"IF(InputDescription=\"\",\"\",IF(OR(ISBLANK(INDEX(Data!Input_173,RecordNumber)),ISERR(INDEX(Data!Input_173,RecordNumber))),\"\",INDEX(Data!Input_173,RecordNumber)))","v":""}]
[null,174,{"$f":"IF(ISBLANK(INDEX(Data!InputDesc,Input)),\"\",INDEX(Data!InputDesc,Input))","v":""},null,"Input_174",{"$f":"IF(InputDescription=\"\",\"\",IF(OR(ISBLANK(INDEX(Data!Input_174,RecordNumber)),ISERR(INDEX(Data!Input_174,RecordNumber))),\"\",INDEX(Data!Input_174,RecordNumber)))","v":""}]
[null,175,{"$f":"IF(ISBLANK(INDEX(Data!InputDesc,Input)),\"\",INDEX(Data!InputDesc,Input))","v":""},null,"Input_175",{"$f":"IF(InputDescription=\"\",\"\",IF(OR(ISBLANK(INDEX(Data!Input_175,RecordNumber)),ISERR(INDEX(Data!Input_175,RecordNumber))),\"\",INDEX(Data!Input_175,RecordNumber)))","v":""}]
[null,176,{"$f":"IF(ISBLANK(INDEX(Data!InputDesc,Input)),\"\",INDEX(Data!InputDesc,Input))","v":""},null,"Input_176",{"$f":"IF(InputDescription=\"\",\"\",IF(OR(ISBLANK(INDEX(Data!Input_176,RecordNumber)),ISERR(INDEX(Data!Input_176,RecordNumber))),\"\",INDEX(Data!Input_176,RecordNumber)))","v":""}]
[null,177,{"$f":"IF(ISBLANK(INDEX(Data!InputDesc,Input)),\"\",INDEX(Data!InputDesc,Input))","v":""},null,"Input_177",{"$f":"IF(InputDescription=\"\",\"\",IF(OR(ISBLANK(INDEX(Data!Input_177,RecordNumber)),ISERR(INDEX(Data!Input_177,RecordNumber))),\"\",INDEX(Data!Input_177,RecordNumber)))","v":""}]
[null,178,{"$f":"IF(ISBLANK(INDEX(Data!InputDesc,Input)),\"\",INDEX(Data!InputDesc,Input))","v":""},null,"Input_178",{"$f":"IF(InputDescription=\"\",\"\",IF(OR(ISBLANK(INDEX(Data!Input_178,RecordNumber)),ISERR(INDEX(Data!Input_178,RecordNumber))),\"\",INDEX(Data!Input_178,RecordNumber)))","v":""}]
[null,179,{"$f":"IF(ISBLANK(INDEX(Data!InputDesc,Input)),\"\",INDEX(Data!InputDesc,Input))","v":""},null,"Input_179",{"$f":"IF(InputDescription=\"\",\"\",IF(OR(ISBLANK(INDEX(Data!Input_179,RecordNumber)),ISERR(INDEX(Data!Input_179,RecordNumber))),\"\",INDEX(Data!Input_179,RecordNumber)))","v":""}]
[null,180,{"$f":"IF(ISBLANK(INDEX(Data!InputDesc,Input)),\"\",INDEX(Data!InputDesc,Input))","v":""},null,"Input_180",{"$f":"IF(InputDescription=\"\",\"\",IF(OR(ISBLANK(INDEX(Data!Input_180,RecordNumber)),ISERR(INDEX(Data!Input_180,RecordNumber))),\"\",INDEX(Data!Input_180,RecordNumber)))","v":""}]
[null,181,{"$f":"IF(ISBLANK(INDEX(Data!InputDesc,Input)),\"\",INDEX(Data!InputDesc,Input))","v":""},null,"Input_181",{"$f":"IF(InputDescription=\"\",\"\",IF(OR(ISBLANK(INDEX(Data!Input_181,RecordNumber)),ISERR(INDEX(Data!Input_181,RecordNumber))),\"\",INDEX(Data!Input_181,RecordNumber)))","v":""}]
[null,182,{"$f":"IF(ISBLANK(INDEX(Data!InputDesc,Input)),\"\",INDEX(Data!InputDesc,Input))","v":""},null,"Input_182",{"$f":"IF(InputDescription=\"\",\"\",IF(OR(ISBLANK(INDEX(Data!Input_182,RecordNumber)),ISERR(INDEX(Data!Input_182,RecordNumber))),\"\",INDEX(Data!Input_182,RecordNumber)))","v":""}]
[null,183,{"$f":"IF(ISBLANK(INDEX(Data!InputDesc,Input)),\"\",INDEX(Data!InputDesc,Input))","v":""},null,"Input_183",{"$f":"IF(InputDescription=\"\",\"\",IF(OR(ISBLANK(INDEX(Data!Input_183,RecordNumber)),ISERR(INDEX(Data!Input_183,RecordNumber))),\"\",INDEX(Data!Input_183,RecordNumber)))","v":""}]
[null,184,{"$f":"IF(ISBLANK(INDEX(Data!InputDesc,Input)),\"\",INDEX(Data!InputDesc,Input))","v":""},null,"Input_184",{"$f":"IF(InputDescription=\"\",\"\",IF(OR(ISBLANK(INDEX(Data!Input_184,RecordNumber)),ISERR(INDEX(Data!Input_184,RecordNumber))),\"\",INDEX(Data!Input_184,RecordNumber)))","v":""}]
[null,185,{"$f":"IF(ISBLANK(INDEX(Data!InputDesc,Input)),\"\",INDEX(Data!InputDesc,Input))","v":""},null,"Input_185",{"$f":"IF(InputDescription=\"\",\"\",IF(OR(ISBLANK(INDEX(Data!Input_185,RecordNumber)),ISERR(INDEX(Data!Input_185,RecordNumber))),\"\",INDEX(Data!Input_185,RecordNumber)))","v":""}]
[null,186,{"$f":"IF(ISBLANK(INDEX(Data!InputDesc,Input)),\"\",INDEX(Data!InputDesc,Input))","v":""},null,"Input_186",{"$f":"IF(InputDescription=\"\",\"\",IF(OR(ISBLANK(INDEX(Data!Input_186,RecordNumber)),ISERR(INDEX(Data!Input_186,RecordNumber))),\"\",INDEX(Data!Input_186,RecordNumber)))","v":""}]
[null,187,{"$f":"IF(ISBLANK(INDEX(Data!InputDesc,Input)),\"\",INDEX(Data!InputDesc,Input))","v":""},null,"Input_187",{"$f":"IF(InputDescription=\"\",\"\",IF(OR(ISBLANK(INDEX(Data!Input_187,RecordNumber)),ISERR(INDEX(Data!Input_187,RecordNumber))),\"\",INDEX(Data!Input_187,RecordNumber)))","v":""}]
[null,188,{"$f":"IF(ISBLANK(INDEX(Data!InputDesc,Input)),\"\",INDEX(Data!InputDesc,Input))","v":""},null,"Input_188",{"$f":"IF(InputDescription=\"\",\"\",IF(OR(ISBLANK(INDEX(Data!Input_188,RecordNumber)),ISERR(INDEX(Data!Input_188,RecordNumber))),\"\",INDEX(Data!Input_188,RecordNumber)))","v":""}]
[null,189,{"$f":"IF(ISBLANK(INDEX(Data!InputDesc,Input)),\"\",INDEX(Data!InputDesc,Input))","v":""},null,"Input_189",{"$f":"IF(InputDescription=\"\",\"\",IF(OR(ISBLANK(INDEX(Data!Input_189,RecordNumber)),ISERR(INDEX(Data!Input_189,RecordNumber))),\"\",INDEX(Data!Input_189,RecordNumber)))","v":""}]
[null,190,{"$f":"IF(ISBLANK(INDEX(Data!InputDesc,Input)),\"\",INDEX(Data!InputDesc,Input))","v":""},null,"Input_190",{"$f":"IF(InputDescription=\"\",\"\",IF(OR(ISBLANK(INDEX(Data!Input_190,RecordNumber)),ISERR(INDEX(Data!Input_190,RecordNumber))),\"\",INDEX(Data!Input_190,RecordNumber)))","v":""}]
[null,191,{"$f":"IF(ISBLANK(INDEX(Data!InputDesc,Input)),\"\",INDEX(Data!InputDesc,Input))","v":""},null,"Input_191",{"$f":"IF(InputDescription=\"\",\"\",IF(OR(ISBLANK(INDEX(Data!Input_191,RecordNumber)),ISERR(INDEX(Data!Input_191,RecordNumber))),\"\",INDEX(Data!Input_191,RecordNumber)))","v":""}]
[null,192,{"$f":"IF(ISBLANK(INDEX(Data!InputDesc,Input)),\"\",INDEX(Data!InputDesc,Input))","v":""},null,"Input_192",{"$f":"IF(InputDescription=\"\",\"\",IF(OR(ISBLANK(INDEX(Data!Input_192,RecordNumber)),ISERR(INDEX(Data!Input_192,RecordNumber))),\"\",INDEX(Data!Input_192,RecordNumber)))","v":""}]
[null,193,{"$f":"IF(ISBLANK(INDEX(Data!InputDesc,Input)),\"\",INDEX(Data!InputDesc,Input))","v":""},null,"Input_193",{"$f":"IF(InputDescription=\"\",\"\",IF(OR(ISBLANK(INDEX(Data!Input_193,RecordNumber)),ISERR(INDEX(Data!Input_193,RecordNumber))),\"\",INDEX(Data!Input_193,RecordNumber)))","v":""}]
[null,194,{"$f":"IF(ISBLANK(INDEX(Data!InputDesc,Input)),\"\",INDEX(Data!InputDesc,Input))","v":""},null,"Input_194",{"$f":"IF(InputDescription=\"\",\"\",IF(OR(ISBLANK(INDEX(Data!Input_194,RecordNumber)),ISERR(INDEX(Data!Input_194,RecordNumber))),\"\",INDEX(Data!Input_194,RecordNumber)))","v":""}]
[null,195,{"$f":"IF(ISBLANK(INDEX(Data!InputDesc,Input)),\"\",INDEX(Data!InputDesc,Input))","v":""},null,"Input_195",{"$f":"IF(InputDescription=\"\",\"\",IF(OR(ISBLANK(INDEX(Data!Input_195,RecordNumber)),ISERR(INDEX(Data!Input_195,RecordNumber))),\"\",INDEX(Data!Input_195,RecordNumber)))","v":""}]
[null,196,{"$f":"IF(ISBLANK(INDEX(Data!InputDesc,Input)),\"\",INDEX(Data!InputDesc,Input))","v":""},null,"Input_196",{"$f":"IF(InputDescription=\"\",\"\",IF(OR(ISBLANK(INDEX(Data!Input_196,RecordNumber)),ISERR(INDEX(Data!Input_196,RecordNumber))),\"\",INDEX(Data!Input_196,RecordNumber)))","v":""}]
[null,197,{"$f":"IF(ISBLANK(INDEX(Data!InputDesc,Input)),\"\",INDEX(Data!InputDesc,Input))","v":""},null,"Input_197",{"$f":"IF(InputDescription=\"\",\"\",IF(OR(ISBLANK(INDEX(Data!Input_197,RecordNumber)),ISERR(INDEX(Data!Input_197,RecordNumber))),\"\",INDEX(Data!Input_197,RecordNumber)))","v":""}]
[null,198,{"$f":"IF(ISBLANK(INDEX(Data!InputDesc,Input)),\"\",INDEX(Data!InputDesc,Input))","v":""},null,"Input_198",{"$f":"IF(InputDescription=\"\",\"\",IF(OR(ISBLANK(INDEX(Data!Input_198,RecordNumber)),ISERR(INDEX(Data!Input_198,RecordNumber))),\"\",INDEX(Data!Input_198,RecordNumber)))","v":""}]
[null,199,{"$f":"IF(ISBLANK(INDEX(Data!InputDesc,Input)),\"\",INDEX(Data!InputDesc,Input))","v":""},null,"Input_199",{"$f":"IF(InputDescription=\"\",\"\",IF(OR(ISBLANK(INDEX(Data!Input_199,RecordNumber)),ISERR(INDEX(Data!Input_199,RecordNumber))),\"\",INDEX(Data!Input_199,RecordNumber)))","v":""}]
[null,200,{"$f":"IF(ISBLANK(INDEX(Data!InputDesc,Input)),\"\",INDEX(Data!InputDesc,Input))","v":""},null,"Input_200",{"$f":"IF(InputDescription=\"\",\"\",IF(OR(ISBLANK(INDEX(Data!Input_200,RecordNumber)),ISERR(INDEX(Data!Input_200,RecordNumber))),\"\",INDEX(Data!Input_200,RecordNumber)))","v":""}]
[null,201,{"$f":"IF(ISBLANK(INDEX(Data!InputDesc,Input)),\"\",INDEX(Data!InputDesc,Input))","v":""},null,"Input_201",{"$f":"IF(InputDescription=\"\",\"\",IF(OR(ISBLANK(INDEX(Data!Input_201,RecordNumber)),ISERR(INDEX(Data!Input_201,RecordNumber))),\"\",INDEX(Data!Input_201,RecordNumber)))","v":""}]
[null,202,{"$f":"IF(ISBLANK(INDEX(Data!InputDesc,Input)),\"\",INDEX(Data!InputDesc,Input))","v":""},null,"Input_202",{"$f":"IF(InputDescription=\"\",\"\",IF(OR(ISBLANK(INDEX(Data!Input_202,RecordNumber)),ISERR(INDEX(Data!Input_202,RecordNumber))),\"\",INDEX(Data!Input_202,RecordNumber)))","v":""}]
[null,203,{"$f":"IF(ISBLANK(INDEX(Data!InputDesc,Input)),\"\",INDEX(Data!InputDesc,Input))","v":""},null,"Input_203",{"$f":"IF(InputDescription=\"\",\"\",IF(OR(ISBLANK(INDEX(Data!Input_203,RecordNumber)),ISERR(INDEX(Data!Input_203,RecordNumber))),\"\",INDEX(Data!Input_203,RecordNumber)))","v":""}]
[null,204,{"$f":"IF(ISBLANK(INDEX(Data!InputDesc,Input)),\"\",INDEX(Data!InputDesc,Input))","v":""},null,"Input_204",{"$f":"IF(InputDescription=\"\",\"\",IF(OR(ISBLANK(INDEX(Data!Input_204,RecordNumber)),ISERR(INDEX(Data!Input_204,RecordNumber))),\"\",INDEX(Data!Input_204,RecordNumber)))","v":""}]
[null,205,{"$f":"IF(ISBLANK(INDEX(Data!InputDesc,Input)),\"\",INDEX(Data!InputDesc,Input))","v":""},null,"Input_205",{"$f":"IF(InputDescription=\"\",\"\",IF(OR(ISBLANK(INDEX(Data!Input_205,RecordNumber)),ISERR(INDEX(Data!Input_205,RecordNumber))),\"\",INDEX(Data!Input_205,RecordNumber)))","v":""}]
[null,206,{"$f":"IF(ISBLANK(INDEX(Data!InputDesc,Input)),\"\",INDEX(Data!InputDesc,Input))","v":""},null,"Input_206",{"$f":"IF(InputDescription=\"\",\"\",IF(OR(ISBLANK(INDEX(Data!Input_206,RecordNumber)),ISERR(INDEX(Data!Input_206,RecordNumber))),\"\",INDEX(Data!Input_206,RecordNumber)))","v":""}]
[null,207,{"$f":"IF(ISBLANK(INDEX(Data!InputDesc,Input)),\"\",INDEX(Data!InputDesc,Input))","v":""},null,"Input_207",{"$f":"IF(InputDescription=\"\",\"\",IF(OR(ISBLANK(INDEX(Data!Input_207,RecordNumber)),ISERR(INDEX(Data!Input_207,RecordNumber))),\"\",INDEX(Data!Input_207,RecordNumber)))","v":""}]
[null,208,{"$f":"IF(ISBLANK(INDEX(Data!InputDesc,Input)),\"\",INDEX(Data!InputDesc,Input))","v":""},null,"Input_208",{"$f":"IF(InputDescription=\"\",\"\",IF(OR(ISBLANK(INDEX(Data!Input_208,RecordNumber)),ISERR(INDEX(Data!Input_208,RecordNumber))),\"\",INDEX(Data!Input_208,RecordNumber)))","v":""}]
[null,209,{"$f":"IF(ISBLANK(INDEX(Data!InputDesc,Input)),\"\",INDEX(Data!InputDesc,Input))","v":""},null,"Input_209",{"$f":"IF(InputDescription=\"\",\"\",IF(OR(ISBLANK(INDEX(Data!Input_209,RecordNumber)),ISERR(INDEX(Data!Input_209,RecordNumber))),\"\",INDEX(Data!Input_209,RecordNumber)))","v":""}]
[null,210,{"$f":"IF(ISBLANK(INDEX(Data!InputDesc,Input)),\"\",INDEX(Data!InputDesc,Input))","v":""},null,"Input_210",{"$f":"IF(InputDescription=\"\",\"\",IF(OR(ISBLANK(INDEX(Data!Input_210,RecordNumber)),ISERR(INDEX(Data!Input_210,RecordNumber))),\"\",INDEX(Data!Input_210,RecordNumber)))","v":""}]
[null,211,{"$f":"IF(ISBLANK(INDEX(Data!InputDesc,Input)),\"\",INDEX(Data!InputDesc,Input))","v":""},null,"Input_211",{"$f":"IF(InputDescription=\"\",\"\",IF(OR(ISBLANK(INDEX(Data!Input_211,RecordNumber)),ISERR(INDEX(Data!Input_211,RecordNumber))),\"\",INDEX(Data!Input_211,RecordNumber)))","v":""}]
[null,212,{"$f":"IF(ISBLANK(INDEX(Data!InputDesc,Input)),\"\",INDEX(Data!InputDesc,Input))","v":""},null,"Input_212",{"$f":"IF(InputDescription=\"\",\"\",IF(OR(ISBLANK(INDEX(Data!Input_212,RecordNumber)),ISERR(INDEX(Data!Input_212,RecordNumber))),\"\",INDEX(Data!Input_212,RecordNumber)))","v":""}]
[null,213,{"$f":"IF(ISBLANK(INDEX(Data!InputDesc,Input)),\"\",INDEX(Data!InputDesc,Input))","v":""},null,"Input_213",{"$f":"IF(InputDescription=\"\",\"\",IF(OR(ISBLANK(INDEX(Data!Input_213,RecordNumber)),ISERR(INDEX(Data!Input_213,RecordNumber))),\"\",INDEX(Data!Input_213,RecordNumber)))","v":""}]
[null,214,{"$f":"IF(ISBLANK(INDEX(Data!InputDesc,Input)),\"\",INDEX(Data!InputDesc,Input))","v":""},null,"Input_214",{"$f":"IF(InputDescription=\"\",\"\",IF(OR(ISBLANK(INDEX(Data!Input_214,RecordNumber)),ISERR(INDEX(Data!Input_214,RecordNumber))),\"\",INDEX(Data!Input_214,RecordNumber)))","v":""}]
[null,215,{"$f":"IF(ISBLANK(INDEX(Data!InputDesc,Input)),\"\",INDEX(Data!InputDesc,Input))","v":""},null,"Input_215",{"$f":"IF(InputDescription=\"\",\"\",IF(OR(ISBLANK(INDEX(Data!Input_215,RecordNumber)),ISERR(INDEX(Data!Input_215,RecordNumber))),\"\",INDEX(Data!Input_215,RecordNumber)))","v":""}]
[null,216,{"$f":"IF(ISBLANK(INDEX(Data!InputDesc,Input)),\"\",INDEX(Data!InputDesc,Input))","v":""},null,"Input_216",{"$f":"IF(InputDescription=\"\",\"\",IF(OR(ISBLANK(INDEX(Data!Input_216,RecordNumber)),ISERR(INDEX(Data!Input_216,RecordNumber))),\"\",INDEX(Data!Input_216,RecordNumber)))","v":""}]
[null,217,{"$f":"IF(ISBLANK(INDEX(Data!InputDesc,Input)),\"\",INDEX(Data!InputDesc,Input))","v":""},null,"Input_217",{"$f":"IF(InputDescription=\"\",\"\",IF(OR(ISBLANK(INDEX(Data!Input_217,RecordNumber)),ISERR(INDEX(Data!Input_217,RecordNumber))),\"\",INDEX(Data!Input_217,RecordNumber)))","v":""}]
[null,218,{"$f":"IF(ISBLANK(INDEX(Data!InputDesc,Input)),\"\",INDEX(Data!InputDesc,Input))","v":""},null,"Input_218",{"$f":"IF(InputDescription=\"\",\"\",IF(OR(ISBLANK(INDEX(Data!Input_218,RecordNumber)),ISERR(INDEX(Data!Input_218,RecordNumber))),\"\",INDEX(Data!Input_218,RecordNumber)))","v":""}]
[null,219,{"$f":"IF(ISBLANK(INDEX(Data!InputDesc,Input)),\"\",INDEX(Data!InputDesc,Input))","v":""},null,"Input_219",{"$f":"IF(InputDescription=\"\",\"\",IF(OR(ISBLANK(INDEX(Data!Input_219,RecordNumber)),ISERR(INDEX(Data!Input_219,RecordNumber))),\"\",INDEX(Data!Input_219,RecordNumber)))","v":""}]
[null,220,{"$f":"IF(ISBLANK(INDEX(Data!InputDesc,Input)),\"\",INDEX(Data!InputDesc,Input))","v":""},null,"Input_220",{"$f":"IF(InputDescription=\"\",\"\",IF(OR(ISBLANK(INDEX(Data!Input_220,RecordNumber)),ISERR(INDEX(Data!Input_220,RecordNumber))),\"\",INDEX(Data!Input_220,RecordNumber)))","v":""}]
[null,221,{"$f":"IF(ISBLANK(INDEX(Data!InputDesc,Input)),\"\",INDEX(Data!InputDesc,Input))","v":""},null,"Input_221",{"$f":"IF(InputDescription=\"\",\"\",IF(OR(ISBLANK(INDEX(Data!Input_221,RecordNumber)),ISERR(INDEX(Data!Input_221,RecordNumber))),\"\",INDEX(Data!Input_221,RecordNumber)))","v":""}]
[null,222,{"$f":"IF(ISBLANK(INDEX(Data!InputDesc,Input)),\"\",INDEX(Data!InputDesc,Input))","v":""},null,"Input_222",{"$f":"IF(InputDescription=\"\",\"\",IF(OR(ISBLANK(INDEX(Data!Input_222,RecordNumber)),ISERR(INDEX(Data!Input_222,RecordNumber))),\"\",INDEX(Data!Input_222,RecordNumber)))","v":""}]
[null,223,{"$f":"IF(ISBLANK(INDEX(Data!InputDesc,Input)),\"\",INDEX(Data!InputDesc,Input))","v":""},null,"Input_223",{"$f":"IF(InputDescription=\"\",\"\",IF(OR(ISBLANK(INDEX(Data!Input_223,RecordNumber)),ISERR(INDEX(Data!Input_223,RecordNumber))),\"\",INDEX(Data!Input_223,RecordNumber)))","v":""}]
[null,224,{"$f":"IF(ISBLANK(INDEX(Data!InputDesc,Input)),\"\",INDEX(Data!InputDesc,Input))","v":""},null,"Input_224",{"$f":"IF(InputDescription=\"\",\"\",IF(OR(ISBLANK(INDEX(Data!Input_224,RecordNumber)),ISERR(INDEX(Data!Input_224,RecordNumber))),\"\",INDEX(Data!Input_224,RecordNumber)))","v":""}]
[null,225,{"$f":"IF(ISBLANK(INDEX(Data!InputDesc,Input)),\"\",INDEX(Data!InputDesc,Input))","v":""},null,"Input_225",{"$f":"IF(InputDescription=\"\",\"\",IF(OR(ISBLANK(INDEX(Data!Input_225,RecordNumber)),ISERR(INDEX(Data!Input_225,RecordNumber))),\"\",INDEX(Data!Input_225,RecordNumber)))","v":""}]
[null,226,{"$f":"IF(ISBLANK(INDEX(Data!InputDesc,Input)),\"\",INDEX(Data!InputDesc,Input))","v":""},null,"Input_226",{"$f":"IF(InputDescription=\"\",\"\",IF(OR(ISBLANK(INDEX(Data!Input_226,RecordNumber)),ISERR(INDEX(Data!Input_226,RecordNumber))),\"\",INDEX(Data!Input_226,RecordNumber)))","v":""}]
[null,227,{"$f":"IF(ISBLANK(INDEX(Data!InputDesc,Input)),\"\",INDEX(Data!InputDesc,Input))","v":""},null,"Input_227",{"$f":"IF(InputDescription=\"\",\"\",IF(OR(ISBLANK(INDEX(Data!Input_227,RecordNumber)),ISERR(INDEX(Data!Input_227,RecordNumber))),\"\",INDEX(Data!Input_227,RecordNumber)))","v":""}]
[null,228,{"$f":"IF(ISBLANK(INDEX(Data!InputDesc,Input)),\"\",INDEX(Data!InputDesc,Input))","v":""},null,"Input_228",{"$f":"IF(InputDescription=\"\",\"\",IF(OR(ISBLANK(INDEX(Data!Input_228,RecordNumber)),ISERR(INDEX(Data!Input_228,RecordNumber))),\"\",INDEX(Data!Input_228,RecordNumber)))","v":""}]
[null,229,{"$f":"IF(ISBLANK(INDEX(Data!InputDesc,Input)),\"\",INDEX(Data!InputDesc,Input))","v":""},null,"Input_229",{"$f":"IF(InputDescription=\"\",\"\",IF(OR(ISBLANK(INDEX(Data!Input_229,RecordNumber)),ISERR(INDEX(Data!Input_229,RecordNumber))),\"\",INDEX(Data!Input_229,RecordNumber)))","v":""}]
[null,230,{"$f":"IF(ISBLANK(INDEX(Data!InputDesc,Input)),\"\",INDEX(Data!InputDesc,Input))","v":""},null,"Input_230",{"$f":"IF(InputDescription=\"\",\"\",IF(OR(ISBLANK(INDEX(Data!Input_230,RecordNumber)),ISERR(INDEX(Data!Input_230,RecordNumber))),\"\",INDEX(Data!Input_230,RecordNumber)))","v":""}]
[null,231,{"$f":"IF(ISBLANK(INDEX(Data!InputDesc,Input)),\"\",INDEX(Data!InputDesc,Input))","v":""},null,"Input_231",{"$f":"IF(InputDescription=\"\",\"\",IF(OR(ISBLANK(INDEX(Data!Input_231,RecordNumber)),ISERR(INDEX(Data!Input_231,RecordNumber))),\"\",INDEX(Data!Input_231,RecordNumber)))","v":""}]
[null,232,{"$f":"IF(ISBLANK(INDEX(Data!InputDesc,Input)),\"\",INDEX(Data!InputDesc,Input))","v":""},null,"Input_232",{"$f":"IF(InputDescription=\"\",\"\",IF(OR(ISBLANK(INDEX(Data!Input_232,RecordNumber)),ISERR(INDEX(Data!Input_232,RecordNumber))),\"\",INDEX(Data!Input_232,RecordNumber)))","v":""}]
[null,233,{"$f":"IF(ISBLANK(INDEX(Data!InputDesc,Input)),\"\",INDEX(Data!InputDesc,Input))","v":""},null,"Input_233",{"$f":"IF(InputDescription=\"\",\"\",IF(OR(ISBLANK(INDEX(Data!Input_233,RecordNumber)),ISERR(INDEX(Data!Input_233,RecordNumber))),\"\",INDEX(Data!Input_233,RecordNumber)))","v":""}]
[null,234,{"$f":"IF(ISBLANK(INDEX(Data!InputDesc,Input)),\"\",INDEX(Data!InputDesc,Input))","v":""},null,"Input_234",{"$f":"IF(InputDescription=\"\",\"\",IF(OR(ISBLANK(INDEX(Data!Input_234,RecordNumber)),ISERR(INDEX(Data!Input_234,RecordNumber))),\"\",INDEX(Data!Input_234,RecordNumber)))","v":""}]
[null,235,{"$f":"IF(ISBLANK(INDEX(Data!InputDesc,Input)),\"\",INDEX(Data!InputDesc,Input))","v":""},null,"Input_235",{"$f":"IF(InputDescription=\"\",\"\",IF(OR(ISBLANK(INDEX(Data!Input_235,RecordNumber)),ISERR(INDEX(Data!Input_235,RecordNumber))),\"\",INDEX(Data!Input_235,RecordNumber)))","v":""}]
[null,236,{"$f":"IF(ISBLANK(INDEX(Data!InputDesc,Input)),\"\",INDEX(Data!InputDesc,Input))","v":""},null,"Input_236",{"$f":"IF(InputDescription=\"\",\"\",IF(OR(ISBLANK(INDEX(Data!Input_236,RecordNumber)),ISERR(INDEX(Data!Input_236,RecordNumber))),\"\",INDEX(Data!Input_236,RecordNumber)))","v":""}]
[null,237,{"$f":"IF(ISBLANK(INDEX(Data!InputDesc,Input)),\"\",INDEX(Data!InputDesc,Input))","v":""},null,"Input_237",{"$f":"IF(InputDescription=\"\",\"\",IF(OR(ISBLANK(INDEX(Data!Input_237,RecordNumber)),ISERR(INDEX(Data!Input_237,RecordNumber))),\"\",INDEX(Data!Input_237,RecordNumber)))","v":""}]
[null,238,{"$f":"IF(ISBLANK(INDEX(Data!InputDesc,Input)),\"\",INDEX(Data!InputDesc,Input))","v":""},null,"Input_238",{"$f":"IF(InputDescription=\"\",\"\",IF(OR(ISBLANK(INDEX(Data!Input_238,RecordNumber)),ISERR(INDEX(Data!Input_238,RecordNumber))),\"\",INDEX(Data!Input_238,RecordNumber)))","v":""}]
[null,239,{"$f":"IF(ISBLANK(INDEX(Data!InputDesc,Input)),\"\",INDEX(Data!InputDesc,Input))","v":""},null,"Input_239",{"$f":"IF(InputDescription=\"\",\"\",IF(OR(ISBLANK(INDEX(Data!Input_239,RecordNumber)),ISERR(INDEX(Data!Input_239,RecordNumber))),\"\",INDEX(Data!Input_239,RecordNumber)))","v":""}]
[null,240,{"$f":"IF(ISBLANK(INDEX(Data!InputDesc,Input)),\"\",INDEX(Data!InputDesc,Input))","v":""},null,"Input_240",{"$f":"IF(InputDescription=\"\",\"\",IF(OR(ISBLANK(INDEX(Data!Input_240,RecordNumber)),ISERR(INDEX(Data!Input_240,RecordNumber))),\"\",INDEX(Data!Input_240,RecordNumber)))","v":""}]
[null,241,{"$f":"IF(ISBLANK(INDEX(Data!InputDesc,Input)),\"\",INDEX(Data!InputDesc,Input))","v":""},null,"Input_241",{"$f":"IF(InputDescription=\"\",\"\",IF(OR(ISBLANK(INDEX(Data!Input_241,RecordNumber)),ISERR(INDEX(Data!Input_241,RecordNumber))),\"\",INDEX(Data!Input_241,RecordNumber)))","v":""}]
[null,242,{"$f":"IF(ISBLANK(INDEX(Data!InputDesc,Input)),\"\",INDEX(Data!InputDesc,Input))","v":""},null,"Input_242",{"$f":"IF(InputDescription=\"\",\"\",IF(OR(ISBLANK(INDEX(Data!Input_242,RecordNumber)),ISERR(INDEX(Data!Input_242,RecordNumber))),\"\",INDEX(Data!Input_242,RecordNumber)))","v":""}]
[null,243,{"$f":"IF(ISBLANK(INDEX(Data!InputDesc,Input)),\"\",INDEX(Data!InputDesc,Input))","v":""},null,"Input_243",{"$f":"IF(InputDescription=\"\",\"\",IF(OR(ISBLANK(INDEX(Data!Input_243,RecordNumber)),ISERR(INDEX(Data!Input_243,RecordNumber))),\"\",INDEX(Data!Input_243,RecordNumber)))","v":""}]
[null,244,{"$f":"IF(ISBLANK(INDEX(Data!InputDesc,Input)),\"\",INDEX(Data!InputDesc,Input))","v":""},null,"Input_244",{"$f":"IF(InputDescription=\"\",\"\",IF(OR(ISBLANK(INDEX(Data!Input_244,RecordNumber)),ISERR(INDEX(Data!Input_244,RecordNumber))),\"\",INDEX(Data!Input_244,RecordNumber)))","v":""}]
[null,245,{"$f":"IF(ISBLANK(INDEX(Data!InputDesc,Input)),\"\",INDEX(Data!InputDesc,Input))","v":""},null,"Input_245",{"$f":"IF(InputDescription=\"\",\"\",IF(OR(ISBLANK(INDEX(Data!Input_245,RecordNumber)),ISERR(INDEX(Data!Input_245,RecordNumber))),\"\",INDEX(Data!Input_245,RecordNumber)))","v":""}]
[null,246,{"$f":"IF(ISBLANK(INDEX(Data!InputDesc,Input)),\"\",INDEX(Data!InputDesc,Input))","v":""},null,"Input_246",{"$f":"IF(InputDescription=\"\",\"\",IF(OR(ISBLANK(INDEX(Data!Input_246,RecordNumber)),ISERR(INDEX(Data!Input_246,RecordNumber))),\"\",INDEX(Data!Input_246,RecordNumber)))","v":""}]
[null,247,{"$f":"IF(ISBLANK(INDEX(Data!InputDesc,Input)),\"\",INDEX(Data!InputDesc,Input))","v":""},null,"Input_247",{"$f":"IF(InputDescription=\"\",\"\",IF(OR(ISBLANK(INDEX(Data!Input_247,RecordNumber)),ISERR(INDEX(Data!Input_247,RecordNumber))),\"\",INDEX(Data!Input_247,RecordNumber)))","v":""}]
[null,248,{"$f":"IF(ISBLANK(INDEX(Data!InputDesc,Input)),\"\",INDEX(Data!InputDesc,Input))","v":""},null,"Input_248",{"$f":"IF(InputDescription=\"\",\"\",IF(OR(ISBLANK(INDEX(Data!Input_248,RecordNumber)),ISERR(INDEX(Data!Input_248,RecordNumber))),\"\",INDEX(Data!Input_248,RecordNumber)))","v":""}]
[null,249,{"$f":"IF(ISBLANK(INDEX(Data!InputDesc,Input)),\"\",INDEX(Data!InputDesc,Input))","v":""},null,"Input_249",{"$f":"IF(InputDescription=\"\",\"\",IF(OR(ISBLANK(INDEX(Data!Input_249,RecordNumber)),ISERR(INDEX(Data!Input_249,RecordNumber))),\"\",INDEX(Data!Input_249,RecordNumber)))","v":""}]
[null,250,{"$f":"IF(ISBLANK(INDEX(Data!InputDesc,Input)),\"\",INDEX(Data!InputDesc,Input))","v":""},null,"Input_250",{"$f":"IF(InputDescription=\"\",\"\",IF(OR(ISBLANK(INDEX(Data!Input_250,RecordNumber)),ISERR(INDEX(Data!Input_250,RecordNumber))),\"\",INDEX(Data!Input_250,RecordNumber)))","v":""}]
[null,251,{"$f":"IF(ISBLANK(INDEX(Data!InputDesc,Input)),\"\",INDEX(Data!InputDesc,Input))","v":""},null,"Input_251",{"$f":"IF(InputDescription=\"\",\"\",IF(OR(ISBLANK(INDEX(Data!Input_251,RecordNumber)),ISERR(INDEX(Data!Input_251,RecordNumber))),\"\",INDEX(Data!Input_251,RecordNumber)))","v":""}]
[null,252,{"$f":"IF(ISBLANK(INDEX(Data!InputDesc,Input)),\"\",INDEX(Data!InputDesc,Input))","v":""},null,"Input_252",{"$f":"IF(InputDescription=\"\",\"\",IF(OR(ISBLANK(INDEX(Data!Input_252,RecordNumber)),ISERR(INDEX(Data!Input_252,RecordNumber))),\"\",INDEX(Data!Input_252,RecordNumber)))","v":""}]
[null,253,{"$f":"IF(ISBLANK(INDEX(Data!InputDesc,Input)),\"\",INDEX(Data!InputDesc,Input))","v":""},null,"Input_253",{"$f":"IF(InputDescription=\"\",\"\",IF(OR(ISBLANK(INDEX(Data!Input_253,RecordNumber)),ISERR(INDEX(Data!Input_253,RecordNumber))),\"\",INDEX(Data!Input_253,RecordNumber)))","v":""}]
[null,254,{"$f":"IF(ISBLANK(INDEX(Data!InputDesc,Input)),\"\",INDEX(Data!InputDesc,Input))","v":""},null,"Input_254",{"$f":"IF(InputDescription=\"\",\"\",IF(OR(ISBLANK(INDEX(Data!Input_254,RecordNumber)),ISERR(INDEX(Data!Input_254,RecordNumber))),\"\",INDEX(Data!Input_254,RecordNumber)))","v":""}]
[null,255,{"$f":"IF(ISBLANK(INDEX(Data!InputDesc,Input)),\"\",INDEX(Data!InputDesc,Input))","v":""},null,"Input_255",{"$f":"IF(InputDescription=\"\",\"\",IF(OR(ISBLANK(INDEX(Data!Input_255,RecordNumber)),ISERR(INDEX(Data!Input_255,RecordNumber))),\"\",INDEX(Data!Input_255,RecordNumber)))","v":""}]
[null,256,{"$f":"IF(ISBLANK(INDEX(Data!InputDesc,Input)),\"\",INDEX(Data!InputDesc,Input))","v":""},null,"Input_256",{"$f":"IF(InputDescription=\"\",\"\",IF(OR(ISBLANK(INDEX(Data!Input_256,RecordNumber)),ISERR(INDEX(Data!Input_256,RecordNumber))),\"\",INDEX(Data!Input_256,RecordNumber)))","v":""}]
[null,257,{"$f":"IF(ISBLANK(INDEX(Data!InputDesc,Input)),\"\",INDEX(Data!InputDesc,Input))","v":""},null,"Input_257",{"$f":"IF(InputDescription=\"\",\"\",IF(OR(ISBLANK(INDEX(Data!Input_257,RecordNumber)),ISERR(INDEX(Data!Input_257,RecordNumber))),\"\",INDEX(Data!Input_257,RecordNumber)))","v":""}]
[null,258,{"$f":"IF(ISBLANK(INDEX(Data!InputDesc,Input)),\"\",INDEX(Data!InputDesc,Input))","v":""},null,"Input_258",{"$f":"IF(InputDescription=\"\",\"\",IF(OR(ISBLANK(INDEX(Data!Input_258,RecordNumber)),ISERR(INDEX(Data!Input_258,RecordNumber))),\"\",INDEX(Data!Input_258,RecordNumber)))","v":""}]
[null,259,{"$f":"IF(ISBLANK(INDEX(Data!InputDesc,Input)),\"\",INDEX(Data!InputDesc,Input))","v":""},null,"Input_259",{"$f":"IF(InputDescription=\"\",\"\",IF(OR(ISBLANK(INDEX(Data!Input_259,RecordNumber)),ISERR(INDEX(Data!Input_259,RecordNumber))),\"\",INDEX(Data!Input_259,RecordNumber)))","v":""}]
[null,260,{"$f":"IF(ISBLANK(INDEX(Data!InputDesc,Input)),\"\",INDEX(Data!InputDesc,Input))","v":""},null,"Input_260",{"$f":"IF(InputDescription=\"\",\"\",IF(OR(ISBLANK(INDEX(Data!Input_260,RecordNumber)),ISERR(INDEX(Data!Input_260,RecordNumber))),\"\",INDEX(Data!Input_260,RecordNumber)))","v":""}]
[null,261,{"$f":"IF(ISBLANK(INDEX(Data!InputDesc,Input)),\"\",INDEX(Data!InputDesc,Input))","v":""},null,"Input_261",{"$f":"IF(InputDescription=\"\",\"\",IF(OR(ISBLANK(INDEX(Data!Input_261,RecordNumber)),ISERR(INDEX(Data!Input_261,RecordNumber))),\"\",INDEX(Data!Input_261,RecordNumber)))","v":""}]
[null,262,{"$f":"IF(ISBLANK(INDEX(Data!InputDesc,Input)),\"\",INDEX(Data!InputDesc,Input))","v":""},null,"Input_262",{"$f":"IF(InputDescription=\"\",\"\",IF(OR(ISBLANK(INDEX(Data!Input_262,RecordNumber)),ISERR(INDEX(Data!Input_262,RecordNumber))),\"\",INDEX(Data!Input_262,RecordNumber)))","v":""}]
[null,263,{"$f":"IF(ISBLANK(INDEX(Data!InputDesc,Input)),\"\",INDEX(Data!InputDesc,Input))","v":""},null,"Input_263",{"$f":"IF(InputDescription=\"\",\"\",IF(OR(ISBLANK(INDEX(Data!Input_263,RecordNumber)),ISERR(INDEX(Data!Input_263,RecordNumber))),\"\",INDEX(Data!Input_263,RecordNumber)))","v":""}]
[null,264,{"$f":"IF(ISBLANK(INDEX(Data!InputDesc,Input)),\"\",INDEX(Data!InputDesc,Input))","v":""},null,"Input_264",{"$f":"IF(InputDescription=\"\",\"\",IF(OR(ISBLANK(INDEX(Data!Input_264,RecordNumber)),ISERR(INDEX(Data!Input_264,RecordNumber))),\"\",INDEX(Data!Input_264,RecordNumber)))","v":""}]
[null,265,{"$f":"IF(ISBLANK(INDEX(Data!InputDesc,Input)),\"\",INDEX(Data!InputDesc,Input))","v":""},null,"Input_265",{"$f":"IF(InputDescription=\"\",\"\",IF(OR(ISBLANK(INDEX(Data!Input_265,RecordNumber)),ISERR(INDEX(Data!Input_265,RecordNumber))),\"\",INDEX(Data!Input_265,RecordNumber)))","v":""}]
[null,266,{"$f":"IF(ISBLANK(INDEX(Data!InputDesc,Input)),\"\",INDEX(Data!InputDesc,Input))","v":""},null,"Input_266",{"$f":"IF(InputDescription=\"\",\"\",IF(OR(ISBLANK(INDEX(Data!Input_266,RecordNumber)),ISERR(INDEX(Data!Input_266,RecordNumber))),\"\",INDEX(Data!Input_266,RecordNumber)))","v":""}]
[null,267,{"$f":"IF(ISBLANK(INDEX(Data!InputDesc,Input)),\"\",INDEX(Data!InputDesc,Input))","v":""},null,"Input_267",{"$f":"IF(InputDescription=\"\",\"\",IF(OR(ISBLANK(INDEX(Data!Input_267,RecordNumber)),ISERR(INDEX(Data!Input_267,RecordNumber))),\"\",INDEX(Data!Input_267,RecordNumber)))","v":""}]
[null,268,{"$f":"IF(ISBLANK(INDEX(Data!InputDesc,Input)),\"\",INDEX(Data!InputDesc,Input))","v":""},null,"Input_268",{"$f":"IF(InputDescription=\"\",\"\",IF(OR(ISBLANK(INDEX(Data!Input_268,RecordNumber)),ISERR(INDEX(Data!Input_268,RecordNumber))),\"\",INDEX(Data!Input_268,RecordNumber)))","v":""}]
[null,269,{"$f":"IF(ISBLANK(INDEX(Data!InputDesc,Input)),\"\",INDEX(Data!InputDesc,Input))","v":""},null,"Input_269",{"$f":"IF(InputDescription=\"\",\"\",IF(OR(ISBLANK(INDEX(Data!Input_269,RecordNumber)),ISERR(INDEX(Data!Input_269,RecordNumber))),\"\",INDEX(Data!Input_269,RecordNumber)))","v":""}]
[null,270,{"$f":"IF(ISBLANK(INDEX(Data!InputDesc,Input)),\"\",INDEX(Data!InputDesc,Input))","v":""},null,"Input_270",{"$f":"IF(InputDescription=\"\",\"\",IF(OR(ISBLANK(INDEX(Data!Input_270,RecordNumber)),ISERR(INDEX(Data!Input_270,RecordNumber))),\"\",INDEX(Data!Input_270,RecordNumber)))","v":""}]
[null,271,{"$f":"IF(ISBLANK(INDEX(Data!InputDesc,Input)),\"\",INDEX(Data!InputDesc,Input))","v":""},null,"Input_271",{"$f":"IF(InputDescription=\"\",\"\",IF(OR(ISBLANK(INDEX(Data!Input_271,RecordNumber)),ISERR(INDEX(Data!Input_271,RecordNumber))),\"\",INDEX(Data!Input_271,RecordNumber)))","v":""}]
[null,272,{"$f":"IF(ISBLANK(INDEX(Data!InputDesc,Input)),\"\",INDEX(Data!InputDesc,Input))","v":""},null,"Input_272",{"$f":"IF(InputDescription=\"\",\"\",IF(OR(ISBLANK(INDEX(Data!Input_272,RecordNumber)),ISERR(INDEX(Data!Input_272,RecordNumber))),\"\",INDEX(Data!Input_272,RecordNumber)))","v":""}]
[null,273,{"$f":"IF(ISBLANK(INDEX(Data!InputDesc,Input)),\"\",INDEX(Data!InputDesc,Input))","v":""},null,"Input_273",{"$f":"IF(InputDescription=\"\",\"\",IF(OR(ISBLANK(INDEX(Data!Input_273,RecordNumber)),ISERR(INDEX(Data!Input_273,RecordNumber))),\"\",INDEX(Data!Input_273,RecordNumber)))","v":""}]
[null,274,{"$f":"IF(ISBLANK(INDEX(Data!InputDesc,Input)),\"\",INDEX(Data!InputDesc,Input))","v":""},null,"Input_274",{"$f":"IF(InputDescription=\"\",\"\",IF(OR(ISBLANK(INDEX(Data!Input_274,RecordNumber)),ISERR(INDEX(Data!Input_274,RecordNumber))),\"\",INDEX(Data!Input_274,RecordNumber)))","v":""}]
[null,275,{"$f":"IF(ISBLANK(INDEX(Data!InputDesc,Input)),\"\",INDEX(Data!InputDesc,Input))","v":""},null,"Input_275",{"$f":"IF(InputDescription=\"\",\"\",IF(OR(ISBLANK(INDEX(Data!Input_275,RecordNumber)),ISERR(INDEX(Data!Input_275,RecordNumber))),\"\",INDEX(Data!Input_275,RecordNumber)))","v":""}]
[null,276,{"$f":"IF(ISBLANK(INDEX(Data!InputDesc,Input)),\"\",INDEX(Data!InputDesc,Input))","v":""},null,"Input_276",{"$f":"IF(InputDescription=\"\",\"\",IF(OR(ISBLANK(INDEX(Data!Input_276,RecordNumber)),ISERR(INDEX(Data!Input_276,RecordNumber))),\"\",INDEX(Data!Input_276,RecordNumber)))","v":""}]
[null,277,{"$f":"IF(ISBLANK(INDEX(Data!InputDesc,Input)),\"\",INDEX(Data!InputDesc,Input))","v":""},null,"Input_277",{"$f":"IF(InputDescription=\"\",\"\",IF(OR(ISBLANK(INDEX(Data!Input_277,RecordNumber)),ISERR(INDEX(Data!Input_277,RecordNumber))),\"\",INDEX(Data!Input_277,RecordNumber)))","v":""}]
[null,278,{"$f":"IF(ISBLANK(INDEX(Data!InputDesc,Input)),\"\",INDEX(Data!InputDesc,Input))","v":""},null,"Input_278",{"$f":"IF(InputDescription=\"\",\"\",IF(OR(ISBLANK(INDEX(Data!Input_278,RecordNumber)),ISERR(INDEX(Data!Input_278,RecordNumber))),\"\",INDEX(Data!Input_278,RecordNumber)))","v":""}]
[null,279,{"$f":"IF(ISBLANK(INDEX(Data!InputDesc,Input)),\"\",INDEX(Data!InputDesc,Input))","v":""},null,"Input_279",{"$f":"IF(InputDescription=\"\",\"\",IF(OR(ISBLANK(INDEX(Data!Input_279,RecordNumber)),ISERR(INDEX(Data!Input_279,RecordNumber))),\"\",INDEX(Data!Input_279,RecordNumber)))","v":""}]
[null,280,{"$f":"IF(ISBLANK(INDEX(Data!InputDesc,Input)),\"\",INDEX(Data!InputDesc,Input))","v":""},null,"Input_280",{"$f":"IF(InputDescription=\"\",\"\",IF(OR(ISBLANK(INDEX(Data!Input_280,RecordNumber)),ISERR(INDEX(Data!Input_280,RecordNumber))),\"\",INDEX(Data!Input_280,RecordNumber)))","v":""}]
[null,281,{"$f":"IF(ISBLANK(INDEX(Data!InputDesc,Input)),\"\",INDEX(Data!InputDesc,Input))","v":""},null,"Input_281",{"$f":"IF(InputDescription=\"\",\"\",IF(OR(ISBLANK(INDEX(Data!Input_281,RecordNumber)),ISERR(INDEX(Data!Input_281,RecordNumber))),\"\",INDEX(Data!Input_281,RecordNumber)))","v":""}]
[null,282,{"$f":"IF(ISBLANK(INDEX(Data!InputDesc,Input)),\"\",INDEX(Data!InputDesc,Input))","v":""},null,"Input_282",{"$f":"IF(InputDescription=\"\",\"\",IF(OR(ISBLANK(INDEX(Data!Input_282,RecordNumber)),ISERR(INDEX(Data!Input_282,RecordNumber))),\"\",INDEX(Data!Input_282,RecordNumber)))","v":""}]
[null,283,{"$f":"IF(ISBLANK(INDEX(Data!InputDesc,Input)),\"\",INDEX(Data!InputDesc,Input))","v":""},null,"Input_283",{"$f":"IF(InputDescription=\"\",\"\",IF(OR(ISBLANK(INDEX(Data!Input_283,RecordNumber)),ISERR(INDEX(Data!Input_283,RecordNumber))),\"\",INDEX(Data!Input_283,RecordNumber)))","v":""}]
[null,284,{"$f":"IF(ISBLANK(INDEX(Data!InputDesc,Input)),\"\",INDEX(Data!InputDesc,Input))","v":""},null,"Input_284",{"$f":"IF(InputDescription=\"\",\"\",IF(OR(ISBLANK(INDEX(Data!Input_284,RecordNumber)),ISERR(INDEX(Data!Input_284,RecordNumber))),\"\",INDEX(Data!Input_284,RecordNumber)))","v":""}]
[null,285,{"$f":"IF(ISBLANK(INDEX(Data!InputDesc,Input)),\"\",INDEX(Data!InputDesc,Input))","v":""},null,"Input_285",{"$f":"IF(InputDescription=\"\",\"\",IF(OR(ISBLANK(INDEX(Data!Input_285,RecordNumber)),ISERR(INDEX(Data!Input_285,RecordNumber))),\"\",INDEX(Data!Input_285,RecordNumber)))","v":""}]
[null,286,{"$f":"IF(ISBLANK(INDEX(Data!InputDesc,Input)),\"\",INDEX(Data!InputDesc,Input))","v":""},null,"Input_286",{"$f":"IF(InputDescription=\"\",\"\",IF(OR(ISBLANK(INDEX(Data!Input_286,RecordNumber)),ISERR(INDEX(Data!Input_286,RecordNumber))),\"\",INDEX(Data!Input_286,RecordNumber)))","v":""}]
[null,287,{"$f":"IF(ISBLANK(INDEX(Data!InputDesc,Input)),\"\",INDEX(Data!InputDesc,Input))","v":""},null,"Input_287",{"$f":"IF(InputDescription=\"\",\"\",IF(OR(ISBLANK(INDEX(Data!Input_287,RecordNumber)),ISERR(INDEX(Data!Input_287,RecordNumber))),\"\",INDEX(Data!Input_287,RecordNumber)))","v":""}]
[null,288,{"$f":"IF(ISBLANK(INDEX(Data!InputDesc,Input)),\"\",INDEX(Data!InputDesc,Input))","v":""},null,"Input_288",{"$f":"IF(InputDescription=\"\",\"\",IF(OR(ISBLANK(INDEX(Data!Input_288,RecordNumber)),ISERR(INDEX(Data!Input_288,RecordNumber))),\"\",INDEX(Data!Input_288,RecordNumber)))","v":""}]
[null,289,{"$f":"IF(ISBLANK(INDEX(Data!InputDesc,Input)),\"\",INDEX(Data!InputDesc,Input))","v":""},null,"Input_289",{"$f":"IF(InputDescription=\"\",\"\",IF(OR(ISBLANK(INDEX(Data!Input_289,RecordNumber)),ISERR(INDEX(Data!Input_289,RecordNumber))),\"\",INDEX(Data!Input_289,RecordNumber)))","v":""}]
[null,290,{"$f":"IF(ISBLANK(INDEX(Data!InputDesc,Input)),\"\",INDEX(Data!InputDesc,Input))","v":""},null,"Input_290",{"$f":"IF(InputDescription=\"\",\"\",IF(OR(ISBLANK(INDEX(Data!Input_290,RecordNumber)),ISERR(INDEX(Data!Input_290,RecordNumber))),\"\",INDEX(Data!Input_290,RecordNumber)))","v":""}]
[null,291,{"$f":"IF(ISBLANK(INDEX(Data!InputDesc,Input)),\"\",INDEX(Data!InputDesc,Input))","v":""},null,"Input_291",{"$f":"IF(InputDescription=\"\",\"\",IF(OR(ISBLANK(INDEX(Data!Input_291,RecordNumber)),ISERR(INDEX(Data!Input_291,RecordNumber))),\"\",INDEX(Data!Input_291,RecordNumber)))","v":""}]
[null,292,{"$f":"IF(ISBLANK(INDEX(Data!InputDesc,Input)),\"\",INDEX(Data!InputDesc,Input))","v":""},null,"Input_292",{"$f":"IF(InputDescription=\"\",\"\",IF(OR(ISBLANK(INDEX(Data!Input_292,RecordNumber)),ISERR(INDEX(Data!Input_292,RecordNumber))),\"\",INDEX(Data!Input_292,RecordNumber)))","v":""}]
[null,293,{"$f":"IF(ISBLANK(INDEX(Data!InputDesc,Input)),\"\",INDEX(Data!InputDesc,Input))","v":""},null,"Input_293",{"$f":"IF(InputDescription=\"\",\"\",IF(OR(ISBLANK(INDEX(Data!Input_293,RecordNumber)),ISERR(INDEX(Data!Input_293,RecordNumber))),\"\",INDEX(Data!Input_293,RecordNumber)))","v":""}]
[null,294,{"$f":"IF(ISBLANK(INDEX(Data!InputDesc,Input)),\"\",INDEX(Data!InputDesc,Input))","v":""},null,"Input_294",{"$f":"IF(InputDescription=\"\",\"\",IF(OR(ISBLANK(INDEX(Data!Input_294,RecordNumber)),ISERR(INDEX(Data!Input_294,RecordNumber))),\"\",INDEX(Data!Input_294,RecordNumber)))","v":""}]
[null,295,{"$f":"IF(ISBLANK(INDEX(Data!InputDesc,Input)),\"\",INDEX(Data!InputDesc,Input))","v":""},null,"Input_295",{"$f":"IF(InputDescription=\"\",\"\",IF(OR(ISBLANK(INDEX(Data!Input_295,RecordNumber)),ISERR(INDEX(Data!Input_295,RecordNumber))),\"\",INDEX(Data!Input_295,RecordNumber)))","v":""}]
[null,296,{"$f":"IF(ISBLANK(INDEX(Data!InputDesc,Input)),\"\",INDEX(Data!InputDesc,Input))","v":""},null,"Input_296",{"$f":"IF(InputDescription=\"\",\"\",IF(OR(ISBLANK(INDEX(Data!Input_296,RecordNumber)),ISERR(INDEX(Data!Input_296,RecordNumber))),\"\",INDEX(Data!Input_296,RecordNumber)))","v":""}]
[null,297,{"$f":"IF(ISBLANK(INDEX(Data!InputDesc,Input)),\"\",INDEX(Data!InputDesc,Input))","v":""},null,"Input_297",{"$f":"IF(InputDescription=\"\",\"\",IF(OR(ISBLANK(INDEX(Data!Input_297,RecordNumber)),ISERR(INDEX(Data!Input_297,RecordNumber))),\"\",INDEX(Data!Input_297,RecordNumber)))","v":""}]
[null,298,{"$f":"IF(ISBLANK(INDEX(Data!InputDesc,Input)),\"\",INDEX(Data!InputDesc,Input))","v":""},null,"Input_298",{"$f":"IF(InputDescription=\"\",\"\",IF(OR(ISBLANK(INDEX(Data!Input_298,RecordNumber)),ISERR(INDEX(Data!Input_298,RecordNumber))),\"\",INDEX(Data!Input_298,RecordNumber)))","v":""}]
[null,299,{"$f":"IF(ISBLANK(INDEX(Data!InputDesc,Input)),\"\",INDEX(Data!InputDesc,Input))","v":""},null,"Input_299",{"$f":"IF(InputDescription=\"\",\"\",IF(OR(ISBLANK(INDEX(Data!Input_299,RecordNumber)),ISERR(INDEX(Data!Input_299,RecordNumber))),\"\",INDEX(Data!Input_299,RecordNumber)))","v":""}]
[null,300,{"$f":"IF(ISBLANK(INDEX(Data!InputDesc,Input)),\"\",INDEX(Data!InputDesc,Input))","v":""},null,"Input_300",{"$f":"IF(InputDescription=\"\",\"\",IF(OR(ISBLANK(INDEX(Data!Input_300,RecordNumber)),ISERR(INDEX(Data!Input_300,RecordNumber))),\"\",INDEX(Data!Input_300,RecordNumber)))","v":""}]
[null,301,{"$f":"IF(ISBLANK(INDEX(Data!InputDesc,Input)),\"\",INDEX(Data!InputDesc,Input))","v":""},null,"Input_301",{"$f":"IF(InputDescription=\"\",\"\",IF(OR(ISBLANK(INDEX(Data!Input_301,RecordNumber)),ISERR(INDEX(Data!Input_301,RecordNumber))),\"\",INDEX(Data!Input_301,RecordNumber)))","v":""}]
[null,302,{"$f":"IF(ISBLANK(INDEX(Data!InputDesc,Input)),\"\",INDEX(Data!InputDesc,Input))","v":""},null,"Input_302",{"$f":"IF(InputDescription=\"\",\"\",IF(OR(ISBLANK(INDEX(Data!Input_302,RecordNumber)),ISERR(INDEX(Data!Input_302,RecordNumber))),\"\",INDEX(Data!Input_302,RecordNumber)))","v":""}]
[null,303,{"$f":"IF(ISBLANK(INDEX(Data!InputDesc,Input)),\"\",INDEX(Data!InputDesc,Input))","v":""},null,"Input_303",{"$f":"IF(InputDescription=\"\",\"\",IF(OR(ISBLANK(INDEX(Data!Input_303,RecordNumber)),ISERR(INDEX(Data!Input_303,RecordNumber))),\"\",INDEX(Data!Input_303,RecordNumber)))","v":""}]
[null,304,{"$f":"IF(ISBLANK(INDEX(Data!InputDesc,Input)),\"\",INDEX(Data!InputDesc,Input))","v":""},null,"Input_304",{"$f":"IF(InputDescription=\"\",\"\",IF(OR(ISBLANK(INDEX(Data!Input_304,RecordNumber)),ISERR(INDEX(Data!Input_304,RecordNumber))),\"\",INDEX(Data!Input_304,RecordNumber)))","v":""}]
[null,305,{"$f":"IF(ISBLANK(INDEX(Data!InputDesc,Input)),\"\",INDEX(Data!InputDesc,Input))","v":""},null,"Input_305",{"$f":"IF(InputDescription=\"\",\"\",IF(OR(ISBLANK(INDEX(Data!Input_305,RecordNumber)),ISERR(INDEX(Data!Input_305,RecordNumber))),\"\",INDEX(Data!Input_305,RecordNumber)))","v":""}]
[null,306,{"$f":"IF(ISBLANK(INDEX(Data!InputDesc,Input)),\"\",INDEX(Data!InputDesc,Input))","v":""},null,"Input_306",{"$f":"IF(InputDescription=\"\",\"\",IF(OR(ISBLANK(INDEX(Data!Input_306,RecordNumber)),ISERR(INDEX(Data!Input_306,RecordNumber))),\"\",INDEX(Data!Input_306,RecordNumber)))","v":""}]
[null,307,{"$f":"IF(ISBLANK(INDEX(Data!InputDesc,Input)),\"\",INDEX(Data!InputDesc,Input))","v":""},null,"Input_307",{"$f":"IF(InputDescription=\"\",\"\",IF(OR(ISBLANK(INDEX(Data!Input_307,RecordNumber)),ISERR(INDEX(Data!Input_307,RecordNumber))),\"\",INDEX(Data!Input_307,RecordNumber)))","v":""}]
[null,308,{"$f":"IF(ISBLANK(INDEX(Data!InputDesc,Input)),\"\",INDEX(Data!InputDesc,Input))","v":""},null,"Input_308",{"$f":"IF(InputDescription=\"\",\"\",IF(OR(ISBLANK(INDEX(Data!Input_308,RecordNumber)),ISERR(INDEX(Data!Input_308,RecordNumber))),\"\",INDEX(Data!Input_308,RecordNumber)))","v":""}]
[null,309,{"$f":"IF(ISBLANK(INDEX(Data!InputDesc,Input)),\"\",INDEX(Data!InputDesc,Input))","v":""},null,"Input_309",{"$f":"IF(InputDescription=\"\",\"\",IF(OR(ISBLANK(INDEX(Data!Input_309,RecordNumber)),ISERR(INDEX(Data!Input_309,RecordNumber))),\"\",INDEX(Data!Input_309,RecordNumber)))","v":""}]
[null,310,{"$f":"IF(ISBLANK(INDEX(Data!InputDesc,Input)),\"\",INDEX(Data!InputDesc,Input))","v":""},null,"Input_310",{"$f":"IF(InputDescription=\"\",\"\",IF(OR(ISBLANK(INDEX(Data!Input_310,RecordNumber)),ISERR(INDEX(Data!Input_310,RecordNumber))),\"\",INDEX(Data!Input_310,RecordNumber)))","v":""}]
[null,311,{"$f":"IF(ISBLANK(INDEX(Data!InputDesc,Input)),\"\",INDEX(Data!InputDesc,Input))","v":""},null,"Input_311",{"$f":"IF(InputDescription=\"\",\"\",IF(OR(ISBLANK(INDEX(Data!Input_311,RecordNumber)),ISERR(INDEX(Data!Input_311,RecordNumber))),\"\",INDEX(Data!Input_311,RecordNumber)))","v":""}]
[null,312,{"$f":"IF(ISBLANK(INDEX(Data!InputDesc,Input)),\"\",INDEX(Data!InputDesc,Input))","v":""},null,"Input_312",{"$f":"IF(InputDescription=\"\",\"\",IF(OR(ISBLANK(INDEX(Data!Input_312,RecordNumber)),ISERR(INDEX(Data!Input_312,RecordNumber))),\"\",INDEX(Data!Input_312,RecordNumber)))","v":""}]
[null,313,{"$f":"IF(ISBLANK(INDEX(Data!InputDesc,Input)),\"\",INDEX(Data!InputDesc,Input))","v":""},null,"Input_313",{"$f":"IF(InputDescription=\"\",\"\",IF(OR(ISBLANK(INDEX(Data!Input_313,RecordNumber)),ISERR(INDEX(Data!Input_313,RecordNumber))),\"\",INDEX(Data!Input_313,RecordNumber)))","v":""}]
[null,314,{"$f":"IF(ISBLANK(INDEX(Data!InputDesc,Input)),\"\",INDEX(Data!InputDesc,Input))","v":""},null,"Input_314",{"$f":"IF(InputDescription=\"\",\"\",IF(OR(ISBLANK(INDEX(Data!Input_314,RecordNumber)),ISERR(INDEX(Data!Input_314,RecordNumber))),\"\",INDEX(Data!Input_314,RecordNumber)))","v":""}]
[null,315,{"$f":"IF(ISBLANK(INDEX(Data!InputDesc,Input)),\"\",INDEX(Data!InputDesc,Input))","v":""},null,"Input_315",{"$f":"IF(InputDescription=\"\",\"\",IF(OR(ISBLANK(INDEX(Data!Input_315,RecordNumber)),ISERR(INDEX(Data!Input_315,RecordNumber))),\"\",INDEX(Data!Input_315,RecordNumber)))","v":""}]
[null,316,{"$f":"IF(ISBLANK(INDEX(Data!InputDesc,Input)),\"\",INDEX(Data!InputDesc,Input))","v":""},null,"Input_316",{"$f":"IF(InputDescription=\"\",\"\",IF(OR(ISBLANK(INDEX(Data!Input_316,RecordNumber)),ISERR(INDEX(Data!Input_316,RecordNumber))),\"\",INDEX(Data!Input_316,RecordNumber)))","v":""}]
[null,317,{"$f":"IF(ISBLANK(INDEX(Data!InputDesc,Input)),\"\",INDEX(Data!InputDesc,Input))","v":""},null,"Input_317",{"$f":"IF(InputDescription=\"\",\"\",IF(OR(ISBLANK(INDEX(Data!Input_317,RecordNumber)),ISERR(INDEX(Data!Input_317,RecordNumber))),\"\",INDEX(Data!Input_317,RecordNumber)))","v":""}]
[null,318,{"$f":"IF(ISBLANK(INDEX(Data!InputDesc,Input)),\"\",INDEX(Data!InputDesc,Input))","v":""},null,"Input_318",{"$f":"IF(InputDescription=\"\",\"\",IF(OR(ISBLANK(INDEX(Data!Input_318,RecordNumber)),ISERR(INDEX(Data!Input_318,RecordNumber))),\"\",INDEX(Data!Input_318,RecordNumber)))","v":""}]
[null,319,{"$f":"IF(ISBLANK(INDEX(Data!InputDesc,Input)),\"\",INDEX(Data!InputDesc,Input))","v":""},null,"Input_319",{"$f":"IF(InputDescription=\"\",\"\",IF(OR(ISBLANK(INDEX(Data!Input_319,RecordNumber)),ISERR(INDEX(Data!Input_319,RecordNumber))),\"\",INDEX(Data!Input_319,RecordNumber)))","v":""}]
[null,320,{"$f":"IF(ISBLANK(INDEX(Data!InputDesc,Input)),\"\",INDEX(Data!InputDesc,Input))","v":""},null,"Input_320",{"$f":"IF(InputDescription=\"\",\"\",IF(OR(ISBLANK(INDEX(Data!Input_320,RecordNumber)),ISERR(INDEX(Data!Input_320,RecordNumber))),\"\",INDEX(Data!Input_320,RecordNumber)))","v":""}]
[null,321,{"$f":"IF(ISBLANK(INDEX(Data!InputDesc,Input)),\"\",INDEX(Data!InputDesc,Input))","v":""},null,"Input_321",{"$f":"IF(InputDescription=\"\",\"\",IF(OR(ISBLANK(INDEX(Data!Input_321,RecordNumber)),ISERR(INDEX(Data!Input_321,RecordNumber))),\"\",INDEX(Data!Input_321,RecordNumber)))","v":""}]
[null,322,{"$f":"IF(ISBLANK(INDEX(Data!InputDesc,Input)),\"\",INDEX(Data!InputDesc,Input))","v":""},null,"Input_322",{"$f":"IF(InputDescription=\"\",\"\",IF(OR(ISBLANK(INDEX(Data!Input_322,RecordNumber)),ISERR(INDEX(Data!Input_322,RecordNumber))),\"\",INDEX(Data!Input_322,RecordNumber)))","v":""}]
[null,323,{"$f":"IF(ISBLANK(INDEX(Data!InputDesc,Input)),\"\",INDEX(Data!InputDesc,Input))","v":""},null,"Input_323",{"$f":"IF(InputDescription=\"\",\"\",IF(OR(ISBLANK(INDEX(Data!Input_323,RecordNumber)),ISERR(INDEX(Data!Input_323,RecordNumber))),\"\",INDEX(Data!Input_323,RecordNumber)))","v":""}]
[null,324,{"$f":"IF(ISBLANK(INDEX(Data!InputDesc,Input)),\"\",INDEX(Data!InputDesc,Input))","v":""},null,"Input_324",{"$f":"IF(InputDescription=\"\",\"\",IF(OR(ISBLANK(INDEX(Data!Input_324,RecordNumber)),ISERR(INDEX(Data!Input_324,RecordNumber))),\"\",INDEX(Data!Input_324,RecordNumber)))","v":""}]
[null,325,{"$f":"IF(ISBLANK(INDEX(Data!InputDesc,Input)),\"\",INDEX(Data!InputDesc,Input))","v":""},null,"Input_325",{"$f":"IF(InputDescription=\"\",\"\",IF(OR(ISBLANK(INDEX(Data!Input_325,RecordNumber)),ISERR(INDEX(Data!Input_325,RecordNumber))),\"\",INDEX(Data!Input_325,RecordNumber)))","v":""}]
[null,326,{"$f":"IF(ISBLANK(INDEX(Data!InputDesc,Input)),\"\",INDEX(Data!InputDesc,Input))","v":""},null,"Input_326",{"$f":"IF(InputDescription=\"\",\"\",IF(OR(ISBLANK(INDEX(Data!Input_326,RecordNumber)),ISERR(INDEX(Data!Input_326,RecordNumber))),\"\",INDEX(Data!Input_326,RecordNumber)))","v":""}]
[null,327,{"$f":"IF(ISBLANK(INDEX(Data!InputDesc,Input)),\"\",INDEX(Data!InputDesc,Input))","v":""},null,"Input_327",{"$f":"IF(InputDescription=\"\",\"\",IF(OR(ISBLANK(INDEX(Data!Input_327,RecordNumber)),ISERR(INDEX(Data!Input_327,RecordNumber))),\"\",INDEX(Data!Input_327,RecordNumber)))","v":""}]
[null,328,{"$f":"IF(ISBLANK(INDEX(Data!InputDesc,Input)),\"\",INDEX(Data!InputDesc,Input))","v":""},null,"Input_328",{"$f":"IF(InputDescription=\"\",\"\",IF(OR(ISBLANK(INDEX(Data!Input_328,RecordNumber)),ISERR(INDEX(Data!Input_328,RecordNumber))),\"\",INDEX(Data!Input_328,RecordNumber)))","v":""}]
[null,329,{"$f":"IF(ISBLANK(INDEX(Data!InputDesc,Input)),\"\",INDEX(Data!InputDesc,Input))","v":""},null,"Input_329",{"$f":"IF(InputDescription=\"\",\"\",IF(OR(ISBLANK(INDEX(Data!Input_329,RecordNumber)),ISERR(INDEX(Data!Input_329,RecordNumber))),\"\",INDEX(Data!Input_329,RecordNumber)))","v":""}]
[null,330,{"$f":"IF(ISBLANK(INDEX(Data!InputDesc,Input)),\"\",INDEX(Data!InputDesc,Input))","v":""},null,"Input_330",{"$f":"IF(InputDescription=\"\",\"\",IF(OR(ISBLANK(INDEX(Data!Input_330,RecordNumber)),ISERR(INDEX(Data!Input_330,RecordNumber))),\"\",INDEX(Data!Input_330,RecordNumber)))","v":""}]
[null,331,{"$f":"IF(ISBLANK(INDEX(Data!InputDesc,Input)),\"\",INDEX(Data!InputDesc,Input))","v":""},null,"Input_331",{"$f":"IF(InputDescription=\"\",\"\",IF(OR(ISBLANK(INDEX(Data!Input_331,RecordNumber)),ISERR(INDEX(Data!Input_331,RecordNumber))),\"\",INDEX(Data!Input_331,RecordNumber)))","v":""}]
[null,332,{"$f":"IF(ISBLANK(INDEX(Data!InputDesc,Input)),\"\",INDEX(Data!InputDesc,Input))","v":""},null,"Input_332",{"$f":"IF(InputDescription=\"\",\"\",IF(OR(ISBLANK(INDEX(Data!Input_332,RecordNumber)),ISERR(INDEX(Data!Input_332,RecordNumber))),\"\",INDEX(Data!Input_332,RecordNumber)))","v":""}]
[null,333,{"$f":"IF(ISBLANK(INDEX(Data!InputDesc,Input)),\"\",INDEX(Data!InputDesc,Input))","v":""},null,"Input_333",{"$f":"IF(InputDescription=\"\",\"\",IF(OR(ISBLANK(INDEX(Data!Input_333,RecordNumber)),ISERR(INDEX(Data!Input_333,RecordNumber))),\"\",INDEX(Data!Input_333,RecordNumber)))","v":""}]
[null,334,{"$f":"IF(ISBLANK(INDEX(Data!InputDesc,Input)),\"\",INDEX(Data!InputDesc,Input))","v":""},null,"Input_334",{"$f":"IF(InputDescription=\"\",\"\",IF(OR(ISBLANK(INDEX(Data!Input_334,RecordNumber)),ISERR(INDEX(Data!Input_334,RecordNumber))),\"\",INDEX(Data!Input_334,RecordNumber)))","v":""}]
[null,335,{"$f":"IF(ISBLANK(INDEX(Data!InputDesc,Input)),\"\",INDEX(Data!InputDesc,Input))","v":""},null,"Input_335",{"$f":"IF(InputDescription=\"\",\"\",IF(OR(ISBLANK(INDEX(Data!Input_335,RecordNumber)),ISERR(INDEX(Data!Input_335,RecordNumber))),\"\",INDEX(Data!Input_335,RecordNumber)))","v":""}]
[null,336,{"$f":"IF(ISBLANK(INDEX(Data!InputDesc,Input)),\"\",INDEX(Data!InputDesc,Input))","v":""},null,"Input_336",{"$f":"IF(InputDescription=\"\",\"\",IF(OR(ISBLANK(INDEX(Data!Input_336,RecordNumber)),ISERR(INDEX(Data!Input_336,RecordNumber))),\"\",INDEX(Data!Input_336,RecordNumber)))","v":""}]
[null,337,{"$f":"IF(ISBLANK(INDEX(Data!InputDesc,Input)),\"\",INDEX(Data!InputDesc,Input))","v":""},null,"Input_337",{"$f":"IF(InputDescription=\"\",\"\",IF(OR(ISBLANK(INDEX(Data!Input_337,RecordNumber)),ISERR(INDEX(Data!Input_337,RecordNumber))),\"\",INDEX(Data!Input_337,RecordNumber)))","v":""}]
[null,338,{"$f":"IF(ISBLANK(INDEX(Data!InputDesc,Input)),\"\",INDEX(Data!InputDesc,Input))","v":""},null,"Input_338",{"$f":"IF(InputDescription=\"\",\"\",IF(OR(ISBLANK(INDEX(Data!Input_338,RecordNumber)),ISERR(INDEX(Data!Input_338,RecordNumber))),\"\",INDEX(Data!Input_338,RecordNumber)))","v":""}]
[null,339,{"$f":"IF(ISBLANK(INDEX(Data!InputDesc,Input)),\"\",INDEX(Data!InputDesc,Input))","v":""},null,"Input_339",{"$f":"IF(InputDescription=\"\",\"\",IF(OR(ISBLANK(INDEX(Data!Input_339,RecordNumber)),ISERR(INDEX(Data!Input_339,RecordNumber))),\"\",INDEX(Data!Input_339,RecordNumber)))","v":""}]
[null,340,{"$f":"IF(ISBLANK(INDEX(Data!InputDesc,Input)),\"\",INDEX(Data!InputDesc,Input))","v":""},null,"Input_340",{"$f":"IF(InputDescription=\"\",\"\",IF(OR(ISBLANK(INDEX(Data!Input_340,RecordNumber)),ISERR(INDEX(Data!Input_340,RecordNumber))),\"\",INDEX(Data!Input_340,RecordNumber)))","v":""}]
[null,341,{"$f":"IF(ISBLANK(INDEX(Data!InputDesc,Input)),\"\",INDEX(Data!InputDesc,Input))","v":""},null,"Input_341",{"$f":"IF(InputDescription=\"\",\"\",IF(OR(ISBLANK(INDEX(Data!Input_341,RecordNumber)),ISERR(INDEX(Data!Input_341,RecordNumber))),\"\",INDEX(Data!Input_341,RecordNumber)))","v":""}]
[null,342,{"$f":"IF(ISBLANK(INDEX(Data!InputDesc,Input)),\"\",INDEX(Data!InputDesc,Input))","v":""},null,"Input_342",{"$f":"IF(InputDescription=\"\",\"\",IF(OR(ISBLANK(INDEX(Data!Input_342,RecordNumber)),ISERR(INDEX(Data!Input_342,RecordNumber))),\"\",INDEX(Data!Input_342,RecordNumber)))","v":""}]
[null,343,{"$f":"IF(ISBLANK(INDEX(Data!InputDesc,Input)),\"\",INDEX(Data!InputDesc,Input))","v":""},null,"Input_343",{"$f":"IF(InputDescription=\"\",\"\",IF(OR(ISBLANK(INDEX(Data!Input_343,RecordNumber)),ISERR(INDEX(Data!Input_343,RecordNumber))),\"\",INDEX(Data!Input_343,RecordNumber)))","v":""}]
[null,344,{"$f":"IF(ISBLANK(INDEX(Data!InputDesc,Input)),\"\",INDEX(Data!InputDesc,Input))","v":""},null,"Input_344",{"$f":"IF(InputDescription=\"\",\"\",IF(OR(ISBLANK(INDEX(Data!Input_344,RecordNumber)),ISERR(INDEX(Data!Input_344,RecordNumber))),\"\",INDEX(Data!Input_344,RecordNumber)))","v":""}]
[null,345,{"$f":"IF(ISBLANK(INDEX(Data!InputDesc,Input)),\"\",INDEX(Data!InputDesc,Input))","v":""},null,"Input_345",{"$f":"IF(InputDescription=\"\",\"\",IF(OR(ISBLANK(INDEX(Data!Input_345,RecordNumber)),ISERR(INDEX(Data!Input_345,RecordNumber))),\"\",INDEX(Data!Input_345,RecordNumber)))","v":""}]
[null,346,{"$f":"IF(ISBLANK(INDEX(Data!InputDesc,Input)),\"\",INDEX(Data!InputDesc,Input))","v":""},null,"Input_346",{"$f":"IF(InputDescription=\"\",\"\",IF(OR(ISBLANK(INDEX(Data!Input_346,RecordNumber)),ISERR(INDEX(Data!Input_346,RecordNumber))),\"\",INDEX(Data!Input_346,RecordNumber)))","v":""}]
[null,347,{"$f":"IF(ISBLANK(INDEX(Data!InputDesc,Input)),\"\",INDEX(Data!InputDesc,Input))","v":""},null,"Input_347",{"$f":"IF(InputDescription=\"\",\"\",IF(OR(ISBLANK(INDEX(Data!Input_347,RecordNumber)),ISERR(INDEX(Data!Input_347,RecordNumber))),\"\",INDEX(Data!Input_347,RecordNumber)))","v":""}]
[null,348,{"$f":"IF(ISBLANK(INDEX(Data!InputDesc,Input)),\"\",INDEX(Data!InputDesc,Input))","v":""},null,"Input_348",{"$f":"IF(InputDescription=\"\",\"\",IF(OR(ISBLANK(INDEX(Data!Input_348,RecordNumber)),ISERR(INDEX(Data!Input_348,RecordNumber))),\"\",INDEX(Data!Input_348,RecordNumber)))","v":""}]
[null,349,{"$f":"IF(ISBLANK(INDEX(Data!InputDesc,Input)),\"\",INDEX(Data!InputDesc,Input))","v":""},null,"Input_349",{"$f":"IF(InputDescription=\"\",\"\",IF(OR(ISBLANK(INDEX(Data!Input_349,RecordNumber)),ISERR(INDEX(Data!Input_349,RecordNumber))),\"\",INDEX(Data!Input_349,RecordNumber)))","v":""}]
[null,350,{"$f":"IF(ISBLANK(INDEX(Data!InputDesc,Input)),\"\",INDEX(Data!InputDesc,Input))","v":""},null,"Input_350",{"$f":"IF(InputDescription=\"\",\"\",IF(OR(ISBLANK(INDEX(Data!Input_350,RecordNumber)),ISERR(INDEX(Data!Input_350,RecordNumber))),\"\",INDEX(Data!Input_350,RecordNumber)))","v":""}]
[null,351,{"$f":"IF(ISBLANK(INDEX(Data!InputDesc,Input)),\"\",INDEX(Data!InputDesc,Input))","v":""},null,"Input_351",{"$f":"IF(InputDescription=\"\",\"\",IF(OR(ISBLANK(INDEX(Data!Input_351,RecordNumber)),ISERR(INDEX(Data!Input_351,RecordNumber))),\"\",INDEX(Data!Input_351,RecordNumber)))","v":""}]
[null,352,{"$f":"IF(ISBLANK(INDEX(Data!InputDesc,Input)),\"\",INDEX(Data!InputDesc,Input))","v":""},null,"Input_352",{"$f":"IF(InputDescription=\"\",\"\",IF(OR(ISBLANK(INDEX(Data!Input_352,RecordNumber)),ISERR(INDEX(Data!Input_352,RecordNumber))),\"\",INDEX(Data!Input_352,RecordNumber)))","v":""}]
[null,353,{"$f":"IF(ISBLANK(INDEX(Data!InputDesc,Input)),\"\",INDEX(Data!InputDesc,Input))","v":""},null,"Input_353",{"$f":"IF(InputDescription=\"\",\"\",IF(OR(ISBLANK(INDEX(Data!Input_353,RecordNumber)),ISERR(INDEX(Data!Input_353,RecordNumber))),\"\",INDEX(Data!Input_353,RecordNumber)))","v":""}]
[null,354,{"$f":"IF(ISBLANK(INDEX(Data!InputDesc,Input)),\"\",INDEX(Data!InputDesc,Input))","v":""},null,"Input_354",{"$f":"IF(InputDescription=\"\",\"\",IF(OR(ISBLANK(INDEX(Data!Input_354,RecordNumber)),ISERR(INDEX(Data!Input_354,RecordNumber))),\"\",INDEX(Data!Input_354,RecordNumber)))","v":""}]
[null,355,{"$f":"IF(ISBLANK(INDEX(Data!InputDesc,Input)),\"\",INDEX(Data!InputDesc,Input))","v":""},null,"Input_355",{"$f":"IF(InputDescription=\"\",\"\",IF(OR(ISBLANK(INDEX(Data!Input_355,RecordNumber)),ISERR(INDEX(Data!Input_355,RecordNumber))),\"\",INDEX(Data!Input_355,RecordNumber)))","v":""}]
[null,356,{"$f":"IF(ISBLANK(INDEX(Data!InputDesc,Input)),\"\",INDEX(Data!InputDesc,Input))","v":""},null,"Input_356",{"$f":"IF(InputDescription=\"\",\"\",IF(OR(ISBLANK(INDEX(Data!Input_356,RecordNumber)),ISERR(INDEX(Data!Input_356,RecordNumber))),\"\",INDEX(Data!Input_356,RecordNumber)))","v":""}]
[null,357,{"$f":"IF(ISBLANK(INDEX(Data!InputDesc,Input)),\"\",INDEX(Data!InputDesc,Input))","v":""},null,"Input_357",{"$f":"IF(InputDescription=\"\",\"\",IF(OR(ISBLANK(INDEX(Data!Input_357,RecordNumber)),ISERR(INDEX(Data!Input_357,RecordNumber))),\"\",INDEX(Data!Input_357,RecordNumber)))","v":""}]
[null,358,{"$f":"IF(ISBLANK(INDEX(Data!InputDesc,Input)),\"\",INDEX(Data!InputDesc,Input))","v":""},null,"Input_358",{"$f":"IF(InputDescription=\"\",\"\",IF(OR(ISBLANK(INDEX(Data!Input_358,RecordNumber)),ISERR(INDEX(Data!Input_358,RecordNumber))),\"\",INDEX(Data!Input_358,RecordNumber)))","v":""}]
[null,359,{"$f":"IF(ISBLANK(INDEX(Data!InputDesc,Input)),\"\",INDEX(Data!InputDesc,Input))","v":""},null,"Input_359",{"$f":"IF(InputDescription=\"\",\"\",IF(OR(ISBLANK(INDEX(Data!Input_359,RecordNumber)),ISERR(INDEX(Data!Input_359,RecordNumber))),\"\",INDEX(Data!Input_359,RecordNumber)))","v":""}]
[null,360,{"$f":"IF(ISBLANK(INDEX(Data!InputDesc,Input)),\"\",INDEX(Data!InputDesc,Input))","v":""},null,"Input_360",{"$f":"IF(InputDescription=\"\",\"\",IF(OR(ISBLANK(INDEX(Data!Input_360,RecordNumber)),ISERR(INDEX(Data!Input_360,RecordNumber))),\"\",INDEX(Data!Input_360,RecordNumber)))","v":""}]
[null,361,{"$f":"IF(ISBLANK(INDEX(Data!InputDesc,Input)),\"\",INDEX(Data!InputDesc,Input))","v":""},null,"Input_361",{"$f":"IF(InputDescription=\"\",\"\",IF(OR(ISBLANK(INDEX(Data!Input_361,RecordNumber)),ISERR(INDEX(Data!Input_361,RecordNumber))),\"\",INDEX(Data!Input_361,RecordNumber)))","v":""}]
[null,362,{"$f":"IF(ISBLANK(INDEX(Data!InputDesc,Input)),\"\",INDEX(Data!InputDesc,Input))","v":""},null,"Input_362",{"$f":"IF(InputDescription=\"\",\"\",IF(OR(ISBLANK(INDEX(Data!Input_362,RecordNumber)),ISERR(INDEX(Data!Input_362,RecordNumber))),\"\",INDEX(Data!Input_362,RecordNumber)))","v":""}]
[null,363,{"$f":"IF(ISBLANK(INDEX(Data!InputDesc,Input)),\"\",INDEX(Data!InputDesc,Input))","v":""},null,"Input_363",{"$f":"IF(InputDescription=\"\",\"\",IF(OR(ISBLANK(INDEX(Data!Input_363,RecordNumber)),ISERR(INDEX(Data!Input_363,RecordNumber))),\"\",INDEX(Data!Input_363,RecordNumber)))","v":""}]
[null,364,{"$f":"IF(ISBLANK(INDEX(Data!InputDesc,Input)),\"\",INDEX(Data!InputDesc,Input))","v":""},null,"Input_364",{"$f":"IF(InputDescription=\"\",\"\",IF(OR(ISBLANK(INDEX(Data!Input_364,RecordNumber)),ISERR(INDEX(Data!Input_364,RecordNumber))),\"\",INDEX(Data!Input_364,RecordNumber)))","v":""}]
[null,365,{"$f":"IF(ISBLANK(INDEX(Data!InputDesc,Input)),\"\",INDEX(Data!InputDesc,Input))","v":""},null,"Input_365",{"$f":"IF(InputDescription=\"\",\"\",IF(OR(ISBLANK(INDEX(Data!Input_365,RecordNumber)),ISERR(INDEX(Data!Input_365,RecordNumber))),\"\",INDEX(Data!Input_365,RecordNumber)))","v":""}]
[null,366,{"$f":"IF(ISBLANK(INDEX(Data!InputDesc,Input)),\"\",INDEX(Data!InputDesc,Input))","v":""},null,"Input_366",{"$f":"IF(InputDescription=\"\",\"\",IF(OR(ISBLANK(INDEX(Data!Input_366,RecordNumber)),ISERR(INDEX(Data!Input_366,RecordNumber))),\"\",INDEX(Data!Input_366,RecordNumber)))","v":""}]
[null,367,{"$f":"IF(ISBLANK(INDEX(Data!InputDesc,Input)),\"\",INDEX(Data!InputDesc,Input))","v":""},null,"Input_367",{"$f":"IF(InputDescription=\"\",\"\",IF(OR(ISBLANK(INDEX(Data!Input_367,RecordNumber)),ISERR(INDEX(Data!Input_367,RecordNumber))),\"\",INDEX(Data!Input_367,RecordNumber)))","v":""}]
[null,368,{"$f":"IF(ISBLANK(INDEX(Data!InputDesc,Input)),\"\",INDEX(Data!InputDesc,Input))","v":""},null,"Input_368",{"$f":"IF(InputDescription=\"\",\"\",IF(OR(ISBLANK(INDEX(Data!Input_368,RecordNumber)),ISERR(INDEX(Data!Input_368,RecordNumber))),\"\",INDEX(Data!Input_368,RecordNumber)))","v":""}]
[null,369,{"$f":"IF(ISBLANK(INDEX(Data!InputDesc,Input)),\"\",INDEX(Data!InputDesc,Input))","v":""},null,"Input_369",{"$f":"IF(InputDescription=\"\",\"\",IF(OR(ISBLANK(INDEX(Data!Input_369,RecordNumber)),ISERR(INDEX(Data!Input_369,RecordNumber))),\"\",INDEX(Data!Input_369,RecordNumber)))","v":""}]
[null,370,{"$f":"IF(ISBLANK(INDEX(Data!InputDesc,Input)),\"\",INDEX(Data!InputDesc,Input))","v":""},null,"Input_370",{"$f":"IF(InputDescription=\"\",\"\",IF(OR(ISBLANK(INDEX(Data!Input_370,RecordNumber)),ISERR(INDEX(Data!Input_370,RecordNumber))),\"\",INDEX(Data!Input_370,RecordNumber)))","v":""}]
[null,371,{"$f":"IF(ISBLANK(INDEX(Data!InputDesc,Input)),\"\",INDEX(Data!InputDesc,Input))","v":""},null,"Input_371",{"$f":"IF(InputDescription=\"\",\"\",IF(OR(ISBLANK(INDEX(Data!Input_371,RecordNumber)),ISERR(INDEX(Data!Input_371,RecordNumber))),\"\",INDEX(Data!Input_371,RecordNumber)))","v":""}]
[null,372,{"$f":"IF(ISBLANK(INDEX(Data!InputDesc,Input)),\"\",INDEX(Data!InputDesc,Input))","v":""},null,"Input_372",{"$f":"IF(InputDescription=\"\",\"\",IF(OR(ISBLANK(INDEX(Data!Input_372,RecordNumber)),ISERR(INDEX(Data!Input_372,RecordNumber))),\"\",INDEX(Data!Input_372,RecordNumber)))","v":""}]
[null,373,{"$f":"IF(ISBLANK(INDEX(Data!InputDesc,Input)),\"\",INDEX(Data!InputDesc,Input))","v":""},null,"Input_373",{"$f":"IF(InputDescription=\"\",\"\",IF(OR(ISBLANK(INDEX(Data!Input_373,RecordNumber)),ISERR(INDEX(Data!Input_373,RecordNumber))),\"\",INDEX(Data!Input_373,RecordNumber)))","v":""}]
[null,374,{"$f":"IF(ISBLANK(INDEX(Data!InputDesc,Input)),\"\",INDEX(Data!InputDesc,Input))","v":""},null,"Input_374",{"$f":"IF(InputDescription=\"\",\"\",IF(OR(ISBLANK(INDEX(Data!Input_374,RecordNumber)),ISERR(INDEX(Data!Input_374,RecordNumber))),\"\",INDEX(Data!Input_374,RecordNumber)))","v":""}]
[null,375,{"$f":"IF(ISBLANK(INDEX(Data!InputDesc,Input)),\"\",INDEX(Data!InputDesc,Input))","v":""},null,"Input_375",{"$f":"IF(InputDescription=\"\",\"\",IF(OR(ISBLANK(INDEX(Data!Input_375,RecordNumber)),ISERR(INDEX(Data!Input_375,RecordNumber))),\"\",INDEX(Data!Input_375,RecordNumber)))","v":""}]
[null,376,{"$f":"IF(ISBLANK(INDEX(Data!InputDesc,Input)),\"\",INDEX(Data!InputDesc,Input))","v":""},null,"Input_376",{"$f":"IF(InputDescription=\"\",\"\",IF(OR(ISBLANK(INDEX(Data!Input_376,RecordNumber)),ISERR(INDEX(Data!Input_376,RecordNumber))),\"\",INDEX(Data!Input_376,RecordNumber)))","v":""}]
[null,377,{"$f":"IF(ISBLANK(INDEX(Data!InputDesc,Input)),\"\",INDEX(Data!InputDesc,Input))","v":""},null,"Input_377",{"$f":"IF(InputDescription=\"\",\"\",IF(OR(ISBLANK(INDEX(Data!Input_377,RecordNumber)),ISERR(INDEX(Data!Input_377,RecordNumber))),\"\",INDEX(Data!Input_377,RecordNumber)))","v":""}]
[null,378,{"$f":"IF(ISBLANK(INDEX(Data!InputDesc,Input)),\"\",INDEX(Data!InputDesc,Input))","v":""},null,"Input_378",{"$f":"IF(InputDescription=\"\",\"\",IF(OR(ISBLANK(INDEX(Data!Input_378,RecordNumber)),ISERR(INDEX(Data!Input_378,RecordNumber))),\"\",INDEX(Data!Input_378,RecordNumber)))","v":""}]
[null,379,{"$f":"IF(ISBLANK(INDEX(Data!InputDesc,Input)),\"\",INDEX(Data!InputDesc,Input))","v":""},null,"Input_379",{"$f":"IF(InputDescription=\"\",\"\",IF(OR(ISBLANK(INDEX(Data!Input_379,RecordNumber)),ISERR(INDEX(Data!Input_379,RecordNumber))),\"\",INDEX(Data!Input_379,RecordNumber)))","v":""}]
[null,380,{"$f":"IF(ISBLANK(INDEX(Data!InputDesc,Input)),\"\",INDEX(Data!InputDesc,Input))","v":""},null,"Input_380",{"$f":"IF(InputDescription=\"\",\"\",IF(OR(ISBLANK(INDEX(Data!Input_380,RecordNumber)),ISERR(INDEX(Data!Input_380,RecordNumber))),\"\",INDEX(Data!Input_380,RecordNumber)))","v":""}]
[null,381,{"$f":"IF(ISBLANK(INDEX(Data!InputDesc,Input)),\"\",INDEX(Data!InputDesc,Input))","v":""},null,"Input_381",{"$f":"IF(InputDescription=\"\",\"\",IF(OR(ISBLANK(INDEX(Data!Input_381,RecordNumber)),ISERR(INDEX(Data!Input_381,RecordNumber))),\"\",INDEX(Data!Input_381,RecordNumber)))","v":""}]
[null,382,{"$f":"IF(ISBLANK(INDEX(Data!InputDesc,Input)),\"\",INDEX(Data!InputDesc,Input))","v":""},null,"Input_382",{"$f":"IF(InputDescription=\"\",\"\",IF(OR(ISBLANK(INDEX(Data!Input_382,RecordNumber)),ISERR(INDEX(Data!Input_382,RecordNumber))),\"\",INDEX(Data!Input_382,RecordNumber)))","v":""}]
[null,383,{"$f":"IF(ISBLANK(INDEX(Data!InputDesc,Input)),\"\",INDEX(Data!InputDesc,Input))","v":""},null,"Input_383",{"$f":"IF(InputDescription=\"\",\"\",IF(OR(ISBLANK(INDEX(Data!Input_383,RecordNumber)),ISERR(INDEX(Data!Input_383,RecordNumber))),\"\",INDEX(Data!Input_383,RecordNumber)))","v":""}]
[null,384,{"$f":"IF(ISBLANK(INDEX(Data!InputDesc,Input)),\"\",INDEX(Data!InputDesc,Input))","v":""},null,"Input_384",{"$f":"IF(InputDescription=\"\",\"\",IF(OR(ISBLANK(INDEX(Data!Input_384,RecordNumber)),ISERR(INDEX(Data!Input_384,RecordNumber))),\"\",INDEX(Data!Input_384,RecordNumber)))","v":""}]
[null,385,{"$f":"IF(ISBLANK(INDEX(Data!InputDesc,Input)),\"\",INDEX(Data!InputDesc,Input))","v":""},null,"Input_385",{"$f":"IF(InputDescription=\"\",\"\",IF(OR(ISBLANK(INDEX(Data!Input_385,RecordNumber)),ISERR(INDEX(Data!Input_385,RecordNumber))),\"\",INDEX(Data!Input_385,RecordNumber)))","v":""}]
[null,386,{"$f":"IF(ISBLANK(INDEX(Data!InputDesc,Input)),\"\",INDEX(Data!InputDesc,Input))","v":""},null,"Input_386",{"$f":"IF(InputDescription=\"\",\"\",IF(OR(ISBLANK(INDEX(Data!Input_386,RecordNumber)),ISERR(INDEX(Data!Input_386,RecordNumber))),\"\",INDEX(Data!Input_386,RecordNumber)))","v":""}]
[null,387,{"$f":"IF(ISBLANK(INDEX(Data!InputDesc,Input)),\"\",INDEX(Data!InputDesc,Input))","v":""},null,"Input_387",{"$f":"IF(InputDescription=\"\",\"\",IF(OR(ISBLANK(INDEX(Data!Input_387,RecordNumber)),ISERR(INDEX(Data!Input_387,RecordNumber))),\"\",INDEX(Data!Input_387,RecordNumber)))","v":""}]
[null,388,{"$f":"IF(ISBLANK(INDEX(Data!InputDesc,Input)),\"\",INDEX(Data!InputDesc,Input))","v":""},null,"Input_388",{"$f":"IF(InputDescription=\"\",\"\",IF(OR(ISBLANK(INDEX(Data!Input_388,RecordNumber)),ISERR(INDEX(Data!Input_388,RecordNumber))),\"\",INDEX(Data!Input_388,RecordNumber)))","v":""}]
[null,389,{"$f":"IF(ISBLANK(INDEX(Data!InputDesc,Input)),\"\",INDEX(Data!InputDesc,Input))","v":""},null,"Input_389",{"$f":"IF(InputDescription=\"\",\"\",IF(OR(ISBLANK(INDEX(Data!Input_389,RecordNumber)),ISERR(INDEX(Data!Input_389,RecordNumber))),\"\",INDEX(Data!Input_389,RecordNumber)))","v":""}]
[null,390,{"$f":"IF(ISBLANK(INDEX(Data!InputDesc,Input)),\"\",INDEX(Data!InputDesc,Input))","v":""},null,"Input_390",{"$f":"IF(InputDescription=\"\",\"\",IF(OR(ISBLANK(INDEX(Data!Input_390,RecordNumber)),ISERR(INDEX(Data!Input_390,RecordNumber))),\"\",INDEX(Data!Input_390,RecordNumber)))","v":""}]
[null,391,{"$f":"IF(ISBLANK(INDEX(Data!InputDesc,Input)),\"\",INDEX(Data!InputDesc,Input))","v":""},null,"Input_391",{"$f":"IF(InputDescription=\"\",\"\",IF(OR(ISBLANK(INDEX(Data!Input_391,RecordNumber)),ISERR(INDEX(Data!Input_391,RecordNumber))),\"\",INDEX(Data!Input_391,RecordNumber)))","v":""}]
[null,392,{"$f":"IF(ISBLANK(INDEX(Data!InputDesc,Input)),\"\",INDEX(Data!InputDesc,Input))","v":""},null,"Input_392",{"$f":"IF(InputDescription=\"\",\"\",IF(OR(ISBLANK(INDEX(Data!Input_392,RecordNumber)),ISERR(INDEX(Data!Input_392,RecordNumber))),\"\",INDEX(Data!Input_392,RecordNumber)))","v":""}]
[null,393,{"$f":"IF(ISBLANK(INDEX(Data!InputDesc,Input)),\"\",INDEX(Data!InputDesc,Input))","v":""},null,"Input_393",{"$f":"IF(InputDescription=\"\",\"\",IF(OR(ISBLANK(INDEX(Data!Input_393,RecordNumber)),ISERR(INDEX(Data!Input_393,RecordNumber))),\"\",INDEX(Data!Input_393,RecordNumber)))","v":""}]
[null,394,{"$f":"IF(ISBLANK(INDEX(Data!InputDesc,Input)),\"\",INDEX(Data!InputDesc,Input))","v":""},null,"Input_394",{"$f":"IF(InputDescription=\"\",\"\",IF(OR(ISBLANK(INDEX(Data!Input_394,RecordNumber)),ISERR(INDEX(Data!Input_394,RecordNumber))),\"\",INDEX(Data!Input_394,RecordNumber)))","v":""}]
[null,395,{"$f":"IF(ISBLANK(INDEX(Data!InputDesc,Input)),\"\",INDEX(Data!InputDesc,Input))","v":""},null,"Input_395",{"$f":"IF(InputDescription=\"\",\"\",IF(OR(ISBLANK(INDEX(Data!Input_395,RecordNumber)),ISERR(INDEX(Data!Input_395,RecordNumber))),\"\",INDEX(Data!Input_395,RecordNumber)))","v":""}]
[null,396,{"$f":"IF(ISBLANK(INDEX(Data!InputDesc,Input)),\"\",INDEX(Data!InputDesc,Input))","v":""},null,"Input_396",{"$f":"IF(InputDescription=\"\",\"\",IF(OR(ISBLANK(INDEX(Data!Input_396,RecordNumber)),ISERR(INDEX(Data!Input_396,RecordNumber))),\"\",INDEX(Data!Input_396,RecordNumber)))","v":""}]
[null,397,{"$f":"IF(ISBLANK(INDEX(Data!InputDesc,Input)),\"\",INDEX(Data!InputDesc,Input))","v":""},null,"Input_397",{"$f":"IF(InputDescription=\"\",\"\",IF(OR(ISBLANK(INDEX(Data!Input_397,RecordNumber)),ISERR(INDEX(Data!Input_397,RecordNumber))),\"\",INDEX(Data!Input_397,RecordNumber)))","v":""}]
[null,398,{"$f":"IF(ISBLANK(INDEX(Data!InputDesc,Input)),\"\",INDEX(Data!InputDesc,Input))","v":""},null,"Input_398",{"$f":"IF(InputDescription=\"\",\"\",IF(OR(ISBLANK(INDEX(Data!Input_398,RecordNumber)),ISERR(INDEX(Data!Input_398,RecordNumber))),\"\",INDEX(Data!Input_398,RecordNumber)))","v":""}]
[null,399,{"$f":"IF(ISBLANK(INDEX(Data!InputDesc,Input)),\"\",INDEX(Data!InputDesc,Input))","v":""},null,"Input_399",{"$f":"IF(InputDescription=\"\",\"\",IF(OR(ISBLANK(INDEX(Data!Input_399,RecordNumber)),ISERR(INDEX(Data!Input_399,RecordNumber))),\"\",INDEX(Data!Input_399,RecordNumber)))","v":""}]
[null,400,{"$f":"IF(ISBLANK(INDEX(Data!InputDesc,Input)),\"\",INDEX(Data!InputDesc,Input))","v":""},null,"Input_400",{"$f":"IF(InputDescription=\"\",\"\",IF(OR(ISBLANK(INDEX(Data!Input_400,RecordNumber)),ISERR(INDEX(Data!Input_400,RecordNumber))),\"\",INDEX(Data!Input_400,RecordNumber)))","v":""}]
[null,401,{"$f":"IF(ISBLANK(INDEX(Data!InputDesc,Input)),\"\",INDEX(Data!InputDesc,Input))","v":""},null,"Input_401",{"$f":"IF(InputDescription=\"\",\"\",IF(OR(ISBLANK(INDEX(Data!Input_401,RecordNumber)),ISERR(INDEX(Data!Input_401,RecordNumber))),\"\",INDEX(Data!Input_401,RecordNumber)))","v":""}]
[null,402,{"$f":"IF(ISBLANK(INDEX(Data!InputDesc,Input)),\"\",INDEX(Data!InputDesc,Input))","v":""},null,"Input_402",{"$f":"IF(InputDescription=\"\",\"\",IF(OR(ISBLANK(INDEX(Data!Input_402,RecordNumber)),ISERR(INDEX(Data!Input_402,RecordNumber))),\"\",INDEX(Data!Input_402,RecordNumber)))","v":""}]
[null,403,{"$f":"IF(ISBLANK(INDEX(Data!InputDesc,Input)),\"\",INDEX(Data!InputDesc,Input))","v":""},null,"Input_403",{"$f":"IF(InputDescription=\"\",\"\",IF(OR(ISBLANK(INDEX(Data!Input_403,RecordNumber)),ISERR(INDEX(Data!Input_403,RecordNumber))),\"\",INDEX(Data!Input_403,RecordNumber)))","v":""}]
[null,404,{"$f":"IF(ISBLANK(INDEX(Data!InputDesc,Input)),\"\",INDEX(Data!InputDesc,Input))","v":""},null,"Input_404",{"$f":"IF(InputDescription=\"\",\"\",IF(OR(ISBLANK(INDEX(Data!Input_404,RecordNumber)),ISERR(INDEX(Data!Input_404,RecordNumber))),\"\",INDEX(Data!Input_404,RecordNumber)))","v":""}]
[null,405,{"$f":"IF(ISBLANK(INDEX(Data!InputDesc,Input)),\"\",INDEX(Data!InputDesc,Input))","v":""},null,"Input_405",{"$f":"IF(InputDescription=\"\",\"\",IF(OR(ISBLANK(INDEX(Data!Input_405,RecordNumber)),ISERR(INDEX(Data!Input_405,RecordNumber))),\"\",INDEX(Data!Input_405,RecordNumber)))","v":""}]
[null,406,{"$f":"IF(ISBLANK(INDEX(Data!InputDesc,Input)),\"\",INDEX(Data!InputDesc,Input))","v":""},null,"Input_406",{"$f":"IF(InputDescription=\"\",\"\",IF(OR(ISBLANK(INDEX(Data!Input_406,RecordNumber)),ISERR(INDEX(Data!Input_406,RecordNumber))),\"\",INDEX(Data!Input_406,RecordNumber)))","v":""}]
[null,407,{"$f":"IF(ISBLANK(INDEX(Data!InputDesc,Input)),\"\",INDEX(Data!InputDesc,Input))","v":""},null,"Input_407",{"$f":"IF(InputDescription=\"\",\"\",IF(OR(ISBLANK(INDEX(Data!Input_407,RecordNumber)),ISERR(INDEX(Data!Input_407,RecordNumber))),\"\",INDEX(Data!Input_407,RecordNumber)))","v":""}]
[null,408,{"$f":"IF(ISBLANK(INDEX(Data!InputDesc,Input)),\"\",INDEX(Data!InputDesc,Input))","v":""},null,"Input_408",{"$f":"IF(InputDescription=\"\",\"\",IF(OR(ISBLANK(INDEX(Data!Input_408,RecordNumber)),ISERR(INDEX(Data!Input_408,RecordNumber))),\"\",INDEX(Data!Input_408,RecordNumber)))","v":""}]
[null,409,{"$f":"IF(ISBLANK(INDEX(Data!InputDesc,Input)),\"\",INDEX(Data!InputDesc,Input))","v":""},null,"Input_409",{"$f":"IF(InputDescription=\"\",\"\",IF(OR(ISBLANK(INDEX(Data!Input_409,RecordNumber)),ISERR(INDEX(Data!Input_409,RecordNumber))),\"\",INDEX(Data!Input_409,RecordNumber)))","v":""}]
[null,410,{"$f":"IF(ISBLANK(INDEX(Data!InputDesc,Input)),\"\",INDEX(Data!InputDesc,Input))","v":""},null,"Input_410",{"$f":"IF(InputDescription=\"\",\"\",IF(OR(ISBLANK(INDEX(Data!Input_410,RecordNumber)),ISERR(INDEX(Data!Input_410,RecordNumber))),\"\",INDEX(Data!Input_410,RecordNumber)))","v":""}]
[null,411,{"$f":"IF(ISBLANK(INDEX(Data!InputDesc,Input)),\"\",INDEX(Data!InputDesc,Input))","v":""},null,"Input_411",{"$f":"IF(InputDescription=\"\",\"\",IF(OR(ISBLANK(INDEX(Data!Input_411,RecordNumber)),ISERR(INDEX(Data!Input_411,RecordNumber))),\"\",INDEX(Data!Input_411,RecordNumber)))","v":""}]
[null,412,{"$f":"IF(ISBLANK(INDEX(Data!InputDesc,Input)),\"\",INDEX(Data!InputDesc,Input))","v":""},null,"Input_412",{"$f":"IF(InputDescription=\"\",\"\",IF(OR(ISBLANK(INDEX(Data!Input_412,RecordNumber)),ISERR(INDEX(Data!Input_412,RecordNumber))),\"\",INDEX(Data!Input_412,RecordNumber)))","v":""}]
[null,413,{"$f":"IF(ISBLANK(INDEX(Data!InputDesc,Input)),\"\",INDEX(Data!InputDesc,Input))","v":""},null,"Input_413",{"$f":"IF(InputDescription=\"\",\"\",IF(OR(ISBLANK(INDEX(Data!Input_413,RecordNumber)),ISERR(INDEX(Data!Input_413,RecordNumber))),\"\",INDEX(Data!Input_413,RecordNumber)))","v":""}]
[null,414,{"$f":"IF(ISBLANK(INDEX(Data!InputDesc,Input)),\"\",INDEX(Data!InputDesc,Input))","v":""},null,"Input_414",{"$f":"IF(InputDescription=\"\",\"\",IF(OR(ISBLANK(INDEX(Data!Input_414,RecordNumber)),ISERR(INDEX(Data!Input_414,RecordNumber))),\"\",INDEX(Data!Input_414,RecordNumber)))","v":""}]
[null,415,{"$f":"IF(ISBLANK(INDEX(Data!InputDesc,Input)),\"\",INDEX(Data!InputDesc,Input))","v":""},null,"Input_415",{"$f":"IF(InputDescription=\"\",\"\",IF(OR(ISBLANK(INDEX(Data!Input_415,RecordNumber)),ISERR(INDEX(Data!Input_415,RecordNumber))),\"\",INDEX(Data!Input_415,RecordNumber)))","v":""}]
[null,416,{"$f":"IF(ISBLANK(INDEX(Data!InputDesc,Input)),\"\",INDEX(Data!InputDesc,Input))","v":""},null,"Input_416",{"$f":"IF(InputDescription=\"\",\"\",IF(OR(ISBLANK(INDEX(Data!Input_416,RecordNumber)),ISERR(INDEX(Data!Input_416,RecordNumber))),\"\",INDEX(Data!Input_416,RecordNumber)))","v":""}]
[null,417,{"$f":"IF(ISBLANK(INDEX(Data!InputDesc,Input)),\"\",INDEX(Data!InputDesc,Input))","v":""},null,"Input_417",{"$f":"IF(InputDescription=\"\",\"\",IF(OR(ISBLANK(INDEX(Data!Input_417,RecordNumber)),ISERR(INDEX(Data!Input_417,RecordNumber))),\"\",INDEX(Data!Input_417,RecordNumber)))","v":""}]
[null,418,{"$f":"IF(ISBLANK(INDEX(Data!InputDesc,Input)),\"\",INDEX(Data!InputDesc,Input))","v":""},null,"Input_418",{"$f":"IF(InputDescription=\"\",\"\",IF(OR(ISBLANK(INDEX(Data!Input_418,RecordNumber)),ISERR(INDEX(Data!Input_418,RecordNumber))),\"\",INDEX(Data!Input_418,RecordNumber)))","v":""}]
[null,419,{"$f":"IF(ISBLANK(INDEX(Data!InputDesc,Input)),\"\",INDEX(Data!InputDesc,Input))","v":""},null,"Input_419",{"$f":"IF(InputDescription=\"\",\"\",IF(OR(ISBLANK(INDEX(Data!Input_419,RecordNumber)),ISERR(INDEX(Data!Input_419,RecordNumber))),\"\",INDEX(Data!Input_419,RecordNumber)))","v":""}]
[null,420,{"$f":"IF(ISBLANK(INDEX(Data!InputDesc,Input)),\"\",INDEX(Data!InputDesc,Input))","v":""},null,"Input_420",{"$f":"IF(InputDescription=\"\",\"\",IF(OR(ISBLANK(INDEX(Data!Input_420,RecordNumber)),ISERR(INDEX(Data!Input_420,RecordNumber))),\"\",INDEX(Data!Input_420,RecordNumber)))","v":""}]
[null,421,{"$f":"IF(ISBLANK(INDEX(Data!InputDesc,Input)),\"\",INDEX(Data!InputDesc,Input))","v":""},null,"Input_421",{"$f":"IF(InputDescription=\"\",\"\",IF(OR(ISBLANK(INDEX(Data!Input_421,RecordNumber)),ISERR(INDEX(Data!Input_421,RecordNumber))),\"\",INDEX(Data!Input_421,RecordNumber)))","v":""}]
[null,422,{"$f":"IF(ISBLANK(INDEX(Data!InputDesc,Input)),\"\",INDEX(Data!InputDesc,Input))","v":""},null,"Input_422",{"$f":"IF(InputDescription=\"\",\"\",IF(OR(ISBLANK(INDEX(Data!Input_422,RecordNumber)),ISERR(INDEX(Data!Input_422,RecordNumber))),\"\",INDEX(Data!Input_422,RecordNumber)))","v":""}]
[null,423,{"$f":"IF(ISBLANK(INDEX(Data!InputDesc,Input)),\"\",INDEX(Data!InputDesc,Input))","v":""},null,"Input_423",{"$f":"IF(InputDescription=\"\",\"\",IF(OR(ISBLANK(INDEX(Data!Input_423,RecordNumber)),ISERR(INDEX(Data!Input_423,RecordNumber))),\"\",INDEX(Data!Input_423,RecordNumber)))","v":""}]
[null,424,{"$f":"IF(ISBLANK(INDEX(Data!InputDesc,Input)),\"\",INDEX(Data!InputDesc,Input))","v":""},null,"Input_424",{"$f":"IF(InputDescription=\"\",\"\",IF(OR(ISBLANK(INDEX(Data!Input_424,RecordNumber)),ISERR(INDEX(Data!Input_424,RecordNumber))),\"\",INDEX(Data!Input_424,RecordNumber)))","v":""}]
[null,425,{"$f":"IF(ISBLANK(INDEX(Data!InputDesc,Input)),\"\",INDEX(Data!InputDesc,Input))","v":""},null,"Input_425",{"$f":"IF(InputDescription=\"\",\"\",IF(OR(ISBLANK(INDEX(Data!Input_425,RecordNumber)),ISERR(INDEX(Data!Input_425,RecordNumber))),\"\",INDEX(Data!Input_425,RecordNumber)))","v":""}]
[null,426,{"$f":"IF(ISBLANK(INDEX(Data!InputDesc,Input)),\"\",INDEX(Data!InputDesc,Input))","v":""},null,"Input_426",{"$f":"IF(InputDescription=\"\",\"\",IF(OR(ISBLANK(INDEX(Data!Input_426,RecordNumber)),ISERR(INDEX(Data!Input_426,RecordNumber))),\"\",INDEX(Data!Input_426,RecordNumber)))","v":""}]
[null,427,{"$f":"IF(ISBLANK(INDEX(Data!InputDesc,Input)),\"\",INDEX(Data!InputDesc,Input))","v":""},null,"Input_427",{"$f":"IF(InputDescription=\"\",\"\",IF(OR(ISBLANK(INDEX(Data!Input_427,RecordNumber)),ISERR(INDEX(Data!Input_427,RecordNumber))),\"\",INDEX(Data!Input_427,RecordNumber)))","v":""}]
[null,428,{"$f":"IF(ISBLANK(INDEX(Data!InputDesc,Input)),\"\",INDEX(Data!InputDesc,Input))","v":""},null,"Input_428",{"$f":"IF(InputDescription=\"\",\"\",IF(OR(ISBLANK(INDEX(Data!Input_428,RecordNumber)),ISERR(INDEX(Data!Input_428,RecordNumber))),\"\",INDEX(Data!Input_428,RecordNumber)))","v":""}]
[null,429,{"$f":"IF(ISBLANK(INDEX(Data!InputDesc,Input)),\"\",INDEX(Data!InputDesc,Input))","v":""},null,"Input_429",{"$f":"IF(InputDescription=\"\",\"\",IF(OR(ISBLANK(INDEX(Data!Input_429,RecordNumber)),ISERR(INDEX(Data!Input_429,RecordNumber))),\"\",INDEX(Data!Input_429,RecordNumber)))","v":""}]
[null,430,{"$f":"IF(ISBLANK(INDEX(Data!InputDesc,Input)),\"\",INDEX(Data!InputDesc,Input))","v":""},null,"Input_430",{"$f":"IF(InputDescription=\"\",\"\",IF(OR(ISBLANK(INDEX(Data!Input_430,RecordNumber)),ISERR(INDEX(Data!Input_430,RecordNumber))),\"\",INDEX(Data!Input_430,RecordNumber)))","v":""}]
[null,431,{"$f":"IF(ISBLANK(INDEX(Data!InputDesc,Input)),\"\",INDEX(Data!InputDesc,Input))","v":""},null,"Input_431",{"$f":"IF(InputDescription=\"\",\"\",IF(OR(ISBLANK(INDEX(Data!Input_431,RecordNumber)),ISERR(INDEX(Data!Input_431,RecordNumber))),\"\",INDEX(Data!Input_431,RecordNumber)))","v":""}]
[null,432,{"$f":"IF(ISBLANK(INDEX(Data!InputDesc,Input)),\"\",INDEX(Data!InputDesc,Input))","v":""},null,"Input_432",{"$f":"IF(InputDescription=\"\",\"\",IF(OR(ISBLANK(INDEX(Data!Input_432,RecordNumber)),ISERR(INDEX(Data!Input_432,RecordNumber))),\"\",INDEX(Data!Input_432,RecordNumber)))","v":""}]
[null,433,{"$f":"IF(ISBLANK(INDEX(Data!InputDesc,Input)),\"\",INDEX(Data!InputDesc,Input))","v":""},null,"Input_433",{"$f":"IF(InputDescription=\"\",\"\",IF(OR(ISBLANK(INDEX(Data!Input_433,RecordNumber)),ISERR(INDEX(Data!Input_433,RecordNumber))),\"\",INDEX(Data!Input_433,RecordNumber)))","v":""}]
[null,434,{"$f":"IF(ISBLANK(INDEX(Data!InputDesc,Input)),\"\",INDEX(Data!InputDesc,Input))","v":""},null,"Input_434",{"$f":"IF(InputDescription=\"\",\"\",IF(OR(ISBLANK(INDEX(Data!Input_434,RecordNumber)),ISERR(INDEX(Data!Input_434,RecordNumber))),\"\",INDEX(Data!Input_434,RecordNumber)))","v":""}]
[null,435,{"$f":"IF(ISBLANK(INDEX(Data!InputDesc,Input)),\"\",INDEX(Data!InputDesc,Input))","v":""},null,"Input_435",{"$f":"IF(InputDescription=\"\",\"\",IF(OR(ISBLANK(INDEX(Data!Input_435,RecordNumber)),ISERR(INDEX(Data!Input_435,RecordNumber))),\"\",INDEX(Data!Input_435,RecordNumber)))","v":""}]
[null,436,{"$f":"IF(ISBLANK(INDEX(Data!InputDesc,Input)),\"\",INDEX(Data!InputDesc,Input))","v":""},null,"Input_436",{"$f":"IF(InputDescription=\"\",\"\",IF(OR(ISBLANK(INDEX(Data!Input_436,RecordNumber)),ISERR(INDEX(Data!Input_436,RecordNumber))),\"\",INDEX(Data!Input_436,RecordNumber)))","v":""}]
[null,437,{"$f":"IF(ISBLANK(INDEX(Data!InputDesc,Input)),\"\",INDEX(Data!InputDesc,Input))","v":""},null,"Input_437",{"$f":"IF(InputDescription=\"\",\"\",IF(OR(ISBLANK(INDEX(Data!Input_437,RecordNumber)),ISERR(INDEX(Data!Input_437,RecordNumber))),\"\",INDEX(Data!Input_437,RecordNumber)))","v":""}]
[null,438,{"$f":"IF(ISBLANK(INDEX(Data!InputDesc,Input)),\"\",INDEX(Data!InputDesc,Input))","v":""},null,"Input_438",{"$f":"IF(InputDescription=\"\",\"\",IF(OR(ISBLANK(INDEX(Data!Input_438,RecordNumber)),ISERR(INDEX(Data!Input_438,RecordNumber))),\"\",INDEX(Data!Input_438,RecordNumber)))","v":""}]
[null,439,{"$f":"IF(ISBLANK(INDEX(Data!InputDesc,Input)),\"\",INDEX(Data!InputDesc,Input))","v":""},null,"Input_439",{"$f":"IF(InputDescription=\"\",\"\",IF(OR(ISBLANK(INDEX(Data!Input_439,RecordNumber)),ISERR(INDEX(Data!Input_439,RecordNumber))),\"\",INDEX(Data!Input_439,RecordNumber)))","v":""}]
[null,440,{"$f":"IF(ISBLANK(INDEX(Data!InputDesc,Input)),\"\",INDEX(Data!InputDesc,Input))","v":""},null,"Input_440",{"$f":"IF(InputDescription=\"\",\"\",IF(OR(ISBLANK(INDEX(Data!Input_440,RecordNumber)),ISERR(INDEX(Data!Input_440,RecordNumber))),\"\",INDEX(Data!Input_440,RecordNumber)))","v":""}]
[null,441,{"$f":"IF(ISBLANK(INDEX(Data!InputDesc,Input)),\"\",INDEX(Data!InputDesc,Input))","v":""},null,"Input_441",{"$f":"IF(InputDescription=\"\",\"\",IF(OR(ISBLANK(INDEX(Data!Input_441,RecordNumber)),ISERR(INDEX(Data!Input_441,RecordNumber))),\"\",INDEX(Data!Input_441,RecordNumber)))","v":""}]
[null,442,{"$f":"IF(ISBLANK(INDEX(Data!InputDesc,Input)),\"\",INDEX(Data!InputDesc,Input))","v":""},null,"Input_442",{"$f":"IF(InputDescription=\"\",\"\",IF(OR(ISBLANK(INDEX(Data!Input_442,RecordNumber)),ISERR(INDEX(Data!Input_442,RecordNumber))),\"\",INDEX(Data!Input_442,RecordNumber)))","v":""}]
[null,443,{"$f":"IF(ISBLANK(INDEX(Data!InputDesc,Input)),\"\",INDEX(Data!InputDesc,Input))","v":""},null,"Input_443",{"$f":"IF(InputDescription=\"\",\"\",IF(OR(ISBLANK(INDEX(Data!Input_443,RecordNumber)),ISERR(INDEX(Data!Input_443,RecordNumber))),\"\",INDEX(Data!Input_443,RecordNumber)))","v":""}]
[null,444,{"$f":"IF(ISBLANK(INDEX(Data!InputDesc,Input)),\"\",INDEX(Data!InputDesc,Input))","v":""},null,"Input_444",{"$f":"IF(InputDescription=\"\",\"\",IF(OR(ISBLANK(INDEX(Data!Input_444,RecordNumber)),ISERR(INDEX(Data!Input_444,RecordNumber))),\"\",INDEX(Data!Input_444,RecordNumber)))","v":""}]
[null,445,{"$f":"IF(ISBLANK(INDEX(Data!InputDesc,Input)),\"\",INDEX(Data!InputDesc,Input))","v":""},null,"Input_445",{"$f":"IF(InputDescription=\"\",\"\",IF(OR(ISBLANK(INDEX(Data!Input_445,RecordNumber)),ISERR(INDEX(Data!Input_445,RecordNumber))),\"\",INDEX(Data!Input_445,RecordNumber)))","v":""}]
[null,446,{"$f":"IF(ISBLANK(INDEX(Data!InputDesc,Input)),\"\",INDEX(Data!InputDesc,Input))","v":""},null,"Input_446",{"$f":"IF(InputDescription=\"\",\"\",IF(OR(ISBLANK(INDEX(Data!Input_446,RecordNumber)),ISERR(INDEX(Data!Input_446,RecordNumber))),\"\",INDEX(Data!Input_446,RecordNumber)))","v":""}]
[null,447,{"$f":"IF(ISBLANK(INDEX(Data!InputDesc,Input)),\"\",INDEX(Data!InputDesc,Input))","v":""},null,"Input_447",{"$f":"IF(InputDescription=\"\",\"\",IF(OR(ISBLANK(INDEX(Data!Input_447,RecordNumber)),ISERR(INDEX(Data!Input_447,RecordNumber))),\"\",INDEX(Data!Input_447,RecordNumber)))","v":""}]
[null,448,{"$f":"IF(ISBLANK(INDEX(Data!InputDesc,Input)),\"\",INDEX(Data!InputDesc,Input))","v":""},null,"Input_448",{"$f":"IF(InputDescription=\"\",\"\",IF(OR(ISBLANK(INDEX(Data!Input_448,RecordNumber)),ISERR(INDEX(Data!Input_448,RecordNumber))),\"\",INDEX(Data!Input_448,RecordNumber)))","v":""}]
[null,449,{"$f":"IF(ISBLANK(INDEX(Data!InputDesc,Input)),\"\",INDEX(Data!InputDesc,Input))","v":""},null,"Input_449",{"$f":"IF(InputDescription=\"\",\"\",IF(OR(ISBLANK(INDEX(Data!Input_449,RecordNumber)),ISERR(INDEX(Data!Input_449,RecordNumber))),\"\",INDEX(Data!Input_449,RecordNumber)))","v":""}]
[null,450,{"$f":"IF(ISBLANK(INDEX(Data!InputDesc,Input)),\"\",INDEX(Data!InputDesc,Input))","v":""},null,"Input_450",{"$f":"IF(InputDescription=\"\",\"\",IF(OR(ISBLANK(INDEX(Data!Input_450,RecordNumber)),ISERR(INDEX(Data!Input_450,RecordNumber))),\"\",INDEX(Data!Input_450,RecordNumber)))","v":""}]
[null,451,{"$f":"IF(ISBLANK(INDEX(Data!InputDesc,Input)),\"\",INDEX(Data!InputDesc,Input))","v":""},null,"Input_451",{"$f":"IF(InputDescription=\"\",\"\",IF(OR(ISBLANK(INDEX(Data!Input_451,RecordNumber)),ISERR(INDEX(Data!Input_451,RecordNumber))),\"\",INDEX(Data!Input_451,RecordNumber)))","v":""}]
[null,452,{"$f":"IF(ISBLANK(INDEX(Data!InputDesc,Input)),\"\",INDEX(Data!InputDesc,Input))","v":""},null,"Input_452",{"$f":"IF(InputDescription=\"\",\"\",IF(OR(ISBLANK(INDEX(Data!Input_452,RecordNumber)),ISERR(INDEX(Data!Input_452,RecordNumber))),\"\",INDEX(Data!Input_452,RecordNumber)))","v":""}]
[null,453,{"$f":"IF(ISBLANK(INDEX(Data!InputDesc,Input)),\"\",INDEX(Data!InputDesc,Input))","v":""},null,"Input_453",{"$f":"IF(InputDescription=\"\",\"\",IF(OR(ISBLANK(INDEX(Data!Input_453,RecordNumber)),ISERR(INDEX(Data!Input_453,RecordNumber))),\"\",INDEX(Data!Input_453,RecordNumber)))","v":""}]
[null,454,{"$f":"IF(ISBLANK(INDEX(Data!InputDesc,Input)),\"\",INDEX(Data!InputDesc,Input))","v":""},null,"Input_454",{"$f":"IF(InputDescription=\"\",\"\",IF(OR(ISBLANK(INDEX(Data!Input_454,RecordNumber)),ISERR(INDEX(Data!Input_454,RecordNumber))),\"\",INDEX(Data!Input_454,RecordNumber)))","v":""}]
[null,455,{"$f":"IF(ISBLANK(INDEX(Data!InputDesc,Input)),\"\",INDEX(Data!InputDesc,Input))","v":""},null,"Input_455",{"$f":"IF(InputDescription=\"\",\"\",IF(OR(ISBLANK(INDEX(Data!Input_455,RecordNumber)),ISERR(INDEX(Data!Input_455,RecordNumber))),\"\",INDEX(Data!Input_455,RecordNumber)))","v":""}]
[null,456,{"$f":"IF(ISBLANK(INDEX(Data!InputDesc,Input)),\"\",INDEX(Data!InputDesc,Input))","v":""},null,"Input_456",{"$f":"IF(InputDescription=\"\",\"\",IF(OR(ISBLANK(INDEX(Data!Input_456,RecordNumber)),ISERR(INDEX(Data!Input_456,RecordNumber))),\"\",INDEX(Data!Input_456,RecordNumber)))","v":""}]
[null,457,{"$f":"IF(ISBLANK(INDEX(Data!InputDesc,Input)),\"\",INDEX(Data!InputDesc,Input))","v":""},null,"Input_457",{"$f":"IF(InputDescription=\"\",\"\",IF(OR(ISBLANK(INDEX(Data!Input_457,RecordNumber)),ISERR(INDEX(Data!Input_457,RecordNumber))),\"\",INDEX(Data!Input_457,RecordNumber)))","v":""}]
[null,458,{"$f":"IF(ISBLANK(INDEX(Data!InputDesc,Input)),\"\",INDEX(Data!InputDesc,Input))","v":""},null,"Input_458",{"$f":"IF(InputDescription=\"\",\"\",IF(OR(ISBLANK(INDEX(Data!Input_458,RecordNumber)),ISERR(INDEX(Data!Input_458,RecordNumber))),\"\",INDEX(Data!Input_458,RecordNumber)))","v":""}]
[null,459,{"$f":"IF(ISBLANK(INDEX(Data!InputDesc,Input)),\"\",INDEX(Data!InputDesc,Input))","v":""},null,"Input_459",{"$f":"IF(InputDescription=\"\",\"\",IF(OR(ISBLANK(INDEX(Data!Input_459,RecordNumber)),ISERR(INDEX(Data!Input_459,RecordNumber))),\"\",INDEX(Data!Input_459,RecordNumber)))","v":""}]
[null,460,{"$f":"IF(ISBLANK(INDEX(Data!InputDesc,Input)),\"\",INDEX(Data!InputDesc,Input))","v":""},null,"Input_460",{"$f":"IF(InputDescription=\"\",\"\",IF(OR(ISBLANK(INDEX(Data!Input_460,RecordNumber)),ISERR(INDEX(Data!Input_460,RecordNumber))),\"\",INDEX(Data!Input_460,RecordNumber)))","v":""}]
[null,461,{"$f":"IF(ISBLANK(INDEX(Data!InputDesc,Input)),\"\",INDEX(Data!InputDesc,Input))","v":""},null,"Input_461",{"$f":"IF(InputDescription=\"\",\"\",IF(OR(ISBLANK(INDEX(Data!Input_461,RecordNumber)),ISERR(INDEX(Data!Input_461,RecordNumber))),\"\",INDEX(Data!Input_461,RecordNumber)))","v":""}]
[null,462,{"$f":"IF(ISBLANK(INDEX(Data!InputDesc,Input)),\"\",INDEX(Data!InputDesc,Input))","v":""},null,"Input_462",{"$f":"IF(InputDescription=\"\",\"\",IF(OR(ISBLANK(INDEX(Data!Input_462,RecordNumber)),ISERR(INDEX(Data!Input_462,RecordNumber))),\"\",INDEX(Data!Input_462,RecordNumber)))","v":""}]
[null,463,{"$f":"IF(ISBLANK(INDEX(Data!InputDesc,Input)),\"\",INDEX(Data!InputDesc,Input))","v":""},null,"Input_463",{"$f":"IF(InputDescription=\"\",\"\",IF(OR(ISBLANK(INDEX(Data!Input_463,RecordNumber)),ISERR(INDEX(Data!Input_463,RecordNumber))),\"\",INDEX(Data!Input_463,RecordNumber)))","v":""}]
[null,464,{"$f":"IF(ISBLANK(INDEX(Data!InputDesc,Input)),\"\",INDEX(Data!InputDesc,Input))","v":""},null,"Input_464",{"$f":"IF(InputDescription=\"\",\"\",IF(OR(ISBLANK(INDEX(Data!Input_464,RecordNumber)),ISERR(INDEX(Data!Input_464,RecordNumber))),\"\",INDEX(Data!Input_464,RecordNumber)))","v":""}]
[null,465,{"$f":"IF(ISBLANK(INDEX(Data!InputDesc,Input)),\"\",INDEX(Data!InputDesc,Input))","v":""},null,"Input_465",{"$f":"IF(InputDescription=\"\",\"\",IF(OR(ISBLANK(INDEX(Data!Input_465,RecordNumber)),ISERR(INDEX(Data!Input_465,RecordNumber))),\"\",INDEX(Data!Input_465,RecordNumber)))","v":""}]
[null,466,{"$f":"IF(ISBLANK(INDEX(Data!InputDesc,Input)),\"\",INDEX(Data!InputDesc,Input))","v":""},null,"Input_466",{"$f":"IF(InputDescription=\"\",\"\",IF(OR(ISBLANK(INDEX(Data!Input_466,RecordNumber)),ISERR(INDEX(Data!Input_466,RecordNumber))),\"\",INDEX(Data!Input_466,RecordNumber)))","v":""}]
[null,467,{"$f":"IF(ISBLANK(INDEX(Data!InputDesc,Input)),\"\",INDEX(Data!InputDesc,Input))","v":""},null,"Input_467",{"$f":"IF(InputDescription=\"\",\"\",IF(OR(ISBLANK(INDEX(Data!Input_467,RecordNumber)),ISERR(INDEX(Data!Input_467,RecordNumber))),\"\",INDEX(Data!Input_467,RecordNumber)))","v":""}]
[null,468,{"$f":"IF(ISBLANK(INDEX(Data!InputDesc,Input)),\"\",INDEX(Data!InputDesc,Input))","v":""},null,"Input_468",{"$f":"IF(InputDescription=\"\",\"\",IF(OR(ISBLANK(INDEX(Data!Input_468,RecordNumber)),ISERR(INDEX(Data!Input_468,RecordNumber))),\"\",INDEX(Data!Input_468,RecordNumber)))","v":""}]
[null,469,{"$f":"IF(ISBLANK(INDEX(Data!InputDesc,Input)),\"\",INDEX(Data!InputDesc,Input))","v":""},null,"Input_469",{"$f":"IF(InputDescription=\"\",\"\",IF(OR(ISBLANK(INDEX(Data!Input_469,RecordNumber)),ISERR(INDEX(Data!Input_469,RecordNumber))),\"\",INDEX(Data!Input_469,RecordNumber)))","v":""}]
[null,470,{"$f":"IF(ISBLANK(INDEX(Data!InputDesc,Input)),\"\",INDEX(Data!InputDesc,Input))","v":""},null,"Input_470",{"$f":"IF(InputDescription=\"\",\"\",IF(OR(ISBLANK(INDEX(Data!Input_470,RecordNumber)),ISERR(INDEX(Data!Input_470,RecordNumber))),\"\",INDEX(Data!Input_470,RecordNumber)))","v":""}]
[null,471,{"$f":"IF(ISBLANK(INDEX(Data!InputDesc,Input)),\"\",INDEX(Data!InputDesc,Input))","v":""},null,"Input_471",{"$f":"IF(InputDescription=\"\",\"\",IF(OR(ISBLANK(INDEX(Data!Input_471,RecordNumber)),ISERR(INDEX(Data!Input_471,RecordNumber))),\"\",INDEX(Data!Input_471,RecordNumber)))","v":""}]
[null,472,{"$f":"IF(ISBLANK(INDEX(Data!InputDesc,Input)),\"\",INDEX(Data!InputDesc,Input))","v":""},null,"Input_472",{"$f":"IF(InputDescription=\"\",\"\",IF(OR(ISBLANK(INDEX(Data!Input_472,RecordNumber)),ISERR(INDEX(Data!Input_472,RecordNumber))),\"\",INDEX(Data!Input_472,RecordNumber)))","v":""}]
[null,473,{"$f":"IF(ISBLANK(INDEX(Data!InputDesc,Input)),\"\",INDEX(Data!InputDesc,Input))","v":""},null,"Input_473",{"$f":"IF(InputDescription=\"\",\"\",IF(OR(ISBLANK(INDEX(Data!Input_473,RecordNumber)),ISERR(INDEX(Data!Input_473,RecordNumber))),\"\",INDEX(Data!Input_473,RecordNumber)))","v":""}]
[null,474,{"$f":"IF(ISBLANK(INDEX(Data!InputDesc,Input)),\"\",INDEX(Data!InputDesc,Input))","v":""},null,"Input_474",{"$f":"IF(InputDescription=\"\",\"\",IF(OR(ISBLANK(INDEX(Data!Input_474,RecordNumber)),ISERR(INDEX(Data!Input_474,RecordNumber))),\"\",INDEX(Data!Input_474,RecordNumber)))","v":""}]
[null,475,{"$f":"IF(ISBLANK(INDEX(Data!InputDesc,Input)),\"\",INDEX(Data!InputDesc,Input))","v":""},null,"Input_475",{"$f":"IF(InputDescription=\"\",\"\",IF(OR(ISBLANK(INDEX(Data!Input_475,RecordNumber)),ISERR(INDEX(Data!Input_475,RecordNumber))),\"\",INDEX(Data!Input_475,RecordNumber)))","v":""}]
[null,476,{"$f":"IF(ISBLANK(INDEX(Data!InputDesc,Input)),\"\",INDEX(Data!InputDesc,Input))","v":""},null,"Input_476",{"$f":"IF(InputDescription=\"\",\"\",IF(OR(ISBLANK(INDEX(Data!Input_476,RecordNumber)),ISERR(INDEX(Data!Input_476,RecordNumber))),\"\",INDEX(Data!Input_476,RecordNumber)))","v":""}]
[null,477,{"$f":"IF(ISBLANK(INDEX(Data!InputDesc,Input)),\"\",INDEX(Data!InputDesc,Input))","v":""},null,"Input_477",{"$f":"IF(InputDescription=\"\",\"\",IF(OR(ISBLANK(INDEX(Data!Input_477,RecordNumber)),ISERR(INDEX(Data!Input_477,RecordNumber))),\"\",INDEX(Data!Input_477,RecordNumber)))","v":""}]
[null,478,{"$f":"IF(ISBLANK(INDEX(Data!InputDesc,Input)),\"\",INDEX(Data!InputDesc,Input))","v":""},null,"Input_478",{"$f":"IF(InputDescription=\"\",\"\",IF(OR(ISBLANK(INDEX(Data!Input_478,RecordNumber)),ISERR(INDEX(Data!Input_478,RecordNumber))),\"\",INDEX(Data!Input_478,RecordNumber)))","v":""}]
[null,479,{"$f":"IF(ISBLANK(INDEX(Data!InputDesc,Input)),\"\",INDEX(Data!InputDesc,Input))","v":""},null,"Input_479",{"$f":"IF(InputDescription=\"\",\"\",IF(OR(ISBLANK(INDEX(Data!Input_479,RecordNumber)),ISERR(INDEX(Data!Input_479,RecordNumber))),\"\",INDEX(Data!Input_479,RecordNumber)))","v":""}]
[null,480,{"$f":"IF(ISBLANK(INDEX(Data!InputDesc,Input)),\"\",INDEX(Data!InputDesc,Input))","v":""},null,"Input_480",{"$f":"IF(InputDescription=\"\",\"\",IF(OR(ISBLANK(INDEX(Data!Input_480,RecordNumber)),ISERR(INDEX(Data!Input_480,RecordNumber))),\"\",INDEX(Data!Input_480,RecordNumber)))","v":""}]
[null,481,{"$f":"IF(ISBLANK(INDEX(Data!InputDesc,Input)),\"\",INDEX(Data!InputDesc,Input))","v":""},null,"Input_481",{"$f":"IF(InputDescription=\"\",\"\",IF(OR(ISBLANK(INDEX(Data!Input_481,RecordNumber)),ISERR(INDEX(Data!Input_481,RecordNumber))),\"\",INDEX(Data!Input_481,RecordNumber)))","v":""}]
[null,482,{"$f":"IF(ISBLANK(INDEX(Data!InputDesc,Input)),\"\",INDEX(Data!InputDesc,Input))","v":""},null,"Input_482",{"$f":"IF(InputDescription=\"\",\"\",IF(OR(ISBLANK(INDEX(Data!Input_482,RecordNumber)),ISERR(INDEX(Data!Input_482,RecordNumber))),\"\",INDEX(Data!Input_482,RecordNumber)))","v":""}]
[null,483,{"$f":"IF(ISBLANK(INDEX(Data!InputDesc,Input)),\"\",INDEX(Data!InputDesc,Input))","v":""},null,"Input_483",{"$f":"IF(InputDescription=\"\",\"\",IF(OR(ISBLANK(INDEX(Data!Input_483,RecordNumber)),ISERR(INDEX(Data!Input_483,RecordNumber))),\"\",INDEX(Data!Input_483,RecordNumber)))","v":""}]
[null,484,{"$f":"IF(ISBLANK(INDEX(Data!InputDesc,Input)),\"\",INDEX(Data!InputDesc,Input))","v":""},null,"Input_484",{"$f":"IF(InputDescription=\"\",\"\",IF(OR(ISBLANK(INDEX(Data!Input_484,RecordNumber)),ISERR(INDEX(Data!Input_484,RecordNumber))),\"\",INDEX(Data!Input_484,RecordNumber)))","v":""}]
[null,485,{"$f":"IF(ISBLANK(INDEX(Data!InputDesc,Input)),\"\",INDEX(Data!InputDesc,Input))","v":""},null,"Input_485",{"$f":"IF(InputDescription=\"\",\"\",IF(OR(ISBLANK(INDEX(Data!Input_485,RecordNumber)),ISERR(INDEX(Data!Input_485,RecordNumber))),\"\",INDEX(Data!Input_485,RecordNumber)))","v":""}]
[null,486,{"$f":"IF(ISBLANK(INDEX(Data!InputDesc,Input)),\"\",INDEX(Data!InputDesc,Input))","v":""},null,"Input_486",{"$f":"IF(InputDescription=\"\",\"\",IF(OR(ISBLANK(INDEX(Data!Input_486,RecordNumber)),ISERR(INDEX(Data!Input_486,RecordNumber))),\"\",INDEX(Data!Input_486,RecordNumber)))","v":""}]
[null,487,{"$f":"IF(ISBLANK(INDEX(Data!InputDesc,Input)),\"\",INDEX(Data!InputDesc,Input))","v":""},null,"Input_487",{"$f":"IF(InputDescription=\"\",\"\",IF(OR(ISBLANK(INDEX(Data!Input_487,RecordNumber)),ISERR(INDEX(Data!Input_487,RecordNumber))),\"\",INDEX(Data!Input_487,RecordNumber)))","v":""}]
[null,488,{"$f":"IF(ISBLANK(INDEX(Data!InputDesc,Input)),\"\",INDEX(Data!InputDesc,Input))","v":""},null,"Input_488",{"$f":"IF(InputDescription=\"\",\"\",IF(OR(ISBLANK(INDEX(Data!Input_488,RecordNumber)),ISERR(INDEX(Data!Input_488,RecordNumber))),\"\",INDEX(Data!Input_488,RecordNumber)))","v":""}]
[null,489,{"$f":"IF(ISBLANK(INDEX(Data!InputDesc,Input)),\"\",INDEX(Data!InputDesc,Input))","v":""},null,"Input_489",{"$f":"IF(InputDescription=\"\",\"\",IF(OR(ISBLANK(INDEX(Data!Input_489,RecordNumber)),ISERR(INDEX(Data!Input_489,RecordNumber))),\"\",INDEX(Data!Input_489,RecordNumber)))","v":""}]
[null,490,{"$f":"IF(ISBLANK(INDEX(Data!InputDesc,Input)),\"\",INDEX(Data!InputDesc,Input))","v":""},null,"Input_490",{"$f":"IF(InputDescription=\"\",\"\",IF(OR(ISBLANK(INDEX(Data!Input_490,RecordNumber)),ISERR(INDEX(Data!Input_490,RecordNumber))),\"\",INDEX(Data!Input_490,RecordNumber)))","v":""}]
[null,491,{"$f":"IF(ISBLANK(INDEX(Data!InputDesc,Input)),\"\",INDEX(Data!InputDesc,Input))","v":""},null,"Input_491",{"$f":"IF(InputDescription=\"\",\"\",IF(OR(ISBLANK(INDEX(Data!Input_491,RecordNumber)),ISERR(INDEX(Data!Input_491,RecordNumber))),\"\",INDEX(Data!Input_491,RecordNumber)))","v":""}]
[null,492,{"$f":"IF(ISBLANK(INDEX(Data!InputDesc,Input)),\"\",INDEX(Data!InputDesc,Input))","v":""},null,"Input_492",{"$f":"IF(InputDescription=\"\",\"\",IF(OR(ISBLANK(INDEX(Data!Input_492,RecordNumber)),ISERR(INDEX(Data!Input_492,RecordNumber))),\"\",INDEX(Data!Input_492,RecordNumber)))","v":""}]
[null,493,{"$f":"IF(ISBLANK(INDEX(Data!InputDesc,Input)),\"\",INDEX(Data!InputDesc,Input))","v":""},null,"Input_493",{"$f":"IF(InputDescription=\"\",\"\",IF(OR(ISBLANK(INDEX(Data!Input_493,RecordNumber)),ISERR(INDEX(Data!Input_493,RecordNumber))),\"\",INDEX(Data!Input_493,RecordNumber)))","v":""}]
[null,494,{"$f":"IF(ISBLANK(INDEX(Data!InputDesc,Input)),\"\",INDEX(Data!InputDesc,Input))","v":""},null,"Input_494",{"$f":"IF(InputDescription=\"\",\"\",IF(OR(ISBLANK(INDEX(Data!Input_494,RecordNumber)),ISERR(INDEX(Data!Input_494,RecordNumber))),\"\",INDEX(Data!Input_494,RecordNumber)))","v":""}]
[null,495,{"$f":"IF(ISBLANK(INDEX(Data!InputDesc,Input)),\"\",INDEX(Data!InputDesc,Input))","v":""},null,"Input_495",{"$f":"IF(InputDescription=\"\",\"\",IF(OR(ISBLANK(INDEX(Data!Input_495,RecordNumber)),ISERR(INDEX(Data!Input_495,RecordNumber))),\"\",INDEX(Data!Input_495,RecordNumber)))","v":""}]
[null,496,{"$f":"IF(ISBLANK(INDEX(Data!InputDesc,Input)),\"\",INDEX(Data!InputDesc,Input))","v":""},null,"Input_496",{"$f":"IF(InputDescription=\"\",\"\",IF(OR(ISBLANK(INDEX(Data!Input_496,RecordNumber)),ISERR(INDEX(Data!Input_496,RecordNumber))),\"\",INDEX(Data!Input_496,RecordNumber)))","v":""}]
[null,497,{"$f":"IF(ISBLANK(INDEX(Data!InputDesc,Input)),\"\",INDEX(Data!InputDesc,Input))","v":""},null,"Input_497",{"$f":"IF(InputDescription=\"\",\"\",IF(OR(ISBLANK(INDEX(Data!Input_497,RecordNumber)),ISERR(INDEX(Data!Input_497,RecordNumber))),\"\",INDEX(Data!Input_497,RecordNumber)))","v":""}]
[null,498,{"$f":"IF(ISBLANK(INDEX(Data!InputDesc,Input)),\"\",INDEX(Data!InputDesc,Input))","v":""},null,"Input_498",{"$f":"IF(InputDescription=\"\",\"\",IF(OR(ISBLANK(INDEX(Data!Input_498,RecordNumber)),ISERR(INDEX(Data!Input_498,RecordNumber))),\"\",INDEX(Data!Input_498,RecordNumber)))","v":""}]
[null,499,{"$f":"IF(ISBLANK(INDEX(Data!InputDesc,Input)),\"\",INDEX(Data!InputDesc,Input))","v":""},null,"Input_499",{"$f":"IF(InputDescription=\"\",\"\",IF(OR(ISBLANK(INDEX(Data!Input_499,RecordNumber)),ISERR(INDEX(Data!Input_499,RecordNumber))),\"\",INDEX(Data!Input_499,RecordNumber)))","v":""}]
[null,500,{"$f":"IF(ISBLANK(INDEX(Data!InputDesc,Input)),\"\",INDEX(Data!InputDesc,Input))","v":""},null,"Input_500",{"$f":"IF(InputDescription=\"\",\"\",IF(OR(ISBLANK(INDEX(Data!Input_500,RecordNumber)),ISERR(INDEX(Data!Input_500,RecordNumber))),\"\",INDEX(Data!Input_500,RecordNumber)))","v":""}]

{"sheet":"Template","index":3,"n_rows":8,"n_cols":3,"rows_kept":8,"cut":false,"hidden":false,"merged":[[1,1,2,2]]}
[]
[null,"Template"]
[]
[]
[null,"Customer Name",{"$f":"Mapping!Input_001","v":""}]
[null,"Sex",{"$f":"Mapping!Input_002","v":""}]
[null,"Date of Birth",{"$f":"Mapping!Input_003","v":""}]
[null,"Email ID",{"$f":"Mapping!Input_004","v":""}]